{"text_format":"1","workbook":"xlsx","n_sheets":19,"sheets":["VzorObjekt","VzorPolozky","Identifikační údaje","Pokyny pro vyplnění","Rekapitulace stavby","01_S0 03 - Stav-arch část ","02_SO O3 - Silnoproud","03_SO 03 - VZT","04_SO 03 - Výtah","05_SO O4 - Stav arch část","06_SO 04 - Silnoproud","07_SO 04 - VZT","08_SO 04 - Slaboproud","09_SO 04 - ZTI","10_SO 12 - Stav arch část","11_SO 12 - Silnoproud","12_SO 12 - ÚT","13_SO 12 - EPS","14 - VRN"],"not_rendered":{"charts":0,"images":1,"macros":1,"external_links":2,"defined_names":76,"comments":0,"pivot_tables":0},"unopened":[],"bounds":{"document_bytes":16777216,"sheet_cells":100000,"rows_first":2000,"rows_last":500,"rows_between":2000,"halvings":0,"cell_chars":16384,"cell_head_chars":4096},"cells_cut":0,"cells_raw":0,"read":"whole","date_system":"1900"}

{"sheet":"VzorObjekt","index":0,"n_rows":9,"n_cols":7,"rows_kept":9,"cut":false,"hidden":true,"merged":[[3,0,3,7],[1,2,1,5],[6,1,6,6]]}
["Stavba :",{"$f":"[0]!cislostavby","v":0},{"$f":"[0]!nazevstavby","v":0}]
["Objekt :",null,null,null,null,null,"JKSO :"]
[]
["Rekapitulace stavebního objektu"]
[]
["Zákl. údaje",{"$f":"B2","v":0}]
[null,{"$f":"C2","v":0}]
[]
["Třídník stavebních objektů:"]

{"sheet":"VzorPolozky","index":1,"n_rows":6,"n_cols":7,"rows_kept":6,"cut":false,"hidden":true,"merged":[[0,0,0,6],[1,2,1,6],[2,2,2,6],[3,2,3,6]]}
["Položkový rozpočet "]
["S:"]
["O:"]
["R:"]
[]
["P.č.","Číslo položky","Název položky","MJ","množství","cena / MJ","celkem"]

{"sheet":"Identifikační údaje","index":2,"n_rows":33,"n_cols":5,"rows_kept":33,"cut":false,"hidden":false,"merged":[[32,0,32,6]]}
["Akce:","ČRo Brno – II. etapa rekonstrukce budovy Beethovenova 25/4"]
[]
["Místo plnění: ","Budova Českého rozhlasu Brno na adrese Beethovenova 25/4, 657 42 Brno"]
[]
["Datum vyplnění:"]
[]
["Zadavatel:","Český rozhlas",null,null,{"$f":"CONCATENATE(B7,\", \",B8)","v":"Český rozhlas, Vinohradská 12, 120 99 Praha 2"}]
[null,"Vinohradská 12, 120 99 Praha 2"]
["IČ:",45245053]
["DIČ:","CZ45245053"]
[]
["Projektant:","Ing. arch. Klement Miloš",null,null,{"$f":"CONCATENATE(B12,\", \",B13)","v":"Ing. arch. Klement Miloš, Nejedlého 381/19, 638 00 Brno - Lesná"}]
[null,"Nejedlého 381/19, 638 00 Brno - Lesná"]
["IČ:",15188736]
["DIČ:","CZ6101021344"]
[]
["Uchazeč:"]
[]
["Obchodní název",null,null,null,{"$f":"CONCATENATE(B19,\", \",B20,\", \",B22,\" \",B21)","v":", ,  "}]
["Ulice a č.p. "]
["Město "]
["PSČ "]
["IČ"]
["DIČ"]
[]
["Kontaktní osoba "]
["                telefon"]
["                e-mail "]
[]
[]
[]
["Poznámka :"]
["Ve všech listech tohoto souboru můžete měnit pouze buňky s modrým pozadím. Jedná se o tyto údaje : \n- údaje o firmě\n- jednotkové ceny položek zadané na maximálně dvě desetinná místa"]

{"sheet":"Pokyny pro vyplnění","index":3,"n_rows":95,"n_cols":4,"rows_kept":95,"cut":false,"hidden":false,"merged":[[21,1,21,9],[23,1,23,9],[25,1,25,9],[26,1,26,9],[28,1,28,9],[62,1,62,9],[45,1,45,9],[30,1,30,9],[31,1,31,9],[32,1,32,9],[33,1,33,9],[34,1,34,9],[35,1,35,9],[37,1,37,9],[39,1,39,9],[40,1,40,9],[42,1,42,9],[43,1,43,9],[55,1,55,9],[56,1,56,9],[58,1,58,9],[59,1,59,9],[60,1,60,9],[46,1,46,9],[48,1,48,9],[50,1,50,9],[51,1,51,9],[53,1,53,9],[70,1,70,9],[72,1,72,9],[75,1,75,9],[77,1,77,9],[63,1,63,9],[3,2,3,9],[92,1,92,9],[94,1,94,9],[5,1,5,9],[11,1,11,9],[87,1,87,9],[89,1,89,9],[90,1,90,9],[78,1,78,9],[79,1,79,9],[81,1,81,9],[83,1,83,9],[84,1,84,9],[86,1,86,9],[65,1,65,9],[66,1,66,9]]}
[-1]
[null,"POKYNY A PODMÍNKY PRO VYPLNĚNÍ TABULKY PRO VÝPOČET NABÍDKOVÉ CENY - VV"]
[null,null,null," "]
[null,"AKCE:",{"$f":"'Identifikační údaje'!B1","v":"ČRo Brno – II. etapa rekonstrukce budovy Beethovenova 25/4"}]
[]
[null,"Pozn.:"]
[null,null,"Tato tabulka pro výpočet nabídkové ceny nahrazuje výkaz výměr, jež byl zpracován jako součást "]
[null,"projektové dokumentace, zhotovené Ing. arch. Klementem Milošem Nejedlého 381/19, 638 00 Brno - Lesná,"]
[null," v prosinci 2017, pod zakázkovým číslem 12/2017, jež je přílohou zadávací dokumenatce této vřejné zakázky. "]
[]
[]
[null,"1. POKYNY K VYPLŇOVÁNÍ TABULKY"]
[]
[null,"Ve všech listech tohoto souboru můžete měnit pouze buňky s modrým pozadím. Jedná se o tyto údaje : "]
[]
[null," - údaje o firmě"]
[null," - jednotkové ceny položek zadané na maximálně dvě desetinná místa"]
[]
[null,"V titulním listu (identifikační údaje) stavby vyplňte údaje o Uchazeči (přenesou se do ostatních sestav i v jiných listech)"]
[]
[]
[null,"2. PODMÍNKY PRO ZPRACOVÁNÍ NABÍDKOVÉ CENY"]
[]
[null,"        Preambule"]
[]
[null,"Tento soupis stavebních prací, dodávek a služeb je sestaven jako podklad pro zpracování nabídek dodavatelů na veřejnou zakázku na stavební práce a obsahuje podmínky a požadavky zadavatele, za kterých má být zpracována nabídková cena dodavatelů. Účelem tohoto soupisu je zabezpečit obsahovou shodu všech nabídkových cen a usnadnit následné posouzení předložených cenových nabídek."]
[null,"Předpokládá se, že dodavatel před zpracováním cenové nabídky pečlivě prostuduje všechny pokyny a podmínky pro zpracování nabídkové ceny obsažené v zadávacích podmínkách a bude se jimi při zpracování nabídkové ceny řídit. Soupis stavebních prací, dodávek a služeb je sestaven v souladu s podmínkami vyhlášky Ministerstva pro místní rozvoj č.230/2012 Sb."]
[]
[null,"        Vymezení některých pojmů"]
[]
[null,"Pro účely zpracování nabídkové ceny se jsou použity některé pojmy, pod kterými se rozumí:"]
[null,"        Soupisem stavebních prací dodávek a služeb dokument, ve kterém jsou definovány zadavatelem požadované stavební práce, dodávky a služby v podrobnostech nezbytných pro zpracování cenové nabídky dodavatele. Soupis obsahuje i vymezení požadovaného množství stavebních prací, dodávek a služeb."]
[null,"Cenovou soustavou uspořádaný soubor informací o stavebních a montážních pracích, materiálech a výrobcích obsahující zatřídění položek, podrobný popis a měrnou jednotku, způsob měření a další technické a cenové podmínky pro možnost stanovení jednotkové ceny."]
[null,"        Ostatními náklady náklady dodavatele spojené se splněním povinností dodavatele vyplývajících z obchodních či jiných podmínek zadávací dokumentace. Patří do nich zejména náklady na vyhotovení dokumentace skutečného provedení stavby, náklady na geodetické zaměření dokončeného díla, náklady spojené s podmínkami pro publicitu projektu, náklady na dílenskou či výrobní dokumentaci apod."]
[null,"        Položkovým rozpočtem dokument odpovídající svým obsahem a strukturou soupisu stavebních prací, dodávek a služeb, předaného zadavatelem dodavateli ke zpracování nabídky, v němž dodavatel doplní k jednotlivým položkám stavebních prací, dodávek nebo služeb svoje nabídkové jednotkové ceny a stanoví i celkovou nabídkovou cenu příslušné položky a dále stanoví nabídkové ceny dle struktury soupisu až po celkovou nabídkovou cenu za veškeré stavební práce, dodávky nebo služby, které jsou obsahem soupisu stavebních prací, dodávek a služeb."]
[null,"        Vedlejšími náklady náklady na činností zhotovitele, které nejsou zahrnuty v položkách soupisu stavebních prací, dodávek nebo služeb, ale se zhotovením stav-by souvisí a jsou pro realizaci stavby nezbytné. Někdy se definují jako vedlejší rozpočtové náklady a zahrnují zejména náklady na vybudování, provoz a odstranění zařízení staveniště."]
[]
[null,"        Cenová soustava"]
[]
[null,"        Použitá cenová soustava"]
[null,"Soupisy stavebních prací, dodávek a služeb jsou zpracovány s použitím cenové soustavy zpracované společností RTS, a.s.. Položky z cenové soustavy mají uveden odkaz na cenovou soustavu včetně označení příslušného ceníku."]
[]
[null,"        Technické podmínky"]
[null,"Obsah jednotlivých položek, způsob měření a ostatní další podmínky definující obsah a použití jednotlivých položek jsou obsaženy v cenových a technických podmínkách příslušných ceníků (viz zařazení u položky), které jsou volně dostupné na elektronické adrese www.cenovasoustava.cz"]
[]
[null,"Individuální položky"]
[null,"Položky soupisu prací, které cenová soustava neobsahuje, jsou označeny popisem „vlastní“. Pro tyto položky jsou cenové a technické podmínky definovány jejich popisem, případně odkazem na konkrétní část příslušné dokumentace."]
[]
[null,"        Závaznost a změna soupisu"]
[]
[null,"        Závaznost soupisu"]
[null,"Poskytnuté soupisy jsou pro zpracování nabídkové ceny závazné. Je vyloučeno jakékoliv vyřazení položek ze soupisu, doplnění položek do soupisu, slučování položek a jakýkoliv zásah do popisu položky, množství měrných jednotek nebo jakkoliv měnit či upravovat jakýkoliv jiný údaj v soupisu."]
[]
[null,"        Zvláštní podmínky pro stanovení nabídkové ceny"]
[]
[null,"        Přeprava vybouraných hmot, suti a vytěžené zeminy"]
[null,"Pokud soupis obsahuje i některé technologické položky vztahující se k uložení vytěžené zeminy nebo vybouraných hmot, vodorovné přesuny zeminy nebo vybouraných hmot pak v takových případech zpracovatel soupisu předpokládá určitou přepravní vzdálenost. Pokud z technologického postupu dodavatele vyplývá jiná přepravní vzdálenost, je povinností dodavatele stanovit takovou jednotkovou cenu, aby celková cena položky odpovídala jeho konkrétním technologickým podmínkám a konkrétní přepravní vzdálenosti, při soupisem vymezeném množství měrných jednotek."]
[]
[null,"        Vnitrostaveništní přesun stavebního materiálu"]
[null,"Pokud soupis obsahuje i položky vztahující se ke vnitrostaveništnímu přesunu materiálů (položky označené jako přesun hmot), pak v takových případech je povinností dodavatele stanovit takovou jednotkovou cenu, aby celková cena položky odpovídala jeho konkrétním technologickým podmínkám a konkrétní přepravní vzdálenosti, při soupisem vymezeném množství měrných jednotek."]
[null,"Vnitrostaveništní přesun hmot prací PSV (pomocná stavební výroba) může být v soupisu stanoven procenticky z hodnoty ceny za provedení příslušných řemeslných prací, dodávek a služeb. V takovém případě není v soupisu uvedeno množství měrných jednotek. Dodavatel ocení celkovou cenu u takové položky přesunu hmot vždy konkrétní částkou v Kč, bez ohledu na to, jakým způsobem k jejímu výpočtu dospěl."]
[]
[null,"        Příplatky za ztížené podmínky prací"]
[null,"Pokud soupis položku příplatku za ztížené podmínky obsahuje, je dodavatel povinen ji ocenit bez ohledu na to, že tento příplatek dodavatel standardně neuplatňuje."]
[]
[null,"        Vedlejší a ostatní náklady"]
[null,"Tyto náklady jsou popsány v samostatném soupisu stavebních prací, dodávek a služeb s tím, že dodavatel je povinen v rámci těchto nákladů ocenit všechny definované náklady souhrnně pro celou stavbu."]
[]
[]
[]
[null,"3. SPECIFICKÉ PODMÍNKY PRO ZPRACOVÁNÍ NABÍDKOVÉ CENY"]
[]
[null,"Zde doplní zpracovatel soupisu  případná specifika týkající se konkrétní zakázky."]
[]
[]
[null,"4. ELEKTRONICKÁ PODOBA SOUPISU"]
[]
[null,"        Elektronická podoba soupisu"]
[null,"V souladu se zákonem jsou předložené soupisy zpracovány i v elektronické podobě.  Elektronickou podobou soupisu stavebních prací, dodávek a služeb je formát MS EXCEL."]
[null,"Popis formátu soupisu odpovídá svou strukturou vzorovému soupisu volně dostupnému na internetové adrese:"]
[]
[null,"www.stavebnionline.cz/soupis"]
[]
[null,"        Zpracování elektronické podoby soupisu"]
[null,"Předaný formát MS EXCEL je nepřístupným (uzamčeným) souborem, do kterého dodavatel doplňuje pouze jednotkové ceny ke všem položkám. Ostatní cenové údaje, jako celková cena položky, mezisoučty za stavební či funkční díly nebo součty celkové ceny stavebního objektu, jakož i cena stavby jsou výsledkem vložených matematických vzorců v příslušných pozicích souboru."]
[]
[null,"        Jiný formát soupisu"]
[null,"Pokud by kterýkoliv dodavatel měl problémy s předaným formátem, lze na požádání poskytnout soupis stavebních prací také ve formátu *.xml, což je standardní formát používaný pro přenosy dat. Dokumentace tohoto formátu je volně přístupná na webových stránkách MMR."]
[]
[null,"        Závěrečné ustanovení"]
[null,"Ostatní podmínky vztahující se ke zpracování nabídkové ceny jsou uvedeny v zadávací dokumentaci."]
[]
[null,"5. OBCHODNÍ NÁZVY MATERIÁLŮ A VÝROBKŮ"]
[]
[null,"         V případě, že položka tabulky pro výpočet nabídkové ceny obsahuje konkrétní obchodní označení výrobku či materiálu (referenční výrobek), je zhotovitel oprávněn jej nahradit výrobkem či materiálem stejných technických parametrů a jakosti."]

{"sheet":"Rekapitulace stavby","index":4,"n_rows":68,"n_cols":39,"rows_kept":68,"cut":false,"hidden":false,"merged":[[67,2,67,6],[67,8,67,30],[67,31,67,40],[3,9,3,39],[4,9,4,39],[12,3,12,34],[18,3,18,38],[21,35,21,39],[41,10,41,39],[43,37,43,38],[45,37,45,40],[48,1,48,5],[48,7,48,30],[48,31,48,40],[51,2,51,6],[51,8,51,30],[54,31,54,40],[54,2,54,6],[54,8,54,30],[50,31,50,40],[51,31,51,40],[52,2,52,6],[52,8,52,30],[53,2,53,6],[53,8,53,30],[52,31,52,40],[53,31,53,40],[55,31,55,40],[56,2,56,6],[56,8,56,30],[56,31,56,40],[57,2,57,6],[57,8,57,30],[57,31,57,40],[58,2,58,6],[58,8,58,30],[58,31,58,40],[59,2,59,6],[59,8,59,30],[59,31,59,40],[60,2,60,6],[60,8,60,30],[60,31,60,40],[62,2,62,6],[62,8,62,30],[62,31,62,40],[61,38,61,40],[65,2,65,6],[65,8,65,30],[65,31,65,40],[63,2,63,6],[63,8,63,30],[63,31,63,40],[64,2,64,6],[64,8,64,30],[64,31,64,40]]}
[]
[]
[null,null,"REKAPITULACE STAVBY"]
[null,null,"Kód:"]
[null,null,"Stavba:",null,null,null,null,null,null,{"$f":"'Identifikační údaje'!B1","v":"ČRo Brno – II. etapa rekonstrukce budovy Beethovenova 25/4"}]
[null,null,"KSO:",null,null,null,null,null,null,null,null,null,null,null,null,null,null,null,null,null,null,null,null,null,null,null,null,null,null,null,null,null,null,null,null,"CC-CZ:"]
[null,null,"Místo:",null,null,null,null,null,null,{"$f":"'Identifikační údaje'!B3","v":"Budova Českého rozhlasu Brno na adrese Beethovenova 25/4, 657 42 Brno"},null,null,null,null,null,null,null,null,null,null,null,null,null,null,null,null,null,null,null,null,null,null,null,null,null,"Datum:",null,null,{"$f":"'Identifikační údaje'!B5","v":"00:00:00"}]
[]
[null,null,"Zadavatel:",null,null,null,null,null,null,null,null,null,null,null,null,null,null,null,null,null,null,null,null,null,null,null,null,null,null,null,null,null,null,null,null,"IČ:",null,null,{"$f":"'Identifikační údaje'!B9","v":45245053}]
[null,null,null,{"$f":"'Identifikační údaje'!E7","v":"Český rozhlas, Vinohradská 12, 120 99 Praha 2"},null,null,null,null,null,null,null,null,null,null,null,null,null,null,null,null,null,null,null,null,null,null,null,null,null,null,null,null,null,null,null,"DIČ:",null,null,{"$f":"'Identifikační údaje'!B10","v":"CZ45245053"}]
[]
[null,null,"Uchazeč:",null,null,null,null,null,null,null,null,null,null,null,null,null,null,null,null,null,null,null,null,null,null,null,null,null,null,null,null,null,null,null,null,"IČ:",null,null,{"$f":"'Identifikační údaje'!B23","v":0}]
[null,null,null,{"$f":"'Identifikační údaje'!E19","v":", ,  "},null,null,null,null,null,null,null,null,null,null,null,null,null,null,null,null,null,null,null,null,null,null,null,null,null,null,null,null,null,null,null,"DIČ:",null,null,{"$f":"'Identifikační údaje'!B24","v":0}]
[]
[null,null,"Projektant:",null,null,null,null,null,null,null,null,null,null,null,null,null,null,null,null,null,null,null,null,null,null,null,null,null,null,null,null,null,null,null,null,"IČ:",null,null,{"$f":"'Identifikační údaje'!B14","v":15188736}]
[null,null,null,{"$f":"'Identifikační údaje'!E12","v":"Ing. arch. Klement Miloš, Nejedlého 381/19, 638 00 Brno - Lesná"},null,null,null,null,null,null,null,null,null,null,null,null,null,null,null,null,null,null,null,null,null,null,null,null,null,null,null,null,null,null,null,"DIČ:",null,null,{"$f":"'Identifikační údaje'!B15","v":"CZ6101021344"}]
[]
[null,null,"Poznámka:"]
[]
[]
[]
[null,null,"CENA ZA STAVBU CELKEM BEZ DPH",null,null,null,null,null,null,null,null,null,null,null,null,null,null,null,null,null,null,null,null,null,null,null,null,null,null,null,null,null,null,null,null,{"$f":"AF51+AF56+AM62+AF68","v":0}]
[]
[]
[]
[]
[]
[]
[]
[]
[]
[]
[]
[]
[]
[]
[]
[]
[null,"REKAPITULACE OBJEKTŮ STAVBY A SOUPISŮ PRACÍ"]
[]
[]
[null,"Stavba:",null,null,null,null,null,null,null,null,{"$f":"'Identifikační údaje'!B1","v":"ČRo Brno – II. etapa rekonstrukce budovy Beethovenova 25/4"}]
[]
[null,"Místo:",null,null,null,null,null,null,null,null,{"$f":"IF($J$7=\"\",\"\",$J$7)","v":"Budova Českého rozhlasu Brno na adrese Beethovenova 25/4, 657 42 Brno"},null,null,null,null,null,null,null,null,null,null,null,null,null,null,null,null,null,null,null,null,null,null,"Datum:",null,null,null,{"$f":"IF($AM$7=\"\",\"\",$AM$7)","v":"00:00:00"}]
[]
[null,"Zadavatel:",null,null,null,null,null,null,null,null,{"$f":"IF($D$10=\"\",\"\",$D$10)","v":"Český rozhlas, Vinohradská 12, 120 99 Praha 2"},null,null,null,null,null,null,null,null,null,null,null,null,null,null,null,null,null,null,null,null,null,null,"Projektant:",null,null,null,{"$f":"IF($D$16=\"\",\"\",$D$16)","v":"Ing. arch. Klement Miloš, Nejedlého 381/19, 638 00 Brno - Lesná"}]
[null,"Uchazeč:",null,null,null,null,null,null,null,null,{"$f":"IF($D$13=\"Vyplň údaj\",\"\",$D$13)","v":", ,  "}]
[]
[null,"Kód",null,null,null,null,null,"Objekt, Soupis prací",null,null,null,null,null,null,null,null,null,null,null,null,null,null,null,null,null,null,null,null,null,null,null,"Cena bez DPH [CZK]"]
[]
[null,"Objekt SO 03 (III. TSK) Výtah a související schodiště celkem",null,null,null,null,null,null,null,null,null,null,null,null,null,null,null,null,null,null,null,null,null,null,null,null,null,null,null,null,null,{"$f":"SUM(AF52:AO55)","v":0}]
[null,null,"01",null,null,null,null,null,"SO 03 - Stavebně - architektonická část",null,null,null,null,null,null,null,null,null,null,null,null,null,null,null,null,null,null,null,null,null,null,{"$f":"'01_S0 03 - Stav-arch část '!D42","v":0}]
[null,null,"02",null,null,null,null,null,"SO 03 - Silnoproudá elektroinstalace ",null,null,null,null,null,null,null,null,null,null,null,null,null,null,null,null,null,null,null,null,null,null,{"$f":"'02_SO O3 - Silnoproud'!H35:H35","v":0}]
[null,null,"03",null,null,null,null,null,"SO 03 - Vzduchotechnika a chlazení",null,null,null,null,null,null,null,null,null,null,null,null,null,null,null,null,null,null,null,null,null,null,{"$f":"'03_SO 03 - VZT'!H44","v":0}]
[null,null,"04",null,null,null,null,null,"SO 03 - Výtah",null,null,null,null,null,null,null,null,null,null,null,null,null,null,null,null,null,null,null,null,null,null,{"$f":"'04_SO 03 - Výtah'!D54:D54","v":0}]
[null,"Objekt SO 04 (IV. TSK) Toalety ve všech patrech",null,null,null,null,null,null,null,null,null,null,null,null,null,null,null,null,null,null,null,null,null,null,null,null,null,null,null,null,null,{"$f":"SUM(AF57:AO61)","v":0}]
[null,null,"05",null,null,null,null,null,"SO 04 - Stavebně - architektonická část",null,null,null,null,null,null,null,null,null,null,null,null,null,null,null,null,null,null,null,null,null,null,{"$f":"'05_SO O4 - Stav arch část'!D44","v":0}]
[null,null,"06",null,null,null,null,null,"SO 04 - Silnoproudá elektroinstalace ",null,null,null,null,null,null,null,null,null,null,null,null,null,null,null,null,null,null,null,null,null,null,{"$f":"'06_SO 04 - Silnoproud'!H35","v":0}]
[null,null,"07",null,null,null,null,null,"SO 04 - Vzduchotechnika a chlazení",null,null,null,null,null,null,null,null,null,null,null,null,null,null,null,null,null,null,null,null,null,null,{"$f":"'07_SO 04 - VZT'!H35","v":0}]
[null,null,"08",null,null,null,null,null,"SO 04 - Slaboproudá elektroinstalace",null,null,null,null,null,null,null,null,null,null,null,null,null,null,null,null,null,null,null,null,null,null,{"$f":"'08_SO 04 - Slaboproud'!H31","v":0}]
[null,null,"09",null,null,null,null,null,"SO 04 - Zdravotně technické instalace",null,null,null,null,null,null,null,null,null,null,null,null,null,null,null,null,null,null,null,null,null,null,{"$f":"'09_SO 04 - ZTI'!I32","v":0}]
[null,"Objekt SO 12 (XII. TSK) Páteřní rozvody silnoproudu v šachtách a napojení rozvaděčů, ústřední vytápění, EPS",null,null,null,null,null,null,null,null,null,null,null,null,null,null,null,null,null,null,null,null,null,null,null,null,null,null,null,null,null,null,null,null,null,null,null,null,{"$f":"SUM(AF63:AO66)","v":0}]
[null,null,"10",null,null,null,null,null,"SO 12 - Stavebně - architektonická část",null,null,null,null,null,null,null,null,null,null,null,null,null,null,null,null,null,null,null,null,null,null,{"$f":"'10_SO 12 - Stav arch část'!G32","v":0}]
[null,null,"11",null,null,null,null,null,"SO 12 - Silnoproudá elektroinstalace ",null,null,null,null,null,null,null,null,null,null,null,null,null,null,null,null,null,null,null,null,null,null,{"$f":"'11_SO 12 - Silnoproud'!H33:H33","v":0}]
[null,null,"12",null,null,null,null,null,"SO 12 - Ústřední vytápění",null,null,null,null,null,null,null,null,null,null,null,null,null,null,null,null,null,null,null,null,null,null,{"$f":"'12_SO 12 - ÚT'!H32:H32","v":0}]
[null,null,"13",null,null,null,null,null,"SO 12 - EPS",null,null,null,null,null,null,null,null,null,null,null,null,null,null,null,null,null,null,null,null,null,null,{"$f":"'13_SO 12 - EPS'!H32:H32","v":0}]
[]
[null,null,"14",null,null,null,null,null,"Vedlejší a ostatní náklady stavby",null,null,null,null,null,null,null,null,null,null,null,null,null,null,null,null,null,null,null,null,null,null,{"$f":"'14 - VRN'!F32","v":0}]

{"sheet":"01_S0 03 - Stav-arch část ","index":5,"n_rows":351,"n_cols":50,"rows_kept":351,"cut":false,"hidden":false,"merged":[[24,3,24,6],[142,2,142,3],[143,2,143,3],[140,2,140,3],[139,2,139,3],[76,2,76,6],[334,2,334,3],[349,2,349,3],[348,2,348,3],[25,2,25,6],[41,3,41,6],[332,2,332,3]]}
[{"$f":"CONCATENATE('Rekapitulace stavby'!C52,\"_\",'Rekapitulace stavby'!I52)","v":"01_SO 03 - Stavebně - architektonická část"}]
[]
["SPECIFIKACE DODÁVEK A PRACÍ "]
["Název akce:"]
[{"$f":"'Identifikační údaje'!B1","v":"ČRo Brno – II. etapa rekonstrukce budovy Beethovenova 25/4"}]
[]
["Zadavatel:",null,{"$f":"'Identifikační údaje'!E7","v":"Český rozhlas, Vinohradská 12, 120 99 Praha 2"}]
[null,"IČ:",{"$f":"'Identifikační údaje'!B9","v":45245053}]
[null,"DIČ:",{"$f":"'Identifikační údaje'!B10","v":"CZ45245053"}]
[]
["Projektant:",null,{"$f":"'Identifikační údaje'!E12","v":"Ing. arch. Klement Miloš, Nejedlého 381/19, 638 00 Brno - Lesná"}]
[null,"IČ:",{"$f":"'Identifikační údaje'!B14","v":15188736}]
[null,"DIČ:",{"$f":"'Identifikační údaje'!B15","v":"CZ6101021344"}]
[]
["Uchazeč:",null,{"$f":"'Identifikační údaje'!E19","v":", ,  "}]
[null,"IČ:",{"$f":"'Identifikační údaje'!B23","v":0}]
[null,"DIČ:",{"$f":"'Identifikační údaje'!B24","v":0}]
[]
["Místo stavby:",null,{"$f":"'Identifikační údaje'!B3","v":"Budova Českého rozhlasu Brno na adrese Beethovenova 25/4, 657 42 Brno"}]
[]
["Datum vyplnění:",null,{"$f":"'Identifikační údaje'!B5","v":"00:00:00"}]
[]
[{"$f":"CONCATENATE(\"REKAPITULACE DODÁVEK A PRACÍ OBJEKTU \",'Rekapitulace stavby'!I52)","v":"REKAPITULACE DODÁVEK A PRACÍ OBJEKTU SO 03 - Stavebně - architektonická část"}]
[]
["P.č.","Číslo položky","Název položky","Kč bez DPH"]
[]
["Díl:",{"$f":"B78","v":"3"},{"$f":"C78","v":"Svislé a kompletní konstrukce"},null,null,null,{"$f":"G78","v":0}]
["Díl:",{"$f":"B100","v":"43"},{"$f":"C100","v":"Schodiště"},null,null,null,{"$f":"G100","v":0}]
["Díl:",{"$f":"B108","v":"61"},{"$f":"C108","v":"Upravy povrchů vnitřní"},null,null,null,{"$f":"G108","v":0}]
["Díl:",{"$f":"B120","v":"95"},{"$f":"C120","v":"Dokončovací kce na pozem.stav."},null,null,null,{"$f":"G120","v":0}]
["Díl:",{"$f":"B126","v":"96"},{"$f":"C126","v":"Bourání konstrukcí"},null,null,null,{"$f":"G126","v":0}]
["Díl:",{"$f":"B242","v":"99"},{"$f":"C242","v":"Staveništní přesun hmot"},null,null,null,{"$f":"G242","v":0}]
["Díl:",{"$f":"B244","v":"711"},{"$f":"C244","v":"Izolace proti vodě"},null,null,null,{"$f":"G244","v":0}]
["Díl:",{"$f":"B247","v":"766"},{"$f":"C247","v":"Konstrukce truhlářské"},null,null,null,{"$f":"G247","v":0}]
["Díl:",{"$f":"B255","v":"767"},{"$f":"C255","v":"Konstrukce zámečnické"},null,null,null,{"$f":"G255","v":0}]
["Díl:",{"$f":"B297","v":"771"},{"$f":"C297","v":"Kamenné dlažby"},null,null,null,{"$f":"G297","v":0}]
["Díl:",{"$f":"B323","v":"775"},{"$f":"C323","v":"Podlahy vlysové a parketové"},null,null,null,{"$f":"G323","v":0}]
["Díl:",{"$f":"B326","v":"776"},{"$f":"C326","v":"Podlahy povlakové"},null,null,null,{"$f":"G326","v":0}]
["Díl:",{"$f":"B329","v":"782"},{"$f":"C329","v":"Konstrukce z přírodního kamene"},null,null,null,{"$f":"G329","v":0}]
["Díl:",{"$f":"B347","v":"784"},{"$f":"C347","v":"Malby"},null,null,null,{"$f":"G347","v":0}]
[]
[{"$f":"CONCATENATE(\"CELKEM ZA OBJEKT \",'Rekapitulace stavby'!I52, \" v Kč bez DPH\")","v":"CELKEM ZA OBJEKT SO 03 - Stavebně - architektonická část v Kč bez DPH"},null,null,{"$f":"SUM(G27:G41)","v":0}]
[]
[]
[]
[]
[]
[]
[]
[]
[]
[]
[]
[]
[]
[]
[]
[]
[]
[]
[]
[]
[]
[]
[]
[]
[]
[]
[]
[]
[]
[]
[]
[]
[]
["P.č.","Číslo položky","Název položky","MJ","množství","cena / MJ","celkem"]
[null,"Ceník, kapitola","Poznámka uchazeče"]
["Díl:","3","Svislé a kompletní konstrukce",null,null,null,{"$f":"SUBTOTAL(9,G79:G99)","v":0},null,null,null,null,null,null,null,null,null,null,null,null,null,null,null,null,null,null,null,null,"POL",null,null,null,null,null,null,null,21]
[{"$f":"1","v":1},"317001","Překlad z 4x I 140 dl.1100 mm vč.plentování cihlami a rabicem","ka",1,null,{"$f":"E79*F79","v":0}]
[null,null,"suterén:1",null,1]
[{"$f":"A79+1","v":2},"317002","Překlad z 2x I 220 dl.4200 mm vč.plentování cihlami a rabicem","ka",1,null,{"$f":"E81*F81","v":0}]
[null,null,"nad schodištěm:1",null,1]
[{"$f":"A81+1","v":3},"317003","Překlad z 2x I 220 dl.1200 mm vč.plentování cihlami a rabicem","ka",1,null,{"$f":"E83*F83","v":0},null,null,null,null,null,null,null,null,null,null,null,null,null,null,null,null,null,null,1]
[null,null,"nad schodištěm:1",null,1,null,null,null,null,null,null,null,null,null,null,null,null,null,null,null,null,null,null,null,null,null,null,"POL",null,null,null,null,null,null,null,21]
[{"$f":"A83+1","v":4},"317004","Překlad z 2x I 140 dl.1600 mm vč.plentování cihlami a rabicem","ka",1,null,{"$f":"E85*F85","v":0}]
[null,null,"nad okny vrátnice:1",null,1]
[{"$f":"A85+1","v":5},"317005","Překlad z 2x I 100 dl.1600 mm vč.plentování cihlami a rabicem","ka",1,null,{"$f":"E87*F87","v":0},null,null,null,null,null,null,null,null,null,null,null,null,null,null,null,null,null,null,null,null,"POL",null,null,null,null,null,null,null,21]
[null,null,"nad okny vrátnice:1",null,1]
[{"$f":"A87+1","v":6},"310 23-9211.RT2","Zazdívka otvorů plochy do 4 m2 cihlami na MVC s použitím suché maltové směsi","m3",4.2283999999999997,null,{"$f":"E89*F89","v":0}]
[null,null,";vč.provázání se stáv.zdivem",null,0]
[null,null,"1.patro:0,77*1,78*0,625",null,0.85660000000000003]
[null,null,"2.patro:0,795*1,78*0,60",null,0.84909999999999997]
[null,null,"3.patro:0,795*1,78*0,625",null,0.88439999999999996]
[null,null,"4.patro:0,795*1,78*0,625",null,0.88439999999999996]
[null,null,"5.patro:0,70*1,795*0,60",null,0.75390000000000001]
[{"$f":"A89+1","v":7},"342 26-2","Příčka sádrokart. dvoj. oc. kce, 2x opl. tl.125 mm desky protipožární tl. EI45-DP1","m2",18.329999999999998,null,{"$f":"E96*F96","v":0}]
[null,null,";vč.povrchové úpravy",null,0]
[null,null,"mezipatro:(1,72+2,98)*3,90",null,18.329999999999998]
[{"$f":"A96+1","v":8},"34291      N","Zazdění otvoru po vložení stoupaček ","ks",5,null,{"$f":"E99*F99","v":0}]
["Díl:","43","Schodiště",null,null,null,{"$f":"SUBTOTAL(9,G101:G107)","v":0}]
[{"$f":"A99+1","v":9},"430a      Kp/2","Stávající kamenné schodiště - odstranění lepidel, vytmelení, přebroušení, naimpregnování ;vč.teracového soklu v=300 mm","m",88.44,null,{"$f":"E101*F101","v":0}]
[null,null,"přímé schodišťové stupně:66*1,34",null,88.44]
[{"$f":"A101+1","v":10},"430b      Kp/2","Stávající kamenné schodiště - odstranění lepidel, vytmelení, přebroušení, naimpregnování","m",148.74,null,{"$f":"E103*F103","v":0}]
[null,null,";vč.teracového soklu v=300 mm"]
[null,null,"kosé schodišťové stupně:111*1,34",null,148.74]
[{"$f":"A103+1","v":11},"430        Kp/","Stávající kamenné podesty - odstranění lepidel, vytmelení, přebroušení, naimpregnování","m2",62.4,null,{"$f":"E106*F106","v":0},null,null,null,null,null,null,null,null,null,null,null,null,null,null,null,null,null,null,0]
[null,null,";vč.teracového soklu v=300 mm"]
["Díl:","61","Upravy povrchů vnitřní",null,null,null,{"$f":"SUBTOTAL(9,G109:G119)","v":0}]
[{"$f":"A106+1","v":12},"612 47-3182.R00","Omítka vnitřního zdiva ze suché směsi, štuková ","m2",69.835999999999999,null,{"$f":"E109*F109","v":0}]
[null,null,"zazdění instal.průduchů:12,915/0,30",null,43.05,null,null,null,null,null,null,null,null,null,null,null,null,null,null,null,null,null,null,null,null,0]
[null,null,"zazdívky:4,228*2+18,33",null,26.786000000000001]
[{"$f":"A109+1","v":13},"611 10-0013.RAA","Oprava omítek stropů vnitřních vápenocem.štukových oprava z 50 %, malba dvojnásobná otěruvzdorná bílá vč. penetrace","m2",75.48,null,{"$f":"E112*F112","v":0},null,null,null,null,null,null,null,null,null,null,null,null,null,null,null,null,null,null,null,null,"POL",null,null,null,null,null,null,null,21]
[null,null,"3,40*3,70*6",null,75.48]
[{"$f":"A112+1","v":14},"612 10-0033.RAA","Oprava omítek stěn vnitřních vápenocem. štukových oprava z 50 %, malba dvojnásobná otěruvzdorná bílá vč. penetrace","m2",476,null,{"$f":"E114*F114","v":0}]
[null,null,"(4,80+3,70)*2*3,50*8",null,476,null,null,null,null,null,null,null,null,null,null,null,null,null,null,null,null,null,null,null,null,0]
[{"$f":"A114+1","v":15},"61201   A2","Sádrokartonový podhled protipožární REI 30DP1, vč.potřebného lešení a povrchové úpravy","m2",22.1,null,{"$f":"E116*F116","v":0},null,null,null,null,null,null,null,null,null,null,null,null,null,null,null,null,null,null,1]
[null,null,"5.np:22,10",null,22.1,null,null,null,null,null,null,null,null,null,null,null,null,null,null,null,null,null,null,null,null,2]
[{"$f":"A116+1","v":16},"61201   A","Sádrokartonový podhled, vč.potřebného lešení a povrchové úpravy","m2",26.56,null,{"$f":"E118*F118","v":0},null,null,null,null,null,null,null,null,null,null,null,null,null,null,null,null,null,null,null,null,"POL",null,null,null,null,null,null,null,21]
[null,null,"10,50+10,30+5,76",null,26.56]
["Díl:","95","Dokončovací kce na pozem.stav.",null,null,null,{"$f":"SUBTOTAL(9,G121:G125)","v":0}]
[{"$f":"A118+1","v":17},"99001","HZS - nezměřitelné práce ","hod",120,null,{"$f":"E121*F121","v":0}]
[{"$f":"A121+1","v":18},"955","Doplnění stropu venkovní šachty z 2xI160 dl.1805 mm a PZD desek 80/29/6,5 mm","m2",2.13,null,{"$f":"E122*F122","v":0}]
[{"$f":"A122+1","v":19},"950","Uzavření rekonstruovaného prostoru proti šíření prašnosti","kpl.",1,null,{"$f":"E123*F123","v":0},null,null,null,null,null,null,null,null,null,null,null,null,null,null,null,null,null,null,0]
[{"$f":"A123+1","v":20},"952 90-1111.R00","Vyčištění budov o výšce podlaží do 4 m ","m2",147,null,{"$f":"E124*F124","v":0},null,null,null,null,null,null,null,null,null,null,null,null,null,null,null,null,null,null,null,null,"POL",null,null,null,null,null,null,null,21]
[null,null,"7*21,00",null,147]
["Díl:","96","Bourání konstrukcí",null,null,null,{"$f":"SUBTOTAL(9,G127:G241)","v":0},null,null,null,null,null,null,null,null,null,null,null,null,null,null,null,null,null,null,0]
[{"$f":"A124+1","v":21},"962 03-2231.R00","Bourání zdiva z cihel pálených na MVC ","m3",10.781599999999999,null,{"$f":"E127*F127","v":0},null,null,null,null,null,null,null,null,null,null,null,null,null,null,null,null,null,null,null,null,"SPX"]
[null,null,";A",null,0,null,null,null,null,null,null,null,null,null,null,null,null,null,null,null,null,null,null,null,null,null,null,"POL",null,null,null,null,null,null,null,21]
[null,null,"suterén:1,54*2,735*0,30",null,1.2636000000000001]
[null,null,"přízemí:1,45*4,24*0,30",null,1.8444]
[null,null,"mezipatro:1,45*4,24*0,30",null,1.8444]
[null,null,"1.patro:1,45*3,35*0,30",null,1.4573]
[null,null,"2.patro:1,45*3,35*0,30",null,1.4573]
[null,null,"3.patro:1,45*3,35*0,30",null,1.4573,null,null,null,null,null,null,null,null,null,null,null,null,null,null,null,null,null,null,null,null,null,null,"POL",null,null,null,null,null,null,null,21]
[null,null,"4.patro:1,45*3,35*0,30",null,1.4573]
[null,null,"5.patro::1,45*3,350,30",null,0]
[{"$f":"A127+1","v":22},"963 01-251    O","Bourání otvoru pro odvětrání CHÚC ","m2",1.44,null,{"$f":"E137*F137","v":0}]
[null,null,"6.patro:1,20*1,20",null,1.44]
[{"$f":"A137+1","v":23},"971 03-365    A","Vybourání otv. zeď cihel., MVC ","m3",1.08,null,{"$f":"E139*F139","v":0}]
[null,null,";A",null,0,null,null,null,null,null,null,null,null,null,null,null,null,null,null,null,null,null,null,null,null,0]
[null,null,"suterén:0,90*2,00*0,60",null,1.08,null,null,null,null,null,null,null,null,null,null,null,null,null,null,null,null,null,null,null,null,null,null,"SPX"]
[{"$f":"A139+1","v":24},"962 03-1132.R00","Bourání příček cihelných tl. 10 cm ","m2",4.6220999999999997,null,{"$f":"E142*F142","v":0}]
[null,null,";A",null,0]
[null,null,"suterén:(1,05+0,64)*2,735",null,4.6220999999999997]
[{"$f":"A142+1","v":25},"968 06-1125.R00","Vyvěšení dřevěných dveřních křídel pl. do 2 m2 ","kus",16,null,{"$f":"E145*F145","v":0},null,null,null,null,null,null,null,null,null,null,null,null,null,null,null,null,null,null,0]
[null,null,";C",null,0,null,null,null,null,null,null,null,null,null,null,null,null,null,null,null,null,null,null,null,null,null,null,"POL",null,null,null,null,null,null,null,21]
[null,null,"suterén:1",null,1]
[null,null,"přízemí:2",null,2]
[null,null,"mezioatro:3",null,3]
[null,null,"1.patro:2",null,2]
[null,null,"2.patro:2",null,2]
[null,null,"3.patro:2",null,2]
[null,null,"4.patro:2",null,2]
[null,null,"5.patro:2",null,2,null,null,null,null,null,null,null,null,null,null,null,null,null,null,null,null,null,null,null,null,0]
[{"$f":"A145+1","v":26},"971 03-366    N","Vybourání otvoru pro novou stupačku ","m3",1.2594000000000001,null,{"$f":"E155*F155","v":0}]
[null,null,"mezipatro:0,30*4,24*0,20",null,0.25440000000000002]
[null,null,"1.patro:0,30*3,35*0,20",null,0.20100000000000001]
[null,null,"2.patro:0,30*3,35*0,20",null,0.20100000000000001]
[null,null,"3.patro:0,30*3,35*0,20",null,0.20100000000000001]
[null,null,"4.patro:0,30*3,35*0,20",null,0.20100000000000001]
[null,null,"5.patro:0,30*3,35*0,20",null,0.20100000000000001]
[{"$f":"A155+1","v":27},"968 06-245","Vybourání dveřních zárubní pl. do 2 m2 ","m2",25.974499999999999,null,{"$f":"E162*F162","v":0}]
[null,null,";C",null,0]
[null,null,"suterén:0,80*2,00*1",null,1.6,null,null,null,null,null,null,null,null,null,null,null,null,null,null,null,null,null,null,null,null,0]
[null,null,"přízemí:0,95*2,00+1,00*2,00",null,3.9]
[null,null,"mezipatro:0,85*1,97+1,40*2,00",null,4.4744999999999999]
[null,null,"1.patro:1,40*2,00",null,2.8]
[null,null,"2.patro:1,40*2,00",null,2.8]
[null,null,"3.patro:1,40*2,00",null,2.8]
[null,null,"4.patro:1,40*2,00",null,2.8]
[null,null,"5.patro:1,00*2,00*1,20*2,00",null,4.8]
[{"$f":"A162+1","v":28},"968 06","Vybourání dveří Zpd/6 a Zpd/7 a jejich uskladnění","ks",2,null,{"$f":"E172*F172","v":0}]
[{"$f":"A172+1","v":29},"776 51        D","Odstranění PVC a koberců ","m2",316,null,{"$f":"E173*F173","v":0}]
[null,null,";PVC 2x",null,0,null,null,null,null,null,null,null,null,null,null,null,null,null,null,null,null,null,null,null,null,0]
[null,null,"prízemí:(10,50+10,30+20,10)*2",null,81.8,null,null,null,null,null,null,null,null,null,null,null,null,null,null,null,null,null,null,null,null,null,null,"SPX"]
[null,null,"mezipatro:17,90*2",null,35.799999999999997,null,null,null,null,null,null,null,null,null,null,null,null,null,null,null,null,null,null,null,null,null,null,"POL",null,null,null,null,null,null,null,21]
[null,null,"1.patro:17,90*2",null,35.799999999999997]
[null,null,"2.patro:19,10*2",null,38.200000000000003]
[null,null,"3.patro:21,00*2",null,42]
[null,null,"4.patro:19,10*2",null,38.200000000000003]
[null,null,"5.patro:22,10*2",null,44.2]
[{"$f":"A173+1","v":30},"96956         G","Odstranění podhledů vč.podkladního roštu ","n2",10.3,null,{"$f":"E182*F182","v":0}]
[null,null,";G",null,0,null,null,null,null,null,null,null,null,null,null,null,null,null,null,null,null,null,null,null,null,0]
[null,null,"přízemí:10,30",null,10.3,null,null,null,null,null,null,null,null,null,null,null,null,null,null,null,null,null,null,null,null,null,null,"SPX"]
[{"$f":"A182+1","v":31},"965 02-4121.R00","Bourání kamenných podlah z desek plochy do 1 m2 ","m2",9.7864000000000004,null,{"$f":"E185*F185","v":0},null,null,null,null,null,null,null,null,null,null,null,null,null,null,null,null,null,null,null,null,"POL",null,null,null,null,null,null,null,21]
[null,null,";Kp/m",null,0]
[null,null,";přízemí",null,0]
[null,null,"Kp/m1:0,665*0,975*4",null,2.5935000000000001]
[null,null,"Kp/m2:1,35*1,33*1",null,1.7955000000000001]
[null,null,"Kp/m3:0,52*1,57*1",null,0.81640000000000001]
[null,null,"Kp/m4:1,40*0,255*1",null,0.35699999999999998]
[null,null,";mezipatro",null,0]
[null,null,"Kp/m5:0,40*1,30*4",null,2.08]
[null,null,";3.patro",null,0]
[null,null,"Kp/m6:1,60*0,67*1",null,1.0720000000000001]
[null,null,";4.patro",null,0]
[null,null,"Kp/m6:1,60*0,67*1",null,1.0720000000000001]
[{"$f":"A185+1","v":32},"978 05-9521.R00","Odsekání vnitřních obkladů stěn ","m2",23.81,null,{"$f":"E198*F198","v":0}]
[null,null,";M",null,0]
[null,null,"přźemí:1,60*2,60+0,60*1,75",null,5.21]
[null,null,"mezipatro:(0,405+0,74+0,405)*2,00",null,3.1]
[null,null,"1.patro:(0,405+0,74+0,405)*2,00",null,3.1]
[null,null,"2.patro:(0,405+0,74+0,405)*2,00",null,3.1]
[null,null,"3.patro:(0,405+0,74+0,405)*2,00",null,3.1]
[null,null,"4.patro:(0,405+0,74+0,405)*2,00",null,3.1]
[null,null,"5.patro:(0,405+0,74+0,405)*2,00",null,3.1]
[{"$f":"A198+1","v":33},"96807-        W","Demontáž radiátorů ","ks",7,null,{"$f":"E207*F207","v":0}]
[null,null,"přízemí:1",null,1]
[null,null,"mezipatro:1",null,1]
[null,null,"1.patro:1",null,1]
[null,null,"2.patro:1",null,1]
[null,null,"3.patro:1",null,1]
[null,null,"4.patro:1",null,1]
[null,null,"5.patro:1",null,1]
[{"$f":"A207+1","v":34},"776 20-082","Odstranění PVC podlah lepených .-  ze schodišť ","m",466.32,null,{"$f":"E215*F215","v":0}]
[null,null,"174*1,34*2",null,466.32]
[{"$f":"A215+1","v":35},"972 05-4      O","Vybourání otvoru  ve stropě ","kus",6,null,{"$f":"E217*F217","v":0}]
[null,null,"mezipatro:1",null,1]
[null,null,"1.patro:1",null,1]
[null,null,"2.patro:1",null,1]
[null,null,"3.patro:1",null,1]
[null,null,"4.patro:1",null,1]
[null,null,"5.patro:1",null,1]
[{"$f":"A217+1","v":36},"9608         EL","Vybourání el. rozvaděče ","ks",6,null,{"$f":"E224*F224","v":0}]
[null,null,"mezipatro:1",null,1]
[null,null,"1.patro:1",null,1]
[null,null,"2.patro:1",null,1]
[null,null,"3.patro:1",null,1]
[null,null,"4.patro:1",null,1]
[null,null,"5.patro:1",null,1]
[{"$f":"A224+1","v":37},"979 01-1211.R00","Svislá doprava suti a vybour. hmot za 2.NP nošením ","t",35.9,null,{"$f":"E231*F231","v":0}]
[{"$f":"A231+1","v":38},"979 01-1219.R00","Přípl.k svislé dopr.suti za každé další NP nošením ","t",107.7,null,{"$f":"E232*F232","v":0},null,null,null,null,null,null,null,null,null,null,null,null,null,null,null,null,null,null,null,null,"SPX"]
[null,null,"3*35,90",null,107.7,null,null,null,null,null,null,null,null,null,null,null,null,null,null,null,null,null,null,null,null,null,null,"POL_NEZ",1,null,null,null,null,null,null,21]
[{"$f":"A232+1","v":39},"979 08-2111.R00","Vnitrostaveništní doprava suti do 10 m ","t",35.9,null,{"$f":"E234*F234","v":0},null,null,null,null,null,null,null,null,null,null,null,null,null,null,null,null,null,null,0]
[{"$f":"A234+1","v":40},"979 08-2121.R00","Příplatek k vnitrost. dopravě suti za dalších 5 m ","t",71.8,null,{"$f":"E235*F235","v":0},null,null,null,null,null,null,null,null,null,null,null,null,null,null,null,null,null,null,null,null,"POL",null,null,null,null,null,null,null,21]
[null,null,"2*35,90",null,71.8]
[{"$f":"A235+1","v":41},"979 08-1111.R00","Odvoz suti a vybour. hmot na skládku do 1 km ","t",35.9,null,{"$f":"E237*F237","v":0},null,null,null,null,null,null,null,null,null,null,null,null,null,null,null,null,null,null,null,null,"POL",null,null,null,null,null,null,null,21]
[{"$f":"A237+1","v":42},"979 08-1121.R00","Příplatek k odvozu za každý další 1 km ","t",682.1,null,{"$f":"E238*F238","v":0},null,null,null,null,null,null,null,null,null,null,null,null,null,null,null,null,null,null,null,null,"POL",null,null,null,null,null,null,null,21]
[null,null,"19*35,90",null,682.1]
[{"$f":"A238+1","v":43},"979 093111","Uložení suti na skládku bez zhuznění ","t",35.9,null,{"$f":"E240*F240","v":0},null,null,null,null,null,null,null,null,null,null,null,null,null,null,null,null,null,null,0]
[{"$f":"A240+1","v":44},"979 99-999","Poplatek za skladku ","t",35.9,null,{"$f":"E241*F241","v":0},null,null,null,null,null,null,null,null,null,null,null,null,null,null,null,null,null,null,1]
["Díl:","99","Staveništní přesun hmot",null,null,null,{"$f":"SUBTOTAL(9,G243)","v":0},null,null,null,null,null,null,null,null,null,null,null,null,null,null,null,null,null,null,0]
[{"$f":"A241+1","v":45},"999 28-1112.R00","Přesun hmot pro opravy a údržbu do výšky 36 m ","t",32.869999999999997,null,{"$f":"E243*F243","v":0},null,null,null,null,null,null,null,null,null,null,null,null,null,null,null,null,null,null,null,null,"POL",null,null,null,null,null,null,null,21]
["Díl:","711","Izolace proti vodě",null,null,null,{"$f":"SUBTOTAL(9,G245:G246)","v":0},null,null,null,null,null,null,null,null,null,null,null,null,null,null,null,null,null,null,1]
[{"$f":"A243+1","v":46},"71132","Hydroizolace proti vodě - výtahová šachta, z asfaltových modifikovaných pásů (sklobit mineral 40), ve dvou vrstvách","m2",8.6199999999999992,null,{"$f":"E245*F245","v":0},null,null,null,null,null,null,null,null,null,null,null,null,null,null,null,null,null,null,null,null,"POL",null,null,null,null,null,null,null,21]
[null,null,"1,90*1,40+(1,905+1,40)*2*0,90",null,8.6199999999999992]
["Díl:","766","Konstrukce truhlářské",null,null,null,{"$f":"SUBTOTAL(9,G248:G254)","v":0},null,null,null,null,null,null,null,null,null,null,null,null,null,null,null,null,null,null,null,null,"POL_NEZ",1,null,null,null,null,null,null,21]
[{"$f":"A245+1","v":47},"766      Tpo/2a","Okenní sestava  1350/2700 mm repase - očištění, obroušení, nový nátěr","ks",1,null,{"$f":"E248*F248","v":0}]
[null,null,"oprava a doplnění kování:1",null,1]
[{"$f":"A248+1","v":48},"766      Tpd/1","Repase stávajících dveří dýhovaných vč.zárubně 850/1970mm , překování otevíranosti, PBŘ úpravy","ks",1,null,0,null,null,null,null,null,null,null,null,null,null,null,null,null,null,null,null,null,null,null,null,"DIL"]
[{"$f":"A250+1","v":49},"766      Tpd/9d","Repase stávajících dveří vč.zárubně 850/2000mm ","ks",1,null,0,null,null,null,null,null,null,null,null,null,null,null,null,null,null,null,null,null,null,0]
[{"$f":"A251+1","v":50},"766      Tn/11","Nábytek vrátnice - viz výkres D.1.1.c.1 ","ks",1,null,0,null,null,null,null,null,null,null,null,null,null,null,null,null,null,null,null,null,null,null,null,"SPX"]
[null,"poznámka 1","Truhlářské  konstrukce jsou kompletní výrobky dle popisu v tabulkách","  "]
[null,"poznámka 2","Truhlářské  výrobky jsou vč.přesunu hmot ","  "]
["Díl:","767","Konstrukce zámečnické",null,null,null,{"$f":"SUBTOTAL(9,G256:G296)","v":0}]
[{"$f":"A252+1","v":51},"767       Zp/2","Zábradlí hlavního schodiště - očištění, zrestaurování, nový nátěr, vše vč.madla","m",36.14,null,{"$f":"E256*F256","v":0}]
[{"$f":"A256+1","v":52},"767       Zp/4b","Zábradlí schodiště před oknem - očištění, zrestaurování, nový nátěr, vše vč.madla","m",6.2,null,0,null,null,null,null,null,null,null,null,null,null,null,null,null,null,null,null,null,null,1]
[{"$f":"A257+1","v":53},"767       Zp/4a","Zábradlí schodiště u výtahové šachty - očištění, zrestaurování, nový nátěr, vše vč.madla","m",5.2,null,0]
[{"$f":"A258+1","v":54},"767       Zp/4b","Zábradlí schodiště před oknem - očištění, zrestaurování, nový nátěr, vše vč.madla","m",2.16,null,0]
[{"$f":"A259+1","v":55},"767       Zp/7a","Okenní mříže v přízemí  - očištění, zrestaurování, nový nátěr, vč.doplnění pošk.prvků, 1350x2700","ks",1,null,0,null,null,null,null,null,null,null,null,null,null,null,null,null,null,null,null,null,null,null,null,"POL",null,null,null,null,null,null,null,21]
[56,"767       Zp/7b","Okenní mříže v přízemí  - očištění, zrestaurování, nový nátěr, vč.doplnění pošk.prvků, 1350x540","ks",2,null,0]
[57,"767       Zp/10","Dvířka hydrantu  na schodišti - očištění, zrestaurování, nový nátěr,","ks",7,null,0,null,null,null,null,null,null,null,null,null,null,null,null,null,null,null,null,null,null,0]
[58,"767       Zp/20","Čistící zóna","ks",2,null,0,null,null,null,null,null,null,null,null,null,null,null,null,null,null,null,null,null,null,1]
[59,"767       Zp/21","perforovaná mříž 1350 x x540 mm","ks",1,null,0,null,null,null,null,null,null,null,null,null,null,null,null,null,null,null,null,null,null,null,null,"POL",null,null,null,null,null,null,null,21]
[60,"767b    Zpo/1d","Okno schodišť.2x1000/16500 mm - očištění, zrestaurování, nový nátěr,","ks",1,null,0]
[61,"767a    Zpo/1c","Okno schodišť.2x1000/5500 mm - očištění, zrestaurování, nový nátěr,","ks",1,null,0,null,null,null,null,null,null,null,null,null,null,null,null,null,null,null,null,null,null,0]
[{"$f":"A266+1","v":62},"767     Zpd/3","Dveře vstupní proskl.2kř 1700/2130 mm - očištění, zrestaurování, nový nátěr,","ks",1,null,{"$f":"E267*F267","v":0},null,null,null,null,null,null,null,null,null,null,null,null,null,null,null,null,null,null,null,null,"POL",null,null,null,null,null,null,null,21]
[{"$f":"A267+1","v":63},"767     Zpd/5","Dveře do schod.proskl.2kř 1390/2130 mm - repase očištění, obrouš.nový nátěr, nové přesklení","ks",2,null,0]
[null,null,"vč.samozavírače:5",null,5]
[{"$f":"A268+1","v":64},"767     Zno/1R","Roleta v okně.do vrátnice  1300/890 mm protipožární EI30DP1-C3-Sm","ks",1,null,0,null,null,null,null,null,null,null,null,null,null,null,null,null,null,null,null,null,null,0]
[{"$f":"A270+1","v":65},"767     Zno/2","Okno ocel.do vrátnice  1300/980 mm - nové","ks",1,null,0,null,null,null,null,null,null,null,null,null,null,null,null,null,null,null,null,null,null,1]
[{"$f":"A271+1","v":66},"767     Zno/4","Okno ocel.do vrátnice   1190/980 mm - nové","ks",1,null,0,null,null,null,null,null,null,null,null,null,null,null,null,null,null,null,null,null,null,null,null,"POL",null,null,null,null,null,null,null,21]
[{"$f":"A272+1","v":67},"767     Zno/3","Okno fixni 1110/1750 mm - nové","ks",1,null,0]
[{"$f":"A273+1","v":68},"767     Zn/3","mříž do chodníku 1550/1050 mm - nové","ks",1,null,{"$f":"E274*F274","v":0},null,null,null,null,null,null,null,null,null,null,null,null,null,null,null,null,null,null,1]
[{"$f":"A274+1","v":69},"767     Zn/5","zábradlí suterénu","ks",1,null,0,null,null,null,null,null,null,null,null,null,null,null,null,null,null,null,null,null,null,null,null,"POL",null,null,null,null,null,null,null,21]
[70,"767     Zn/6","protipožární dvířka na výtahovém rozvaděči 350/2100","ks",1,null,0]
[71,"767     Zn/7","žaluzie kryjící VZT výustku","ks",1,null,0,null,null,null,null,null,null,null,null,null,null,null,null,null,null,null,null,null,null,0]
[72,"767     Zn/9","stupadla - ocelové úchyty v suterénu","ks",8,null,0,null,null,null,null,null,null,null,null,null,null,null,null,null,null,null,null,null,null,1]
[73,"767       Zn/18","Litinové radiátory na schodišti - vový - kopie původních, 500x800x150","ks",1,null,0,null,null,null,null,null,null,null,null,null,null,null,null,null,null,null,null,null,null,null,null,"POL",null,null,null,null,null,null,null,21]
[74,"767     Zn/19","protidešťová mřížka 710x1350","ks",1,null,0]
[75,"767     Zn/20","popisky pater z nerezového plechu tl. 15 mm","ks",7,null,0,null,null,null,null,null,null,null,null,null,null,null,null,null,null,null,null,null,null,0]
[76,"767     Zn/21","zábradlí do suterénu - nové ","ks",1,null,0,null,null,null,null,null,null,null,null,null,null,null,null,null,null,null,null,null,null,1]
[77,"767     Zn/24","krytí kondenzačních jednotek včetně betonového základu - nové ","ks",1,null,0,null,null,null,null,null,null,null,null,null,null,null,null,null,null,null,null,null,null,null,null,"POL",null,null,null,null,null,null,null,21]
[78,"767     Zn/25","stěna z tahokovu, viz výkres D 1.1.b24 - nové ","ks",1,null,0]
[79,"767     Zn/26","schůdky - přechod přes VZT k vodoměru v suterénu - nové ","ks",1,null,0,null,null,null,null,null,null,null,null,null,null,null,null,null,null,null,null,null,null,0]
[80,"767     Znd/1","Dveře do schod. 1kř.proskl. s mříží 815/2000mm vč.zárubně nové, pož.EI30-DP1-C3-Sm","ks",2,null,0]
[{"$f":"A286+1","v":81},"767     Zpd/11","Dveře do schodiště 1kř.proskl.  s mříží 815/1930mm vyjmutí a uložení k druhotnému použití","ks",2,null,0]
[{"$f":"A287+1","v":82},"767     Zn/30","SDK dvířka s pož.odolností EI 30 DP1 800/1000 mm kouřotěsné (S200) ","ks",7,null,{"$f":"E288*F288","v":0}]
[{"$f":"A288+1","v":83},"767     Znd/2","Dveře do schod. 2kř.proskl. s mříží 1470/2000mm vč.zárubně nové, pož.EI30-DP1-C3-Sm","ks",5,null,0,null,null,null,null,null,null,null,null,null,null,null,null,null,null,null,null,null,null,null,null,"SPX"]
[null,null,"panikové kování, samozavírač:5",null,5]
[{"$f":"A289+1","v":84},"767     Znd/3","Dveře do schod. 1kř.proskl. s mříží 1050/2000mm vč.zárubně nové, pož.EI15-DP1-C-Sm","ks",1,null,0,null,null,null,null,null,null,null,null,null,null,null,null,null,null,null,null,null,null,1]
[85,"767     Znd/4","Dveře do schod. 1kř.proskl. s mříží 810/2000mm vč.zárubně nové, pož.EI15-DP1-C-Sm","ks",1,null,0,null,null,null,null,null,null,null,null,null,null,null,null,null,null,null,null,null,null,null,null,"POL",null,null,null,null,null,null,null,21]
[86,"767     Zpo/7","Dveře v přízení 1kř.celoproskl. 1110/1750 mm repase","ks",1,null,0]
[87,"767     Zpo/9","Okno ve vrátnici kruhové v mosaz.rámu DN300 mm D+M","ks",1,null,0,null,null,null,null,null,null,null,null,null,null,null,null,null,null,null,null,null,null,0]
[null,"poznámka 1","Zámečnické konstrukce jsou kompletní výrobky dle popisu v tabulkách","  ",null,null,null,null,null,null,null,null,null,null,null,null,null,null,null,null,null,null,null,null,null,null,null,"SPX"]
[null,"poznámka 2","Zámečnické výrobky jsou vč.přesunu hmot ","  ",null,null,null,null,null,null,null,null,null,null,null,null,null,null,null,null,null,null,null,null,null,1]
["Díl:","771","Kamenné dlažby",null,null,null,{"$f":"SUBTOTAL(9,G298:G322)","v":0}]
[{"$f":"A294+1","v":88},"772      Kp/d1","Mramorová dlaždice 665/975 mm - doplnění dlažby D+M","ks",4,null,{"$f":"E298*F298","v":0},null,null,null,null,null,null,null,null,null,null,null,null,null,null,null,null,null,null,0]
[{"$f":"A298+1","v":89},"772      Kp/d2","Mramorová dlaždice 1355/1330 mm - doplnění dlažby D+M","ks",1,null,{"$f":"E299*F299","v":0},null,null,null,null,null,null,null,null,null,null,null,null,null,null,null,null,null,null,1]
[{"$f":"A299+1","v":90},"772      Kp/d3","Mramorová dlaždice 520/1570 mm - doplnění dlažby D+M","ks",1,null,{"$f":"E300*F300","v":0},null,null,null,null,null,null,null,null,null,null,null,null,null,null,null,null,null,null,null,null,null,null,null,null,null,null,null,null,null,null,null,null,null,null,null,null,null,null,null,null,null,null,{"$f":"C300","v":"Mramorová dlaždice 520/1570 mm - doplnění dlažby D+M"}]
[{"$f":"A300+1","v":91},"772      Kp/d4","Mramorová dlaždice 1400/255 mm - doplnění dlažby D+M","ks",1,null,0]
[92,"772      Kp/d5","Mramorová dlaždice 1350/655 mm - doplnění dlažby D+M","ks",1,null,0]
[93,"772      Kp/d6","Mramorová dlaždice 1300/400 mm - doplnění dlažby D+M","ks",3,null,0]
[94,"772      Kp/d7","Mramorová dlaždice 1580/670 mm - doplnění dlažby D+M","ks",1,null,0]
[95,"772      Kp/v","Mramorová dlaždice 1350/100 mm - doplnění dlažby D+M","ks",7,null,0]
[96,"772      Kp/d","Mramorová dlaždice 1475/178 mm - doplnění dlažby D+M","ks",5,null,0]
[97,"772      Kp/o1","Mramorová dlaždice 1350/655 mm - oprava dlažby ","ks",3,null,0]
[98,"772      Kp/o2","Mramorová dlaždice 655/975 mm - oprava dlažby ","ks",5,null,0]
[99,"772      Kp/o3","Mramorová dlaždice 400/1400 mm - oprava dlažby ","ks",1,null,0]
[100,"772      Kp/o4","Mramorová dlaždice 1350/1330 mm - oprava dlažby ","ks",1,null,0]
[101,"772      Kp/o5","Mramorová dlaždice 520/1570 mm - oprava dlažby ","ks",1,null,0]
[102,"772      Kp/o6","Mramorová dlaždice 520/1570 mm - oprava dlažby ","ks",1,null,0]
[103,"772      Kp/o7","Mramorová dlaždice 670/1480 mm - oprava dlažby ","ks",1,null,0]
[104,"772      Kp/o8","Mramorová dlaždice 1000/1480 mm - oprava dlažby ","ks",1,null,0]
[105,"772      Kp/o9","Mramorová dlaždice 670/1480 mm - oprava dlažby ","ks",1,null,0]
[106,"772      Kp/o11","Mramorová dlaždice 650/1640 mm - oprava dlažby ","ks",1,null,0]
[107,"772      Kp/o10","Mramorová dlaždice 320/2400 mm - oprava dlažby ","ks",1,null,0]
[{"$f":"A317+1","v":108},"772      Kn/1","Výměna porušených obkladaček obkladů niky radiátorů z dobových obkladaček vybouraných v rámci objektu SO 04, předpoklad obnovy plochy v rozsahu 30% (vysekání jednotlivých obkladaček a jejich jednotlivé doložení do plochy obkladu) ","m2",18.12,null,0,null,null,null,null,null,null,null,null,null,null,null,null,null,null,null,null,null,null,0]
[{"$f":"A318+1","v":109},"772      Kn/6","Mramorová dlažba vč.soklíku D+M ","m2",6.9119999999999999,null,0,null,null,null,null,null,null,null,null,null,null,null,null,null,null,null,null,null,null,1]
[null,null,"5,76*1,20",null,6.9119999999999999]
[null,"poznámka 1","Kamenné dlažby jsou kompletní výrobky dle popisu v tabulkách"]
[null,"poznámka 2","Kamenné dlažby jsou včetně přesunu hmot "]
["Díl:","775","Podlahy vlysové a parketové",null,null,null,{"$f":"SUBTOTAL(9,G324:G325)","v":0},null,null,null,null,null,null,null,null,null,null,null,null,null,null,null,null,null,null,null,null,null,null,null,null,null,null,null,null,null,null,null,null,null,null,null,null,null,null,null,null,null,null,{"$f":"C323","v":"Podlahy vlysové a parketové"}]
[{"$f":"A319+1","v":110},"775 5","Repase stávajících vlysů (výměna vlysů na cca 15% plochy, tmelení celoplošné, broušení celoplošné, lak základní + 2x vrchní zátěžový, olištování lištami z masivu) ","m2",11,null,{"$f":"E324*F324","v":0}]
[null,null,"P6:11,00",null,11,null,null,null,null,null,null,null,null,null,null,null,null,null,null,null,null,null,null,null,null,0]
["Díl:","776","Podlahy povlakové",null,null,null,{"$f":"SUBTOTAL(9,G327:G328)","v":0},null,null,null,null,null,null,null,null,null,null,null,null,null,null,null,null,null,null,null,null,"SPX"]
[{"$f":"A324+1","v":111},"776 57-001","Podlaha povlaková textilní - antistatický zátěžový koberec vč.olištování  D+M","m2",12.1,null,{"$f":"E327*F327","v":0},null,null,null,null,null,null,null,null,null,null,null,null,null,null,null,null,null,null,1]
[null,null,"P6:11,00*1,10",null,12.1,null,null,null,null,null,null,null,null,null,null,null,null,null,null,null,null,null,null,null,null,null,null,"POL",null,null,null,null,null,null,null,21]
["Díl:","782","Konstrukce z přírodního kamene",null,null,null,{"$f":"SUBTOTAL(9,G330:G346)","v":0},null,null,null,null,null,null,null,null,null,null,null,null,null,null,null,null,null,null,0]
[{"$f":"A327+1","v":112},"            Kp/2","Schodiště z přízemí do 5patra - obsaženo v od.43 schodiště",null,null,null,null,null,null,null,null,null,null,null,null,null,null,null,null,null,null,null,null,null,null,null,null,"SPX"]
[{"$f":"A330+1","v":113},"782      Kp/6e","Kamenné ostění okna - carrara mramor  D+M doplnění","m2",1.62,null,{"$f":"E331*F331","v":0},null,null,null,null,null,null,null,null,null,null,null,null,null,null,null,null,null,null,1]
[{"$f":"A331+1","v":114},"782      Kp/8a","Kamenné ostění oken v přízemí do ulice - ryolit  oprava a očištění v š=150 mm","m",9.3000000000000007,null,0,null,null,null,null,null,null,null,null,null,null,null,null,null,null,null,null,null,null,null,null,"POL",null,null,null,null,null,null,null,21]
[null,null,"(1,65+3,00)*2",null,9.3000000000000007,null,null,null,null,null,null,null,null,null,null,null,null,null,null,null,null,null,null,null,null,null,null,null,null,null,null,null,null,null,null,null,null,null,null,null,null,null,null,null,null,null,null,null,null,{"$f":"C333","v":"(1,65+3,00)*2"}]
[{"$f":"A332+1","v":115},"782      Kp/11a","Kamenné ostění oken na schodišti - ryolit  oprava a očištění v š=150 mm","m",36.03,null,0]
[null,null,"(1,30+16,710)*2",null,36.03]
[{"$f":"A334+1","v":116},"782      Kp/11b","Kamenné ostění oken na schodišti - ryolit  oprava a očištění v š=150 mm","m",14.2,null,0]
[null,null,"(1,30+5,80)*2",null,14.2]
[{"$f":"A336+1","v":117},"782      Kp/15","Kamenné ostění vedlejšího vstupu exterier-ryolit  oprava a očištění ","m2",3.51,null,{"$f":"E338*F338","v":0}]
[null,null,"0,65*1,05*2+(2,215+1,70+2,215)*0,35",null,3.51]
[{"$f":"A338+1","v":118},"782      Kp/15","Kamenné ostění vedlejšího vstupu interier-ryolit  oprava a očištění ","m2",7.78,null,0]
[null,null,"(2,39+1,70+2,39)*1,20",null,7.78]
[{"$f":"A340+1","v":119},"772      Kn/2","Parapet v oknu vrátnice 1,1 m2","m2",1.1000000000000001,null,0]
[{"$f":"A342+1","v":120},"772      Kn/3","Mramorový soklík","m2",1.1000000000000001,null,0]
[121,"782      Kpo/1","Okno vrátnice - schodiště - vyčištění kamene vytmelení, přebroušení a impregnace","ks",1,null,0]
[null,"poznámka 1","Kamenické konstrukce jsou kompletní výrobky dle popisu v tabulkách","  ",null,null,null,null,null,null,null,null,null,null,null,null,null,null,null,null,null,null,null,null,null,1]
[null,"poznámka 2","Kamenické výrobky jsou vč.přesunu hmot ","  ",null,null,null,null,null,null,null,null,null,null,null,null,null,null,null,null,null,null,null,null,null,null,null,"POL",null,null,null,null,null,null,null,21]
["Díl:","784","Malby",null,null,null,{"$f":"SUBTOTAL(9,G348:G350)","v":0}]
[{"$f":"A344+1","v":122},"784 45-0030.RA0","Malba ze směsi , penetrace 1x, bílá 2x ","m2",69.84,null,{"$f":"E348*F348","v":0}]
[null,null,"zazdívky:69,84",null,69.84]
[null,null,"ostatní výmalby schodiště jsou obsaženy v od.61 pol.13, 14 "]
[null,null,null,null,null,null,null,null,null,null,null,null,null,null,null,null,null,null,null,null,null,null,null,null,null,null,null,null,null,null,null,null,null,null,null,null,{"$f":"SUMIF(AJ78:AJ350,#REF!,G78:G350)","v":0},{"$f":"SUMIF(AJ78:AJ350,#REF!,G78:G350)","v":0}]

{"sheet":"02_SO O3 - Silnoproud","index":6,"n_rows":112,"n_cols":9,"rows_kept":112,"cut":false,"hidden":false,"merged":[[32,1,32,2],[38,5,38,6],[38,7,38,8],[40,5,40,6],[40,7,40,8],[32,5,32,6],[50,5,50,6],[24,1,24,2],[26,1,26,2],[27,1,27,2],[28,1,28,2],[29,1,29,2],[36,0,36,8],[26,7,26,8],[27,7,27,8],[28,7,28,8],[29,7,29,8],[30,7,30,8],[32,7,32,8],[34,7,34,8],[32,3,32,4],[26,5,26,6],[27,5,27,6],[28,5,28,6],[29,5,29,6],[30,5,30,6],[31,5,31,6],[31,1,31,2],[26,3,26,4],[27,3,27,4],[28,3,28,4],[29,3,29,4],[30,3,30,4],[31,3,31,4],[30,1,30,2],[87,5,87,6],[87,7,87,8],[31,7,31,8],[4,0,4,8],[50,7,50,8],[62,5,62,6],[62,7,62,8],[69,5,69,6],[69,7,69,8],[79,5,79,6],[79,7,79,8],[83,5,83,6],[83,7,83,8],[24,3,24,4],[24,5,24,6],[24,7,24,8]]}
[{"$f":"CONCATENATE('Rekapitulace stavby'!C53,\"_\",'Rekapitulace stavby'!I53)","v":"02_SO 03 - Silnoproudá elektroinstalace "}]
[]
["SPECIFIKACE DODÁVEK A PRACÍ "]
["Název akce:"]
[{"$f":"'Identifikační údaje'!B1","v":"ČRo Brno – II. etapa rekonstrukce budovy Beethovenova 25/4"}]
[]
["Zadavatel:",null,{"$f":"'Identifikační údaje'!B7","v":"Český rozhlas"}]
[null,"IČ:",{"$f":"'Identifikační údaje'!B9","v":45245053}]
[null,"DIČ:",{"$f":"'Identifikační údaje'!B10","v":"CZ45245053"}]
[]
["Projektant:",null,{"$f":"'Identifikační údaje'!B12","v":"Ing. arch. Klement Miloš"}]
[null,"IČ:",{"$f":"'Identifikační údaje'!B14","v":15188736}]
[null,"DIČ:",{"$f":"'Identifikační údaje'!B15","v":"CZ6101021344"}]
[]
["Uchazeč:",null,{"$f":"'Identifikační údaje'!E19","v":", ,  "}]
[null,"IČ:",{"$f":"'Identifikační údaje'!B23","v":0}]
[null,"DIČ:",{"$f":"'Identifikační údaje'!B24","v":0}]
[]
["Místo stavby:",null,{"$f":"'Identifikační údaje'!B3","v":"Budova Českého rozhlasu Brno na adrese Beethovenova 25/4, 657 42 Brno"}]
[]
["Datum:",null,{"$f":"'Identifikační údaje'!B5","v":"00:00:00"}]
[]
[{"$f":"CONCATENATE(\"REKAPITULACE DODÁVEK A PRACÍ OBJEKTU \",'Rekapitulace stavby'!I53)","v":"REKAPITULACE DODÁVEK A PRACÍ OBJEKTU SO 03 - Silnoproudá elektroinstalace "}]
[]
["P.č.","Ozn.",null,"Materiál celkem",null,"Montáž celkem",null,"M+M celkem"]
[]
[{"$f":"B41","v":"A."},{"$f":"C41","v":"Svítidla a příslušenství"},null,{"$f":"F41","v":0},null,{"$f":"H41","v":0},null,{"$f":"D27+F27","v":0}]
[{"$f":"B51","v":"B."},{"$f":"C51","v":"Spínače, zásuvky a ostatní přístroje "},null,{"$f":"F51","v":0},null,{"$f":"H51","v":0},null,{"$f":"D28+F28","v":0}]
[{"$f":"B63","v":"C."},{"$f":"C63","v":"Instalační, úložný a ochranný materiál"},null,{"$f":"F63","v":0},null,{"$f":"H63","v":0},null,0]
[{"$f":"B70","v":"D."},{"$f":"C70","v":"Kabely a vodiče"},null,{"$f":"F70","v":0},null,{"$f":"H70","v":0},null,0]
[{"$f":"B80","v":"E."},{"$f":"C80","v":"Pospojování, uzemnění"},null,{"$f":"F80","v":0},null,{"$f":"H80","v":0},null,0]
[{"$f":"B84","v":"F."},{"$f":"C84","v":"Rozvaděče"},null,{"$f":"F84","v":0},null,{"$f":"H84","v":0},null,{"$f":"D32+F32","v":0}]
[{"$f":"B88","v":"G."},{"$f":"C88","v":"Ostatní"},null,{"$f":"F88","v":0},null,{"$f":"H88","v":0},null,{"$f":"D33+F33","v":0}]
[]
[{"$f":"CONCATENATE(\"CELKEM ZA OBJEKT \",'Rekapitulace stavby'!I53, \" v Kč bez DPH\")","v":"CELKEM ZA OBJEKT SO 03 - Silnoproudá elektroinstalace  v Kč bez DPH"},null,null,null,null,null,null,{"$f":"SUBTOTAL(9,H27:I33)","v":0}]
[]
["Textová, výkresová i tabulková část projektové dokumentace tvoří jeden vzájemně se doplňující a provázaný celek. Jednotliví účastníci výběrového řízení se musí seznámit s projektojektovou dokumentací v návaznosti na soupis prací a na základě těchto informací části díla nacenit. Dále je potřeba při stanovení ceny dle vykázané výměry započítat všechny předpokládané doplňkové prvky a činnosti s touto položkou související tak, aby cena byla kompletní a prvek funkční."]
[1]
[null,null,null,null,null,"Materiál",null,"Montáž"]
["poř.č.","položka","popis položky","MJ","množství","jedn.cena","celkem [Kč]","jedn.cena","celkem [Kč]"]
[null,"A.","Svítidla a příslušenství",null,null,{"$f":"SUBTOTAL(9,G43:G49)","v":0},null,{"$f":"SUBTOTAL(9,I43:I49)","v":0}]
[null,null," (komplet, včetně zdrojů, závěsů, pomocného materiálu, osazení zapojení, vyzkoušení apod.)"]
[1,null,"svítidlo typ A6 - Svítidlo stropní přisazené, bílá barva, difuzor opál, odsazený, Ø 130 mm, v=100 mm, LED 15W, 3000 K, 1280 lm, IP40","ks",7,null,{"$f":"E43*F43","v":0},null,{"$f":"E43*H43","v":0}]
[{"$f":"A43+1","v":2},null,"svítidlo typ A7 - Svítidlo přisazené, bílá barva, difuzor opál, 80x80x1480 mm, pro zářivku 2x49W, G5, EP","ks",1,null,{"$f":"E44*F44","v":0},null,0]
[3,null,"svítidlo typ C3 - Svítidlo vestavné do podhledu SDK, bílá barva odsazený opálový difuzor, Ø 175 mm, vestavná hloubka 70 mm, LED 20W, 3000 K, 1700 lm, IP54","ks",5,null,0,null,0]
[4,null,"svítidlo typ D1 - Svítidlo nástěnné, bílá barva, difuzor mikroprisma, velikost 270x370 mm, vyložení 160 mm, LED přímo - nepřímo svítící, 20W, 3000 K, 3000 lm","ks",28,null,0,null,0]
[5,null,"svítidlo typ D12 - Svítidlo přisazené, bílá barva + sklo mat, 250x250x95 mm, 2xE27, 2x12W max","ks",1,null,0,null,0]
[6,null,"svítidlo typ D13 - Svítidlo přisazené, bílá barva, difuzor opál, 80x30x600 mm, LED 20W, 3000 K, 1700 lm","ks",1,null,0,null,0]
[7,null,"NOUZOVÉ OSVĚTLENÍ s připojením k CBS Inotec","ks",25,null,0,null,0]
[]
[null,"B.","Spínače, zásuvky a ostatní přístroje ",null,null,{"$f":"SUBTOTAL(9,G54:G61)","v":0},null,{"$f":"SUBTOTAL(9,I54:I61)","v":0}]
[null,null,"(komplet, včetně příslušenství, pomocného materiálu, osazení, zapojení, vyzkoušení apod.)"]
[null,null,"Návazně na předchozí etapy rekonstrukce budou osaztovány výrobky z řady ABB Tango"]
[{"$f":"A49+1","v":8},null,"Domovní spínač řazení 1, komplet","ks",1,null,{"$f":"E54*F54","v":0},null,{"$f":"E54*H54","v":0}]
[9,null,"Domovní spínač řazení 6, komplet ","ks",16,null,{"$f":"E55*F55","v":0},null,{"$f":"E55*H55","v":0}]
[10,null,"Domovní spínač řazení 7, komplet ","ks",3,null,{"$f":"E56*F56","v":0},null,{"$f":"E56*H56","v":0}]
[11,null,"Tlačítkový ovlada 1x přepínací kontakt se sklem - modrá barva - požární větrání CHUC","ks",4,null,{"$f":"E57*F57","v":0},null,{"$f":"E57*H57","v":0}]
[12,null,"Domovní zásuvka 230V 16A,napájení z trafa  komplet","ks",1,null,{"$f":"E58*F58","v":0},null,{"$f":"E58*H58","v":0}]
[13,null,"Napojení požárního ventilátoru 400V, dle montážního návodu ","ks",1,null,{"$f":"E59*F59","v":0},null,{"$f":"E59*H59","v":0}]
[14,null,"Napojení požárního otevírání světlíku přes odbočnou krabici s funkční schopností při požáru, dle montážního návodu ","ks",1,null,0,null,0]
[15,null,"Napojení rozvaděče výtahu RV1, dle montážního návodu ","ks",1,null,0,null,0]
[]
[null,"C.","Instalační, úložný a ochranný materiál",null,null,{"$f":"SUBTOTAL(9,G64:G68)","v":0},null,{"$f":"SUBTOTAL(9,I63:I68)","v":0}]
[null,null," (komplet, včetně příslušenství, pomocného materiálu, výkopu, záhozu výkopu, vytyčení trasy, osazení, zapojení, vyzkoušení apod.)"]
[{"$f":"A61+1","v":16},null,"Krabice přístrojová","ks",21,null,{"$f":"E65*F65","v":0},null,{"$f":"E65*H65","v":0}]
[{"$f":"A65+1","v":17},null,"Krabice odbočná včetně wago svorek","ks",10,null,0,null,0]
[18,null,"Protipožární ucpávka pro průchod kabelů stěnou nebo stropem, požární odolnost dle požadavku specialisty PO, materiál: var.- požárně ochranná malta, var.-minerální vlna + desky z minerální vlny + požárně ochranná stěrková hmota, var.- protipožární polštáře ","m2",0.5,null,0,null,0]
[19,null,"Krabice odbočná včetně wago svorek s funkční schopností při požáru","ks",25,null,0,null,0]
[]
[null,"D.","Kabely a vodiče",null,null,{"$f":"SUBTOTAL(9,G71:G78)","v":0},null,{"$f":"SUBTOTAL(9,I70:I78)","v":0}]
[null,null,"(komplet, včetně vyhotovení drážky, zapravení drážky, vytyčení trasy, pomocného materiálu, příchytek, spojek, odlehčovacích oblouků, zapojení, vyzkoušení apod.)"]
[{"$f":"A68+1","v":20},null,"Bezhalogenový kabel -J 3x1,5 B2CAS1D0","m",450,null,{"$f":"E72*F72","v":0},null,{"$f":"E72*H72","v":0}]
[{"$f":"A72+1","v":21},null,"Bezhalogenový kabel -J 3x2,5 B2CAS1D0","m",100,null,0,null,0]
[22,null,"Bezhalogenový kabel -O 3x1,5 B2CAS1D0","m",150,null,0,null,0]
[23,null,"Bezhalogenový kabel -J 5x6 B2CAS1D0","m",20,null,0,null,0]
[24,null,"Kabel s funkční schopností P30-R -J 5x1,5 B2CAS1D0","m",60,null,0,null,0]
[25,null,"Kabel s funkční schopností P30-R -O 3x1,5 B2CAS1D0","m",50,null,0,null,0]
[26,null,"Rozvody pro NO kabel s funkční schopností P60R -O 3x1,5  B2CAS1D0","m",120,null,0,null,0]
[]
[null,"E.","Pospojování, uzemnění",null,null,{"$f":"SUBTOTAL(9,G81:G82)","v":0},null,{"$f":"SUBTOTAL(9,I80:I82)","v":0}]
[null,null,"(komplet, včetně příslušenství, svorek, pomocného materiálu, osazení, zapojení, vyzkoušení apod.) "]
[{"$f":"A78+1","v":27},null,"Vodič CYA16 žlutozelený včetně svorek - hlavní pospojení","m",15,null,{"$f":"E82*F82","v":0},null,{"$f":"E82*H82","v":0}]
[]
[null,"F.","Rozvaděče",null,null,{"$f":"SUBTOTAL(9,G85:G86)","v":0},null,{"$f":"SUBTOTAL(9,I84:I86)","v":0}]
[null,null,"(komplet, včetně příslušenství, svorek, pomocného materiálu, osazení, zapojení, vyzkoušení apod.) "]
[{"$f":"A82+1","v":28},null,"Úpravy ve stávajícím požárním rozvaděči UPFD","ks",1,null,{"$f":"E86*F86","v":0},null,{"$f":"E86*H86","v":0}]
[]
[null,"G.","Ostatní",null,null,{"$f":"SUBTOTAL(9,G89:G95)","v":0},null,{"$f":"SUBTOTAL(9,I88:I95)","v":0}]
[{"$f":"A86+1","v":29},null,"Výchozí revize","hod",10,null,{"$f":"E89*F89","v":0},null,{"$f":"E89*H89","v":0}]
[{"$f":"A89+1","v":30},null,"Demontáže včetně likvidace odpadu","hod",30,null,0,null,0]
[31,null,"Stavební přípomoce ","kpl",1," ---"," ---",null,0]
[{"$f":"A91+1","v":32},null,"Pomocný a podružný materiál upevňovací","kpl",1,null,0,null,0]
[33,null,"Zednické výpomoci (PPV)","kpl",1," ---"," ---",null,0]
[34,null,"Doprava materiálu","kpl",1," ---"," ---",null,{"$f":"E94*H94","v":0}]
[35,null,"Zařízení typu UPFD + náhradní zdroj UPS, integrované ve společné skříni, pracující ze spol.sady baterií","ks",1,null,{"$f":"E95*F95","v":0},null,0]
[null,null,"Specifikace položky:"]
[null,null,"Skříň distribuce energie pro motory "]
[null,null,"Modul řízeného nabíječe "]
[null,null,"1x EMC filtry"]
[null,null,"servisní manuální ByPass (pro každý motor zvlášť)"]
[null,null,"1x RS232 pro nastavení invertorů"]
[null,null,"1x RS232 pro nastavení modulu automatiky monitorování"]
[null,null,"RS 485 pro velín (MODBUS RTU) "]
[null,null,"SOUPIS POŽADOVANÝCH VÝSTUPŮ ZE ZDROJE UPFD :"]
[null,null,"1) P1 - ventilátor požárního větrání  400V / 6.35kW,  doba zálohování (samostatnosti) 30 min"]
[null,null,"2) K1 - VZT požární klapka - servopohon - 230V,  doba zálohování (samostatnosti) 30 min"]
[null,null,"3) K2 - VZT požární klapka - servopohon - 230V,  doba zálohování (samostatnosti) 30 min"]
[null,null,"SOUPIS OVLÁDACÍCH VSTUPŮ DO  ZDROJE UPFD :"]
[null,null,"1) Signál z EPS - signál:  aktivace CHÚC"]
[null,null,"2) TOTAL STOP - odstavení zdroje"]
[]
[null,null,"UPFD má výstupy  400V pro každý motor samostatně a další část UPS 2500W/230V pro klapky a servopohony. Každý motor se bude spouštět samostatným signálem na základě povelů ( bezpotenciálový kontakt z EPS nebo např.tlačítko), což umožňuje řízení a spouštění libovolné kombinace. Různé doby zálohy pro různá zařízení v rozmezí od 15 minut do 45 minut. Motory a ovládání se připojí přímo do UPFD, bez jakýchkoliv přepínacích a jistících prvků. Přepínání mezi sítí a akumulátory je automatické (součást UPFD).  Základní signalizace LED. UPFD může být vybaveno  Touchscreen. "]

{"sheet":"03_SO 03 - VZT","index":7,"n_rows":89,"n_cols":10,"rows_kept":89,"cut":false,"hidden":false,"merged":[[60,0,60,4],[47,9,50,9],[49,3,50,3],[49,4,50,4],[60,5,60,6],[47,0,50,0],[47,1,50,1],[47,2,50,2],[47,3,48,4],[47,5,47,8],[18,3,19,3],[18,4,19,4],[25,0,25,9],[43,0,43,1],[43,7,43,9],[16,0,19,0],[16,1,19,1],[16,2,19,2],[16,3,17,4],[16,5,16,8],[16,9,19,9],[17,5,17,6],[17,7,17,8],[78,9,81,9],[80,3,81,3],[80,4,81,4],[88,5,88,6],[88,0,88,4],[78,0,81,0],[78,1,81,1],[78,2,81,2],[78,3,79,4],[78,5,78,8],[66,9,69,9],[68,3,69,3],[68,4,69,4],[75,5,75,6],[75,0,75,4],[66,0,69,0],[66,1,69,1],[66,2,69,2],[66,3,67,4],[66,5,66,8]]}
[{"$f":"CONCATENATE('Rekapitulace stavby'!C54,\"_\",'Rekapitulace stavby'!I54)","v":"03_SO 03 - Vzduchotechnika a chlazení"}]
[]
["SPECIFIKACE DODÁVEK A PRACÍ "]
["Název akce:"]
[{"$f":"'Identifikační údaje'!B1","v":"ČRo Brno – II. etapa rekonstrukce budovy Beethovenova 25/4"}]
[]
["Zadavatel:",null,{"$f":"'Identifikační údaje'!E7","v":"Český rozhlas, Vinohradská 12, 120 99 Praha 2"},"Projektant:",null,{"$f":"'Identifikační údaje'!E12","v":"Ing. arch. Klement Miloš, Nejedlého 381/19, 638 00 Brno - Lesná"}]
[null,"IČ",{"$f":"'Identifikační údaje'!B9","v":45245053},null,"IČ",{"$f":"'Identifikační údaje'!B14","v":15188736}]
[null,"DIČ",{"$f":"'Identifikační údaje'!B10","v":"CZ45245053"},null,"DIČ",{"$f":"'Identifikační údaje'!B15","v":"CZ6101021344"}]
[]
["Uchazeč:",null,{"$f":"'Identifikační údaje'!E19","v":", ,  "},"Místo stavby:",null,{"$f":"'Identifikační údaje'!B3","v":"Budova Českého rozhlasu Brno na adrese Beethovenova 25/4, 657 42 Brno"}]
[null,"IČ",{"$f":"'Identifikační údaje'!B23","v":0}]
[null,"DIČ",{"$f":"'Identifikační údaje'!B24","v":0}]
[]
["Datum:",null,{"$f":"'Identifikační údaje'!B5","v":"00:00:00"}]
[]
["P.Č.","Č.Z"," Popis položky:","Měrná jednotka",null,"Cena",null,null,null,"Poznámka"]
[null,null,null,null,null,"Jednotková",null,"Celkem"]
[null,null,null,"-","počet","Dodávka","Montáž","Dodávka","Montáž"]
[null,null,null,null,null,"[ Kč ]","[ Kč ]","[ Kč ]","[ Kč ]"]
[null,null,{"$f":"CONCATENATE(\"REKAPITULACE OBJEKTU \",'Rekapitulace stavby'!I54)","v":"REKAPITULACE OBJEKTU SO 03 - Vzduchotechnika a chlazení"}]
[1,1,{"$f":"C52","v":"Zařízení č.8  - Větrání CHUC B"},"kpl",1," - "," - ",{"$f":"H61","v":0},{"$f":"I61","v":0},"-"]
[2,"2.1",{"$f":"C71","v":"Zařízení č.12  - Úprava stávajícího větrání výměníkové stanice"},"kpl",1," -"," -",{"$f":"H76","v":0},{"$f":"I76","v":0},"-"]
[3,"2.2",{"$f":"C83","v":"Zařízení č.4  - Chlazení serverovny a UPS - přemístění venkovní jednotky"},"kpl",1," -"," -",{"$f":"H89","v":0},{"$f":"I89","v":0},"-"]
[null,null,"Mezisoučet",null,null,null,null,{"$f":"SUM(H22:H24)","v":0},{"$f":"SUM(I22:I24)","v":0},"Kč bez DPH"]
[]
[{"$f":"A24+1","v":4},"-","Protipožární ucpávky","ks",3,null,null,{"$f":"E27*F27","v":0},{"$f":"E27*G27","v":0},"-"]
[{"$f":"A27+1","v":5},"-","Materiál pro spoje, montáž, závěsy, atd.","kpl",1,null,null,{"$f":"E28*F28","v":0},{"$f":"E28*G28","v":0},"-"]
[{"$f":"A28+1","v":6},null,"Demontáž stáv.vzduchotechnických rozvodů","kpl",1,null,null,{"$f":"E29*F29","v":0},{"$f":"E29*G29","v":0},"-"]
[{"$f":"A29+1","v":7},null,"Demontáž  stěny z Tahokovu a opětná montáž po přesunutí  chladicí jednotky","ks",1,null,null,0,0,"-"]
[8,null,"Přesunutí chladicí jednotky do dvora","ks",1,null,null,0,0,"-"]
[9,null,"Výkopové práce a základy ve dvoře pro přesunutí chladicí jednotky","m3",4,null,null,0,0,"-"]
[10,null,"Rozebrání a opětovné položení dlažby","m2",12,null,null,0,0,"-"]
[11,null,"Průraz v základech","ks",1,null,null,0,0,"-"]
[12,null,"Odvětrání CHÚC typu B 1200/1200 mm kompletní konstrukce včvynášecích profilů a protipo|žár. SDK desek:1","ks",1,null,null,0,0,"-"]
[{"$f":"A35+1","v":13},"-","Doprava","kpl",1,null,null,null,{"$f":"E36*G36","v":0},"-"]
[{"$f":"A36+1","v":14},"-","Přesuny","kpl",1,null,null,null,0,"-"]
[15,"-","Uvedení do provozu, zaregulování, vyzkoušení, předávací řízení","kpl",1,null,null,null,0,"-"]
[16,"-","Inženýrská a koordinační činnost","kpl",1,null,null,null,0,"-"]
[17,"-","Dílenská a výrobní projektová dokumentace","kpl",1,null,null,null,0,"-"]
[18,"-","Dokumentace konečného provedení, návody, atesty, prohlášení o shodě","kpl",1,null,null,null,0,"-"]
[null,null,"Mezisoučet",null,null,null,null,{"$f":"SUM(H27:H41)","v":0},{"$f":"SUM(I27:I41)","v":0},"Kč bez DPH"]
[]
["CELKEM D+M",null,{"$f":"CONCATENATE(\"OBJEKTU \",'Rekapitulace stavby'!I54,\" v Kč bez DPH\")","v":"OBJEKTU SO 03 - Vzduchotechnika a chlazení v Kč bez DPH"},null,null,null,null,{"$f":"H25+H42+I25+I42","v":0}]
[]
[]
[]
["P.Č.","Č.P."," Popis položky:","Měrná jednotka",null,"Cena",null,null,null,"Poznámka"]
[null,null,null,null,null,"Jednotková cena",null,"Celková cena"]
[null,null,null,"-","počet","Dodávka","Montáž","Dodávka","Montáž"]
[null,null,null,null,null,"[ Kč ]","[ Kč ]","[ Kč ]","[ Kč ]"]
[null,null,"Zařízení č.8  - Větrání CHUC B"]
[{"$f":"A41+1","v":19},"8.1","Ventilátor - referenční výrobek TGT/2-500-6/14-LP-2,2kW","ks",1,null,null,{"$f":"E53*F53","v":0},{"$f":"E53*G53","v":0}]
[{"$f":"A53+1","v":20},0,"Pružná spojka - referenční výrobek ACOP 500","ks",2,null,null,{"$f":"E54*F54","v":0},{"$f":"E54*G54","v":0}]
[{"$f":"A54+1","v":21},"8.2","Přetlaková klapka pro montáž na střechu - referenční výrobek DEK-V 600/900 -DS 1200/1200 pro mn.vzduchu 8800 m3/h včetně servopohonu 230V s havarijní funkcí - nátěr RAL…... dle požadavku architekta","ks",1,null,null,0,0]
[22,"8.3","Zpětná klapka - referenční výrobek TSK 500","ks",1,null,null,{"$f":"E56*F56","v":0},{"$f":"E56*G56","v":0}]
[23,"8.4","Protidešťová žaluzie pozinkovaná se sítem 1350 x 710 - nátěr RAL…...","ks",1,null,null,0,0]
[24,"8.5","Výustka - referenční výrobek NOVA - A - 1 - 1 - 1000 x 500 - nátěr RAL……","ks",2,null,null,0,0]
[25,0,"Trouba SPIRO - 500 - včetně tvarovek","bm",8,null,null,0,0]
[26,null,"Čtyřhranné ocel. potrubí sk. I včetně tvarovek","m2",10,null,null,0,0]
[{"$f":"CONCATENATE(C52,\" - celkem\")","v":"Zařízení č.8  - Větrání CHUC B - celkem"},null,null,null,null,null,null,{"$f":"SUM(H53:H60)","v":0},{"$f":"SUM(I53:I60)","v":0},"bez DPH"]
[]
[]
[]
[]
[]
["P.Č.","Č.P."," Popis položky:","Měrná jednotka",null,"Cena",null,null,null,"Poznámka"]
[null,null,null,null,null,"Jednotková cena",null,"Celková cena"]
[null,null,null,"-","počet","Dodávka","Montáž","Dodávka","Montáž"]
[null,null,null,null,null,"[ Kč ]","[ Kč ]","[ Kč ]","[ Kč ]"]
[null,null,"Zařízení č.12  - Úprava stávajícího větrání výměníkové stanice"]
[{"$f":"A60+1","v":27},"PK12.1","Požární klapka - referenční výrobek PKTM III-K 300/375 - .40 TPM 075/09","ks",1,null,null,{"$f":"E72*F72","v":0},{"$f":"E72*G72","v":0}]
[{"$f":"A72+1","v":28},null,"Trouba SPIRO - 300 - včetně tvarovek","bm",2,null,null,{"$f":"E73*F73","v":0},{"$f":"E73*G73","v":0}]
[{"$f":"A73+1","v":29},null,"Demontáž potrubí D300","bm",5,null,null,0,0]
[]
[{"$f":"CONCATENATE(C71,\" - celkem\")","v":"Zařízení č.12  - Úprava stávajícího větrání výměníkové stanice - celkem"},null,null,null,null,null,null,{"$f":"SUM(H72:H74)","v":0},{"$f":"SUM(I72:I74)","v":0},"bez DPH"]
[]
[]
["P.Č.","Č.P."," Popis položky:","Měrná jednotka",null,"Cena",null,null,null,"Poznámka"]
[null,null,null,null,null,"Jednotková cena",null,"Celková cena"]
[null,null,null,"-","počet","Dodávka","Montáž","Dodávka","Montáž"]
[null,null,null,null,null,"[ Kč ]","[ Kč ]","[ Kč ]","[ Kč ]"]
[null,null,"Zařízení č.4  - Chlazení serverovny a UPS - přemístění venkovní jednotky"]
[{"$f":"A74+1","v":30},"4.2","Venkovní kondenzační jednotka - UJ36W UO2 - demontáž a zpětná montáž","ks",1,null,null,{"$f":"E84*F84","v":0},{"$f":"E84*G84","v":0}]
[{"$f":"A84+1","v":31},null,"Předizolované Cu potrubí včetně prodrátování a zalištování","bm",57,null,null,{"$f":"E85*F85","v":0},{"$f":"E85*G85","v":0}]
[{"$f":"A85+1","v":32},null,"Cu potrubí - demontáž","bm",10,null,null,0,0]
[33,null,"Doplnění chladiva R410A","kg",2,null,null,0,0]
[]
[{"$f":"CONCATENATE(C83,\" - celkem\")","v":"Zařízení č.4  - Chlazení serverovny a UPS - přemístění venkovní jednotky - celkem"},null,null,null,null,null,null,{"$f":"SUM(H84:H87)","v":0},{"$f":"SUM(I84:I87)","v":0},"bez DPH"]

{"sheet":"04_SO 03 - Výtah","index":8,"n_rows":299,"n_cols":38,"rows_kept":299,"cut":false,"hidden":false,"merged":[[79,2,79,6],[53,3,53,6],[24,3,24,6],[25,2,25,6]]}
[{"$f":"CONCATENATE('Rekapitulace stavby'!C55,\"_\",'Rekapitulace stavby'!I55)","v":"04_SO 03 - Výtah"}]
[]
["SPECIFIKACE DODÁVEK A PRACÍ "]
["Název akce:"]
[{"$f":"'Identifikační údaje'!B1","v":"ČRo Brno – II. etapa rekonstrukce budovy Beethovenova 25/4"}]
[]
["Zadavatel:",null,{"$f":"'Identifikační údaje'!E7","v":"Český rozhlas, Vinohradská 12, 120 99 Praha 2"}]
[null,"IČ:",{"$f":"'Identifikační údaje'!B9","v":45245053}]
[null,"DIČ:",{"$f":"'Identifikační údaje'!B10","v":"CZ45245053"}]
[]
["Projektant:",null,{"$f":"'Identifikační údaje'!E12","v":"Ing. arch. Klement Miloš, Nejedlého 381/19, 638 00 Brno - Lesná"}]
[null,"IČ:",{"$f":"'Identifikační údaje'!B14","v":15188736}]
[null,"DIČ:",{"$f":"'Identifikační údaje'!B15","v":"CZ6101021344"}]
[]
["Uchazeč:",null,{"$f":"'Identifikační údaje'!E19","v":", ,  "}]
[null,"IČ:",{"$f":"'Identifikační údaje'!B23","v":0}]
[null,"DIČ:",{"$f":"'Identifikační údaje'!B24","v":0}]
[]
["Místo stavby:",null,{"$f":"'Identifikační údaje'!B3","v":"Budova Českého rozhlasu Brno na adrese Beethovenova 25/4, 657 42 Brno"}]
[]
["Datum vyplnění:",null,{"$f":"'Identifikační údaje'!B5","v":"00:00:00"}]
[]
[{"$f":"CONCATENATE(\"REKAPITULACE DODÁVEK A PRACÍ OBJEKTU \",'Rekapitulace stavby'!I55)","v":"REKAPITULACE DODÁVEK A PRACÍ OBJEKTU SO 03 - Výtah"}]
[]
["P.č.","Číslo položky","Název položky","Kč bez DPH"]
[null,"Ceník, kapitola"]
["Díl:",{"$f":"B81","v":0},{"$f":"C81","v":"Přípravné a pomocné práce"},null,null,null,{"$f":"G81","v":0}]
["Díl:",{"$f":"B84","v":"1"},{"$f":"C84","v":"Zemní práce"},null,null,null,{"$f":"G84","v":0}]
["Díl:",{"$f":"B94","v":"2"},{"$f":"C94","v":"Základy a zvláštní zakládání"},null,null,null,{"$f":"G94","v":0}]
["Díl:",{"$f":"B111","v":"3"},{"$f":"C111","v":"Svislé a kompletní konstrukce"},null,null,null,{"$f":"G111","v":0}]
["Díl:",{"$f":"B115","v":"31"},{"$f":"C115","v":"Zdi podpěrné a volné"},null,null,null,{"$f":"G115","v":0}]
["Díl:",{"$f":"B127","v":"311"},{"$f":"C127","v":"Sádrokartony"},null,null,null,{"$f":"G127","v":0}]
["Díl:",{"$f":"B131","v":"31"},{"$f":"C131","v":"Zdi podpěrné a volné"},null,null,null,{"$f":"G131","v":0}]
["Díl:",{"$f":"B135","v":"311"},{"$f":"C135","v":"Sádrokartony"},null,null,null,{"$f":"G135","v":0}]
["Díl:",{"$f":"B141","v":"34"},{"$f":"C141","v":"Stěny a příčky"},null,null,null,{"$f":"G141","v":0}]
["Díl:",{"$f":"B144","v":"4"},{"$f":"C144","v":"Vodorovné konstrukce"},null,null,null,{"$f":"G144","v":0}]
["Díl:",{"$f":"B147","v":"61"},{"$f":"C147","v":"Upravy povrchů vnitřní"},null,null,null,{"$f":"G147","v":0}]
["Díl:",{"$f":"B174","v":"63"},{"$f":"C174","v":"Podlahy a podlahové konstrukce"},null,null,null,{"$f":"G174","v":0}]
["Díl:",{"$f":"B184","v":"94"},{"$f":"C184","v":"Lešení a stavební výtahy"},null,null,null,{"$f":"G184","v":0}]
["Díl:",{"$f":"B191","v":"95"},{"$f":"C191","v":"Dokončovací konstrukce na pozemních stavbách"},null,null,null,{"$f":"G191","v":0}]
["Díl:",{"$f":"B199","v":"96"},{"$f":"C199","v":"Bourání konstrukcí"},null,null,null,{"$f":"G199","v":0}]
["Díl:",{"$f":"B216","v":"99"},{"$f":"C216","v":"Staveništní přesun hmot"},null,null,null,{"$f":"G216","v":0}]
["Díl:",{"$f":"B218","v":"711"},{"$f":"C218","v":"Izolace proti vodě"},null,null,null,{"$f":"G218","v":0}]
["Díl:",{"$f":"B228","v":"767"},{"$f":"C228","v":"Konstrukce zámečnické"},null,null,null,{"$f":"G228","v":0}]
["Díl:",{"$f":"B239","v":"783"},{"$f":"C239","v":"Nátěry"},null,null,null,{"$f":"G239","v":0}]
["Díl:",{"$f":"B246","v":"784"},{"$f":"C246","v":"Malby"},null,null,null,{"$f":"G246","v":0}]
["Díl:",{"$f":"B255","v":"M21"},{"$f":"C255","v":"Elektromontáže"},null,null,null,{"$f":"G255","v":0}]
["Díl:",{"$f":"B264","v":"D96"},{"$f":"C264","v":"Přesuny suti a vybouraných hmot"},null,null,null,{"$f":"G264","v":0}]
["Díl:",{"$f":"B273","v":"M33"},{"$f":"C273","v":"Montáže dopravích zařízení a vah - výtahy"},null,null,null,{"$f":"G273","v":0}]
["Díl:",{"$f":"B276","v":"M33"},{"$f":"C276","v":"Montáže dopravích zařízení a vah - výtahy"},null,null,null,{"$f":"G276","v":0}]
["Díl:",{"$f":"B278","v":"311"},{"$f":"C278","v":"Sádrokartony"},null,null,null,{"$f":"G278","v":0}]
["Díl:",{"$f":"B282","v":"M43"},{"$f":"C282","v":"Montáže ocelových konstrukcí"},null,null,null,{"$f":"G282","v":0}]
[]
[{"$f":"CONCATENATE(\"CELKEM ZA OBJEKT \",'Rekapitulace stavby'!I55, \" v Kč bez DPH\")","v":"CELKEM ZA OBJEKT SO 03 - Výtah v Kč bez DPH"},null,null,{"$f":"SUM(G27:G52)","v":0}]
[]
[]
[]
[]
[]
[]
[]
[]
[]
[]
[]
[]
[]
[]
[]
[]
[]
[]
[]
[]
[]
[]
[]
[]
["P.č.","Číslo položky","Název položky","MJ","množství","cena / MJ","celkem"]
[null,"Ceník, kapitola","Poznámka uchazeče"]
["Díl:",0,"Přípravné a pomocné práce",null,null,null,{"$f":"SUBTOTAL(9,G82:G83)","v":0},null,null,null,null,null,null,null,null,null,null,null,null,null,null,null,null,null,null,null,null,"POL",null,null,null,null,null,null,null,21]
[{"$f":"1","v":1},"382111001MZ","Rozměření poloh","kus",1,null,{"$f":"E82*F82","v":0}]
[{"$f":"A82+1","v":2},"R01","Drobné detaily neobsažené v polož. stavebním rozpočtu","kpl.",1,null,{"$f":"E83*F83","v":0}]
["Díl:","1","Zemní práce",null,null,null,{"$f":"SUBTOTAL(9,G85:P93)","v":0}]
[{"$f":"A83+1","v":3},"139811101R00","Vykopávka v uzavřených prostorách v hor.5-7","m3",1.7928000000000002,null,{"$f":"E85*F85","v":0}]
[null,null,"1,8*1,66*0,6",null,1.7928000000000002,null,null,null,null,null,null,null,null,null,null,null,null,null,null,null,null,null,null,null,null,1]
[{"$f":"A85+1","v":4},"162701155R00","Vodorovné přemístění výkopku z hor.5-7 do 10000 m","m3",1.7928000000000002,null,{"$f":"E87*F87","v":0},null,null,null,null,null,null,null,null,null,null,null,null,null,null,null,null,null,null,null,null,"POL",null,null,null,null,null,null,null,21]
[{"$f":"A87+1","v":5},"162701159R00","Příplatek k vod. přemístění hor.5-7 za další 1 km","m3",1.7928000000000002,null,0]
[{"$f":"A88+1","v":6},"162201253R00","Vodorovné přemíst.výkopku, kolečko hor.5-7, do 10m","m3",1.7928000000000002,null,0]
[7,"162201260R00","Příplatek za dalších 10 m,kolečko výkop. z hor.5-7","m3",1.7928000000000002,null,0,null,null,null,null,null,null,null,null,null,null,null,null,null,null,null,null,null,null,null,null,"POL",null,null,null,null,null,null,null,21]
[8,"167101251R00","Nakládání výkopku z hor.5 ÷ 7 - ručně","m3",1.7928000000000002,null,0]
[9,"171201201R00","Uložení sypaniny na skl.-modelace na výšku přes 2m","m3",1.7928000000000002,null,0]
[10,"199000003R00","Poplatek za skládku horniny 5 - 7","m3",1.7928000000000002,null,0]
["Díl:","2","Základy a zvláštní zakládání",null,null,null,{"$f":"SUBTOTAL(9,G95:P110)","v":0}]
[{"$f":"A93+1","v":11},"215901101RT5","Zhutnění podloží z hornin nesoudržných do 92% PS, vibrační deskou  (min.0,2MPa po dobu 2 min.)","m2",4.0860000000000003,null,{"$f":"E95*F95","v":0}]
[null,null,"2,27*1,8",null,4.0860000000000003]
[{"$f":"A95+1","v":12},"273311114R00","Beton základ. desek prostý z cem. portlad. C 12/15","m3",0.23130000000000001,null,{"$f":"E97*F97","v":0}]
[null,null,"podkladní beton : 0,05*2,57*1,8",null,0.23130000000000001]
[{"$f":"A97+1","v":13},"273321411R00","Železobeton základových desek C 25/30","m3",0.92520000000000002,null,{"$f":"E99*F99","v":0}]
[null,null,"ŽB deska D1 : 0,2*2,57*1,8",null,0.92520000000000002]
[{"$f":"A99+1","v":14},"273361821R00","Výztuž základových desek z betonářské ocelí 10505","t",2.5000000000000001E-2,null,{"$f":"E101*F101","v":0}]
[{"$f":"A101+1","v":15},"273361921RT9","Výztuž základových desek ze svařovaných sítí, průměr drátu  8,0, oka 150/150 mm KY80","t",5.951E-2,null,0]
[null,null,"1 m2 = 5,36 kg/m2 : 2,57*1,8*2*5,36*0,001*1,2",null,5.951E-2]
[{"$f":"A102+1","v":16},"380932225R00","Vlepení výztuže D 12, beton, malta HIT - HY 150","m",6,null,{"$f":"E104*F104","v":0}]
[null,null,"0,3*2*10",null,6]
[{"$f":"A104+1","v":17},"631319165R00","Příplatek za konečnou úpravu mazanin tl. 24 cm","m3",0.92520000000000002,null,{"$f":"E106*F106","v":0}]
[{"$f":"A106+1","v":18},"631319175R00","Příplatek za stržení povrchu mazaniny tl. 24 cm","m3",1.8504,null,0]
[null,null,"2*0,9252",null,1.8504]
[{"$f":"A107+1","v":19},"216902111RHR","Očištění základových spár nezapaženého dna,  - začištění hrany stáv.základu","kompl.",1,null,{"$f":"E109*F109","v":0},null,null,null,null,null,null,null,null,null,null,null,null,null,null,null,null,null,null,0]
[{"$f":"A109+1","v":20},"905      RT2","HZS - nezměřitelné práce malého rozsahu, Práce v tarifní třídě 5","h",8,null,0]
["Díl:","3","Svislé a kompletní konstrukce",null,null,null,{"$f":"SUBTOTAL(9,G112:P114)","v":0}]
[{"$f":"A110+1","v":21},"389200030RPP","Pilíř pro měřicí skříně-zazdění niky, 2,4x0,40x0,30m -pož.obezdění rozvaděče pórobeton 7,5cm, omítka, 2x protipož.větrací mřížka 300/100mm","kus",1,null,{"$f":"E112*F112","v":0}]
[{"$f":"A112+1","v":22},"713582114R35","Revizní dvířka Promat do masivních stěn,300x500 mm, typ SP, požární odolnost EI 15","kus",1,null,0,null,null,null,null,null,null,null,null,null,null,null,null,null,null,null,null,null,null,0]
[{"$f":"A113+1","v":23},"713582126R12","Revizní dvířka Promat do masivních stěn,300x1200 mm, typ SP, požární odolnost EI 15","kus",1,null,0]
["Díl:","31","Zdi podpěrné a volné",null,null,null,{"$f":"SUBTOTAL(9,G116:P126)","v":0},null,null,null,null,null,null,null,null,null,null,null,null,null,null,null,null,null,null,null,null,"POL",null,null,null,null,null,null,null,21]
[{"$f":"A114+1","v":24},"311112120RT4","Stěna z tvárnic ztraceného bednění, tl. 20 cm, zalití tvárnic betonem C 25/30","m2",5.5500000000000007,null,{"$f":"E116*F116","v":0}]
[null,null,"0,75*(2*2,3+2*1,4)",null,5.5500000000000007]
[{"$f":"A116+1","v":25},"311361821R00","Výztuž nadzáklad. zdí z betonářské oceli 10505 (R)","t",0.12372000000000001,null,{"$f":"E118*F118","v":0},null,null,null,null,null,null,null,null,null,null,null,null,null,null,null,null,null,null,0]
[null,null,"- vodorovně : 2*(2*2,3+1,8*2)*3*0,98*0,001*1,2",null,5.7860000000000002E-2]
[null,null,"- svisle : 2*1,0*28*0,98*0,001*1,2",null,6.5860000000000002E-2]
[{"$f":"A118+1","v":26},"311941111R00","Připojení zdí ke stáv.konstr.nerez kotvou na hmožd","m",9,null,{"$f":"E121*F121","v":0}]
[null,null,"Z2 : 2*0,9*5",null,9]
[{"$f":"A121+1","v":27},"317941123R00","Osazení ocelových válcovaných nosníků  č.14-22","t",0.13246000000000002,null,{"$f":"E123*F123","v":0},null,null,null,null,null,null,null,null,null,null,null,null,null,null,null,null,null,null,0]
[null,null,"I160 - 17,9kg/m : 4*1,85*17,9*0,001",null,0.13246000000000002,null,null,null,null,null,null,null,null,null,null,null,null,null,null,null,null,null,null,null,null,null,null,"POL",null,null,null,null,null,null,null,21]
[{"$f":"A123+1","v":28},"340271515R00","Zazdívka otvorů pl.do 1 m2, pórobet.tvár.,tl.15 cm","m3",0.33750000000000002,null,{"$f":"E125*F125","v":0}]
[null,null,"Z2 : 5*0,5*0,9*0,15",null,0.33750000000000002,null,null,null,null,null,null,null,null,null,null,null,null,null,null,null,null,null,null,null,null,0]
["Díl:","311","Sádrokartony",null,null,null,{"$f":"SUBTOTAL(9,G128:P130)","v":0},null,null,null,null,null,null,null,null,null,null,null,null,null,null,null,null,null,null,null,null,"SPX"]
[{"$f":"A125+1","v":29},"347015122R00","Předstěna SDK, tl.95mm, ocel. kce CW, 1x Rigips habito 12,5mm, EI 30DP1","m2",44.865450000000003,null,{"$f":"E128*F128","v":0},null,null,null,null,null,null,null,null,null,null,null,null,null,null,null,null,null,null,null,null,"POL",null,null,null,null,null,null,null,21]
[null,null,"Z1 : 1,45*(26,771+3,3+0,25)",null,43.965450000000004]
[null,null,"PS : 1,8*0,5",null,0.9]
["Díl:","31","Zdi podpěrné a volné",null,null,null,{"$f":"SUBTOTAL(9,G132:P134)","v":0}]
[{"$f":"A128+1","v":30},"346244361RT2","Zazdívka rýh, kapes cihlami tl. 6,5 cm, s použitím suché maltové směsi","m2",19.84215,null,{"$f":"E132*F132","v":0}]
[null,null,"(26,771+3,3)*0,65",null,19.546150000000001]
[null,null,"0,16*1,85",null,0.29600000000000004,null,null,null,null,null,null,null,null,null,null,null,null,null,null,null,null,null,null,null,null,null,null,"POL",null,null,null,null,null,null,null,21]
["Díl:","311","Sádrokartony",null,null,null,{"$f":"SUBTOTAL(9,G136:P140)","v":0}]
[{"$f":"A132+1","v":31},"342266211RT6","Obklad stěn sádrokartonem lepený na zdivo, desky protipožární tl. 12,5 mm, EI 30DP1","m2",1,null,{"$f":"E136*F136","v":0}]
[{"$f":"A136+1","v":32},"342266998R00","Příplatek pro obklad za plochu do 5 m2","m2",0.87000000000000011,null,0]
[null,null,"1,45*0,4",null,0.58000000000000007]
[null,null,"1,45*0,2",null,0.29000000000000004]
[{"$f":"A137+1","v":33},"906      RT3","HZS - nezměřitelné práce malého rozsahu, Práce v tarifní třídě 6","h",8,null,{"$f":"E140*F140","v":0},null,null,null,null,null,null,null,null,null,null,null,null,null,null,null,null,null,null,0]
["Díl:","34","Stěny a příčky",null,null,null,{"$f":"SUBTOTAL(9,G142:P143)","v":0},null,null,null,null,null,null,null,null,null,null,null,null,null,null,null,null,null,null,null,null,"SPX"]
[{"$f":"A140+1","v":34},"346244371RT2","Zazdívka rýhí, kapes cihlami tl. 14 cm, s použitím suché maltové směsi","m2",4.5000000000000005E-2,null,{"$f":"E142*F142","v":0}]
[null,null,"2*0,15*0,15",null,4.5000000000000005E-2]
["Díl:","4","Vodorovné konstrukce",null,null,null,{"$f":"SUBTOTAL(9,G145:P146)","v":0}]
[{"$f":"A142+1","v":35},"417320039RAC","Ztužující věnec ŽB beton C 25/30, 20 x 14 cm, bednění, výztuž 150 kg/m3","m",8.2000000000000011,null,{"$f":"E145*F145","v":0},null,null,null,null,null,null,null,null,null,null,null,null,null,null,null,null,null,null,0]
[null,null,"2*2,3+2*1,8",null,8.2000000000000011,null,null,null,null,null,null,null,null,null,null,null,null,null,null,null,null,null,null,null,null,null,null,"POL",null,null,null,null,null,null,null,21]
["Díl:","61","Upravy povrchů vnitřní",null,null,null,{"$f":"SUBTOTAL(9,G148:G173)","v":0}]
[{"$f":"A145+1","v":36},"346481111RT2","Zaplentování rýh, nosníků rabicovým pletivem, s použitím suché maltové směsi","m2",0.43500000000000005,null,{"$f":"E148*F148","v":0}]
[null,null,"0,3*1,45",null,0.43500000000000005]
[{"$f":"A148+1","v":37},"602011144RT2","Štuk na stěnách vnitřní, ručně, tloušťka vrstvy 3 mm","m2",88.795000000000002,null,{"$f":"E150*F150","v":0}]
[{"$f":"A150+1","v":38},"602011191R00","Podklad.nátěr stěn pod tenkovr.omítky Cemix PASN","m2",88.795000000000002,null,0]
[null,null,"Položka pořadí 39 : 88,79500",null,88.795000000000002]
[{"$f":"A151+1","v":39},"602016191R00","Penetrační nátěr stěn PROFI","m2",88.795000000000002,null,{"$f":"E153*F153","v":0}]
[null,null,"30,1*(0,75*2+1,45)",null,88.795000000000002,null,null,null,null,null,null,null,null,null,null,null,null,null,null,null,null,null,null,null,null,0]
[{"$f":"A153+1","v":40},"622903111R00","Očištění zdí a valů před opravou, ručně","m2",88.795000000000002,null,{"$f":"E155*F155","v":0}]
[{"$f":"A155+1","v":41},"611401211RT2","Oprava omítky na stropech o ploše do 0,25 m2, vápennou štukovou omítkou","kus",8,null,0]
[null,null,"dotčené prostory-podlaží : 8",null,8]
[{"$f":"A156+1","v":42},"612401191RT2","Omítka malých ploch vnitřních stěn do 0,09 m2, vápennou štukovou omítkou","kus",2,null,{"$f":"E158*F158","v":0}]
[null,null,"kapsy : 2",null,2]
[{"$f":"A158+1","v":43},"612431111R00","Omítka sádrokartonových stěn Feinputz","m2",296.68545,null,{"$f":"E160*F160","v":0}]
[null,null,"Z1 : 1,45*(26,771+3,3+0,25)",null,43.965450000000004]
[null,null,"PS : 1,8*0,5",null,0.9]
[null,null,"výtahová šachta-interier : 30,9*(2*1,92+2*1,42)",null,206.41200000000001]
[null,null,"výtahová šachta-exterier : 3,3*1,72*8,0",null,45.408000000000001,null,null,null,null,null,null,null,null,null,null,null,null,null,null,null,null,null,null,null,null,0]
[{"$f":"A160+1","v":44},"612401391RT2","Omítka malých ploch vnitřních stěn do 1 m2, s použitím suché maltové směsi","kus",8,null,{"$f":"E165*F165","v":0}]
[null,null,"dotčené prostory-podlaží : 8",null,8]
[{"$f":"A165+1","v":45},"612409991RT2","Začištění omítek kolem oken,dveří apod., s použitím suché maltové směsi","m",89.600000000000009,null,{"$f":"E167*F167","v":0}]
[null,null,"dotčené prostory-podlaží : 8*(4,0+1,6+1,6+4,0)",null,89.600000000000009]
[{"$f":"A167+1","v":46},"612425931RT2","Omítka vápenná vnitřního ostění - štuková, s použitím suché maltové směsi","m2",0.43500000000000005,null,{"$f":"E169*F169","v":0}]
[{"$f":"A169+1","v":47},"612481211RU2","Montáž výztužné sítě (perlinky) do stěrky-stěny, včetně výztužné sítě a stěrkového tmelu","m2",88.795000000000002,null,0]
[null,null,"Položka pořadí 39 : 88,79500",null,88.795000000000002]
[{"$f":"A170+1","v":48},"632477123R00","Reprofil.polymercement.maltou,tl.do10 mm+penetrace","m2",0.43500000000000005,null,{"$f":"E172*F172","v":0}]
[{"$f":"A172+1","v":49},"905      RT2","HZS - nezměřitelné práce malého rozsahu, Práce v tarifní třídě 5","h",8,null,0]
["Díl:","63","Podlahy a podlahové konstrukce",null,null,null,{"$f":"SUBTOTAL(9,G175:P183)","v":0},null,null,null,null,null,null,null,null,null,null,null,null,null,null,null,null,null,null,0]
[{"$f":"A173+1","v":50},"632451022R00","Vyrovnávací potěr MC 15, v pásu, tl. 30 mm","m2",2.64,null,{"$f":"E175*F175","v":0},null,null,null,null,null,null,null,null,null,null,null,null,null,null,null,null,null,null,null,null,"SPX"]
[null,null,"nástupiště : 8*1,1*0,3",null,2.64,null,null,null,null,null,null,null,null,null,null,null,null,null,null,null,null,null,null,null,null,null,null,"POL",null,null,null,null,null,null,null,21]
[{"$f":"A175+1","v":51},"634601131R00","Zaplnění dilatačních spár mazanin, šířka 30 mm","m",8.8000000000000007,null,{"$f":"E177*F177","v":0}]
[null,null,"nástupiště : 8*1,1",null,8.8000000000000007]
[{"$f":"A177+1","v":52},"771578011R00","Spára podlaha - stěna, silikonem","m",17.600000000000001,null,{"$f":"E179*F179","v":0}]
[{"$f":"A179+1","v":53},"631100000RA0","Podlaha z dlažby mramorové v materiálu pohledově shodném s mramorem schodiště","m2",0.88,null,0]
[null,null,"8*1,1*0,1",null,0.88]
[{"$f":"A180+1","v":54},"905      RT2","HZS - nezměřitelné práce malého rozsahu, Práce v tarifní třídě 5","h",8,null,{"$f":"E182*F182","v":0}]
[{"$f":"A182+1","v":55},"R63-01","Příplatek za malý rozsah mramor.dlažby","kpl.",1,null,0,null,null,null,null,null,null,null,null,null,null,null,null,null,null,null,null,null,null,0]
["Díl:","94","Lešení a stavební výtahy",null,null,null,{"$f":"SUBTOTAL(9,G185:P190)","v":0},null,null,null,null,null,null,null,null,null,null,null,null,null,null,null,null,null,null,null,null,"SPX"]
[{"$f":"A183+1","v":56},"941955002R00","Lešení lehké pomocné, výška podlahy do 1,9 m","m2",40,null,{"$f":"E185*F185","v":0},null,null,null,null,null,null,null,null,null,null,null,null,null,null,null,null,null,null,null,null,"POL",null,null,null,null,null,null,null,21]
[null,null,"8*5,0",null,40]
[{"$f":"A185+1","v":57},"941941111KPL","Pronájem lešení, doprava, manipulace","kompl.",1,null,{"$f":"E187*F187","v":0}]
[{"$f":"A187+1","v":58},"949311113U00","Mtž leš trub šachta do 6m2 v 30m","m",30,null,0]
[{"$f":"A188+1","v":59},"94931121U00","Přípl ZKD den leš k 94931-1111/2/3","m",60,null,0]
[60,"949311813U00","Dmtž leš trub šachta do 6m2 v 30m","m",30,null,0]
["Díl:","95","Dokončovací konstrukce na pozemních stavbách",null,null,null,{"$f":"SUBTOTAL(9,G192:P198)","v":0}]
[{"$f":"A190+1","v":61},"952901111R00","Vyčištění budov o výšce podlaží do 4 m","m2",150,null,{"$f":"E192*F192","v":0}]
[{"$f":"A192+1","v":62},"953941312R00","Osazení hasicího přístroje na stěnu","kus",1,null,0]
[{"$f":"A193+1","v":63},"954112111R00","SDK obklad ocel.sloupů 4str., RF tl.12,5+15 mm","m",1.4500000000000002,null,0]
[{"$f":"A194+1","v":64},"713541201R00","Tmelení spár 2 x 15 mm protipožárním tmelem Promat","m",5.8000000000000007,null,0]
[null,null,"4*1,45",null,5.8000000000000007]
[{"$f":"A195+1","v":65},"905      RT2","HZS - nezměřitelné práce malého rozsahu, Práce v tarifní třídě 5","h",8,null,{"$f":"E197*F197","v":0}]
[{"$f":"A197+1","v":66},"44984142R","Přístroj hasicí sněhový S5Kte","kus",1,null,0]
["Díl:","96","Bourání konstrukcí",null,null,null,{"$f":"SUBTOTAL(9,G200:P215)","v":0}]
[{"$f":"A198+1","v":67},"317314125R00","Podbetonování zhlaví nosníků, zdivo šířky 250 mm","kus",4,null,{"$f":"E200*F200","v":0}]
[{"$f":"A200+1","v":68},"962032231R00","Bourání zdiva z cihel pálených na MVC","m3",14.434080000000002,null,0]
[null,null,"Z/B : 1,4*(26,771+3,3)*0,3",null,12.62982]
[null,null,"0,2*(26,771+3,3)*0,3",null,1.8042600000000002]
[{"$f":"A201+1","v":69},"962052211R00","Bourání zdiva železobetonového nadzákladového","m3",3.4640000000000004,null,{"$f":"E204*F204","v":0}]
[null,null,"P/B : 1,4*(2,3+1,8*2)*0,4",null,3.3040000000000003]
[null,null,"1.PP - nárazníky : 0,4*0,4*0,5*2",null,0.16]
[{"$f":"A204+1","v":70},"967041112R00","Přisekání rovných ostění bez odstupu v betonu","m2",3,null,{"$f":"E207*F207","v":0}]
[{"$f":"A207+1","v":71},"968071112R00","Vyvěšení, zavěšení kovových křídel oken pl. 1,5 m2","kus",5,null,0]
[{"$f":"A208+1","v":72},"968072244R00","Vybourání kovových rámů oken jednod. pl. 1 m2","m2",2.25,null,0]
[null,null,"O/B : 5*0,5*0,9",null,2.25]
[{"$f":"A209+1","v":73},"970231200R00","Řezání cihelného zdiva hl. řezu 200 mm","m",90.213000000000008,null,{"$f":"E211*F211","v":0}]
[null,null,"Z/B : 3*(26,771+3,3)",null,90.213000000000008]
[{"$f":"A211+1","v":74},"973031325R00","Vysekání kapes zeď cihel. MVC, pl. 0,1m2, hl. 30cm","kus",2,null,{"$f":"E213*F213","v":0}]
[{"$f":"A213+1","v":75},"767141800R00","Demontáž konstr.pro beztm.zasklení,vč.zasklení","m2",85.475200000000001,null,0]
[null,null,"PL/B : 26,711*(1,6+1,6)",null,85.475200000000001]
["Díl:","99","Staveništní přesun hmot",null,null,null,{"$f":"SUBTOTAL(9,G217:P217)","v":0}]
[{"$f":"A214+1","v":76},"999281151R00","Přesun hmot pro opravy a údržbu do v. 25 m,nošením","t",12.936430000000001,null,{"$f":"E217*F217","v":0}]
["Díl:","711","Izolace proti vodě",null,null,null,{"$f":"SUBTOTAL(9,G219:P227)","v":0}]
[{"$f":"A217+1","v":77},"711745567R00","Provedení obrácených a zpět. spojů, NAIP, rš 0,5 m","m",12.760000000000002,null,{"$f":"E219*F219","v":0}]
[null,null,"2*2,3+1,8*2",null,8.2000000000000011]
[null,null,"4*1,14",null,4.5600000000000005]
[{"$f":"A219+1","v":78},"907      RT4","HZS - nezměřitelné práce malého rozsahu, Práce v tarifní třídě 7","h",8,null,{"$f":"E222*F222","v":0}]
[{"$f":"A222+1","v":79},"711140014RAA","Izolace proti vodě vodorovná přitavená, 1x, 1x ALP, 1x Sklobit","m2",4.1400000000000006,null,0]
[null,null,"2,3*1,8",null,4.1400000000000006]
[{"$f":"A223+1","v":80},"711150014RAA","Izolace proti vodě svislá přitavená, 1x, 1x ALP, 1x Sklobit","m2",9.7580000000000009,null,{"$f":"E225*F225","v":0}]
[null,null,"1,19*(2,3*2+1,8*2)",null,9.7580000000000009]
[{"$f":"A225+1","v":81},"998711201R00","Přesun hmot pro izolace proti vodě, výšky do 6 m","kpl",1,null,{"$f":"E227*F227","v":0}]
["Díl:","767","Konstrukce zámečnické",null,null,null,{"$f":"SUBTOTAL(9,G229:P238)","v":0}]
[{"$f":"A227+1","v":82},"767995101R00","Výroba a montáž kov. atypických konstr. do 5 kg","kg",10,null,{"$f":"E229*F229","v":0}]
[{"$f":"A229+1","v":83},"767995104R00","Výroba a montáž kov. atypických konstr. do 50 kg","kg",165.66750000000002,null,0]
[null,null,"I160 - 17,9kg/m : 4*1,85*17,9",null,132.46]
[null,null,"Jackel -17,95kg/m : 1,85*17,95",null,33.207500000000003,null,null,null,null,null,null,null,null,null,null,null,null,null,null,null,null,null,null,null,null,null,null,"SPX"]
[{"$f":"A230+1","v":84},"13380530R","Tyč průřezu I 160, střední, jakost oceli 11373","t",0.14306000000000002,null,{"$f":"E233*F233","v":0},null,null,null,null,null,null,null,null,null,null,null,null,null,null,null,null,null,null,null,null,"POL_NEZ",1,null,null,null,null,null,null,21]
[null,null,"hmotnost 17,90 kg/m : 4*1,85*17,9*0,001*1,08",null,0.14306000000000002,null,null,null,null,null,null,null,null,null,null,null,null,null,null,null,null,null,null,null,null,0]
[{"$f":"A233+1","v":85},"55399999R","Ocelové výrobky - kotvy a spojky-atypické prvky","kg",10,null,{"$f":"E235*F235","v":0},null,null,null,null,null,null,null,null,null,null,null,null,null,null,null,null,null,null,null,null,"POL",null,null,null,null,null,null,null,21]
[{"$f":"A235+1","v":86},"14587796160","Profil obdélník. uzavř.svařovaný S235  160x100x6 mm","t",3.7835000000000001E-2,null,0]
[null,null,"17,95kg/m : 1,85*17,95*0,001*1,08",null,3.5860000000000003E-2,null,null,null,null,null,null,null,null,null,null,null,null,null,null,null,null,null,null,null,null,null,null,"POL",null,null,null,null,null,null,null,21]
[{"$f":"A236+1","v":87},"998767104R00","Přesun hmot pro zámečnické konstr., výšky do 36 m","t",0.1978,null,{"$f":"E238*F238","v":0},null,null,null,null,null,null,null,null,null,null,null,null,null,null,null,null,null,null,null,null,"POL",null,null,null,null,null,null,null,21]
["Díl:","783","Nátěry",null,null,null,{"$f":"SUBTOTAL(9,G240:P245)","v":0}]
[{"$f":"A238+1","v":88},"777615217U00","Podlaha beton nátěr 2xSikafloor 261, nátěr dojezdu výtahu odolný proti ropným produktům","m2",4.2015000000000002,null,{"$f":"E240*F240","v":0},null,null,null,null,null,null,null,null,null,null,null,null,null,null,null,null,null,null,0]
[null,null,"podlaha prohlubně : 1,6*1,6+1,4*0,4",null,3.12,null,null,null,null,null,null,null,null,null,null,null,null,null,null,null,null,null,null,null,null,1]
[null,null,"stěny prohlubně : 0,15*(1,61+1,59+1,61+0,2+0,4+1,4+0,4)",null,1.0815000000000001,null,null,null,null,null,null,null,null,null,null,null,null,null,null,null,null,null,null,null,null,0]
[{"$f":"A240+1","v":89},"783220010RAC","Nátěr kovových doplňkových konstrukcí syntetický, dvojnásobný krycí s 1x emailováním","m2",20.194600000000001,null,{"$f":"E243*F243","v":0},null,null,null,null,null,null,null,null,null,null,null,null,null,null,null,null,null,null,null,null,"POL",null,null,null,null,null,null,null,21]
[null,null,"I160 - 0,575m2/m : 4*1,85*0,575",null,4.2550000000000008,null,null,null,null,null,null,null,null,null,null,null,null,null,null,null,null,null,null,null,null,1]
[null,null,"Jackel 160/80 : 1,85*17,95*0,48",null,15.9396,null,null,null,null,null,null,null,null,null,null,null,null,null,null,null,null,null,null,null,null,null,null,"POL",null,null,null,null,null,null,null,21]
["Díl:","784","Malby",null,null,null,{"$f":"SUBTOTAL(9,G247:P254)","v":0}]
[{"$f":"A243+1","v":90},"784191101R00","Penetrace podkladu univerzální  1x","m2",586.83045000000004,null,{"$f":"E247*F247","v":0},null,null,null,null,null,null,null,null,null,null,null,null,null,null,null,null,null,null,null,null,"POL_NEZ",1,null,null,null,null,null,null,21]
[null,null,"omítky-dotčené prostory nástupišť (odhad) : 8*25,00",null,200]
[null,null,"Z1 : 1,45*(26,771+3,3+0,25)",null,43.965450000000004]
[null,null,"Z2 : 5*0,5*0,9",null,2.25,null,null,null,null,null,null,null,null,null,null,null,null,null,null,null,null,null,null,null,null,null,null,"DIL"]
[null,null,"výtahová šachta-interier : 30,9*(2*1,92+2*1,42)",null,206.41200000000001,null,null,null,null,null,null,null,null,null,null,null,null,null,null,null,null,null,null,null,null,0]
[null,null,"výtahová šachta-exterier : 3,3*1,72*8,0",null,45.408000000000001,null,null,null,null,null,null,null,null,null,null,null,null,null,null,null,null,null,null,null,null,null,null,"SPX"]
[null,null,"komínová stěna : 88,795",null,88.795000000000002]
[{"$f":"A247+1","v":91},"784195112R00","Malba tekutá, bílá, 2 x","m2",586.83045000000004,null,{"$f":"E254*F254","v":0}]
["Díl:","M21","Elektromontáže",null,null,null,{"$f":"SUBTOTAL(9,G256:P263)","v":0}]
[{"$f":"A254+1","v":92},"M21-02","ELEKTRO - připojení přívodu k výtahu na stávající domovní rozvod","kpl",1,null,{"$f":"E256*F256","v":0},null,null,null,null,null,null,null,null,null,null,null,null,null,null,null,null,null,null,1]
[{"$f":"A256+1","v":93},"M21-03","ELEKTRO - připojení výtahu do SSK - kabel UTP cat. 6A vč. 4 konektorů na konci kabelu","m",300,null,0]
[94,"M21-04","ELEKTRO - připojení výtahu do SSK - chránička pro kabel UTP cat. 6A","m",300,null,{"$f":"E258*F258","v":0}]
[95,"M21-05","ELEKTRO - připojení výtahu do SSK - příchytky na strop a stěnu pro chráničku na kabel UTP cat. 6A","kpl",1,null,{"$f":"E259*F259","v":0}]
[96,"M21-06","ELEKTRO - připojení výtahu do SSK - měřící protokol pro kabel UTP cat. 6A","kpl",1,null,{"$f":"E260*F260","v":0}]
[{"$f":"A260+1","v":97},"M21-07","ELEKTRO - revize","kpl",1,null,0]
[{"$f":"A261+1","v":98},"210100099","Bezhalogenový přívodní kabel, vč.montáže","kpl.",1,null,0]
[99,"R013","Hluková zkouška","kpl",1,null,0,null,null,null,null,null,null,null,null,null,null,null,null,null,null,null,null,null,null,0]
["Díl:","D96","Přesuny suti a vybouraných hmot",null,null,null,{"$f":"SUBTOTAL(9,G265:P272)","v":0},null,null,null,null,null,null,null,null,null,null,null,null,null,null,null,null,null,null,1]
[{"$f":"A263+1","v":100},"979011111R00","Svislá doprava suti a vybour. hmot za 2.NP a 1.PP","t",36.452200000000005,null,{"$f":"E265*F265","v":0},null,null,null,null,null,null,null,null,null,null,null,null,null,null,null,null,null,null,null,null,"POL",null,null,null,null,null,null,null,21]
[{"$f":"A265+1","v":101},"979011121R00","Příplatek za každé další podlaží","t",182.26098000000002,null,0]
[{"$f":"A266+1","v":102},"979081111R00","Odvoz suti a vybour. hmot na skládku do 1 km","t",36.452200000000005,null,0,null,null,null,null,null,null,null,null,null,null,null,null,null,null,null,null,null,null,0]
[103,"979081121R00","Příplatek k odvozu za každý další 1 km","t",546.78294000000005,null,0,null,null,null,null,null,null,null,null,null,null,null,null,null,null,null,null,null,null,1]
[104,"979082111R00","Vnitrostaveništní doprava suti do 10 m","t",36.452200000000005,null,0,null,null,null,null,null,null,null,null,null,null,null,null,null,null,null,null,null,null,null,null,"POL",null,null,null,null,null,null,null,21]
[105,"979082121R00","Příplatek k vnitrost. dopravě suti za dalších 5 m","t",145.80878000000001,null,0]
[106,"979990102R00","Poplatek za skládku suti - směs betonu a cihel","t",36.452200000000005,null,0,null,null,null,null,null,null,null,null,null,null,null,null,null,null,null,null,null,null,0]
[107,"979093111R00","Uložení suti na skládku bez zhutnění","t",36.452200000000005,null,0,null,null,null,null,null,null,null,null,null,null,null,null,null,null,null,null,null,null,null,null,"POL",null,null,null,null,null,null,null,21]
["Díl:","M33","Montáže dopravích zařízení a vah - výtahy",null,null,null,{"$f":"SUBTOTAL(9,G274:P275)","v":0}]
[{"$f":"A272+1","v":108},"330530206R0X","Demontáž stávající výtahové technologie","kpl.",1,null,{"$f":"E274*F274","v":0}]
[{"$f":"A274+1","v":109},"330530206R0Z","Demontáž stávající ocel. konstrukce šachty vč. šachetních dveří, kotvení","kpl.",1,null,0,null,null,null,null,null,null,null,null,null,null,null,null,null,null,null,null,null,null,0]
["Díl:","M33","Montáže dopravích zařízení a vah - výtahy",null,null,null,{"$f":"SUBTOTAL(9,G277:P277)","v":0},null,null,null,null,null,null,null,null,null,null,null,null,null,null,null,null,null,null,1]
[{"$f":"A275+1","v":110},"330030128","Dodávka a montáž výtahu osobního lanového  630/0,63, 8 stanic,  8 nástupišť, dle specifikace PD","kus",1,null,{"$f":"E277*F277","v":0},null,null,null,null,null,null,null,null,null,null,null,null,null,null,null,null,null,null,null,null,"POL",null,null,null,null,null,null,null,21]
["Díl:","311","Sádrokartony",null,null,null,{"$f":"SUBTOTAL(9,G279:P281)","v":0}]
[{"$f":"A277+1","v":111},"762161110RA0","Protipožární opláštění (oboustranné)SDK/MW/SDK, vč tmelení spár protipož.tmelem - dle PD, EI 30DP1 s použitím desek Rigips habito 12,5mm","m2",73.986000000000004,null,0,null,null,null,null,null,null,null,null,null,null,null,null,null,null,null,null,null,null,null,null,null,null,null,null,null,null,null,null,null,15,21]
[null,null,"čelní stěna : 30,96*1,4-8*1,1*2,235",null,23.676000000000002]
[null,null,"boční stěna : 30,96*1,625",null,50.31]
["Díl:","M43","Montáže ocelových konstrukcí",null,null,null,{"$f":"SUBTOTAL(9,G283:P299)","v":0}]
[{"$f":"A279+1","v":112},"4308000XX","Ocelová konstrukce výtahové šachty, vč.nátěrů, oplechování a větracích mřížek, D+M","komplet",1,null,{"$f":"E283*F283","v":0}]
[{"$f":"A283+1","v":113},"43080010XX","Opláštění konstrukce výtahové šachty bezpečnostním barv.sklem 4.4.1, z vnější strany na terče, D+M","m2",52.119250000000001,null,0]
[null,null,"čelní stěna : (3,05+3,14*3+3,68*2+2,66)*1,625-8*1,1*2,235",null,16.878250000000001]
[null,null,"boční stěna : (2,56*2+3,14*4+3,05)*1,7",null,35.241000000000007]
[{"$f":"A284+1","v":114},"14587263M","Profil čtvercový uzavř.svařovaný  S235  50 x 3 mm","m",182.85000000000002,null,{"$f":"E287*F287","v":0}]
[null,null,"příčníky čelní hlavní : 22*1,58",null,34.760000000000005]
[null,null,"příčníky boční hlavní : 26*1,6",null,41.6]
[null,null,"sloupky ostění : 16*2,3",null,36.800000000000004]
[null,null,"sloupy hlavní rohové : 3*3,05+9*3,14+6*3,68+2*2,66",null,64.81]
[null,null,"sloupky u průvlaku : 6*0,28",null,1.6800000000000002]
[null,null,"příčníky dělící : 8*0,4",null,3.2]
[{"$f":"A287+1","v":115},"145877784M","Profil obdélník. uzavř.svařovaný S235   80x50x4 mm","m",178.34,null,{"$f":"E294*F294","v":0}]
[null,null,"příčníky čelní krátké : 8*0,27",null,2.16]
[null,null,"příčníky čelní hlavní : 20*1,34",null,26.8]
[null,null,"příčníky boční hlavní : 26*1,45",null,37.700000000000003]
[null,null,"sloupy hlavní : 3*30,96",null,92.88000000000001]
[null,null,"sloupky ostění : 8*2,35",null,18.8]

{"sheet":"05_SO O4 - Stav arch část","index":9,"n_rows":763,"n_cols":38,"rows_kept":763,"cut":false,"hidden":false,"merged":[[43,3,43,6],[24,3,24,6],[25,2,25,6],[83,2,83,3],[84,2,84,3],[85,2,85,3],[86,2,86,3],[87,2,87,3],[88,2,88,3],[75,2,75,6],[78,2,78,3],[79,2,79,3],[80,2,80,3],[81,2,81,3],[82,2,82,3],[96,2,96,3],[97,2,97,3],[98,2,98,3],[99,2,99,3],[100,2,100,3],[101,2,101,3],[89,2,89,3],[90,2,90,3],[91,2,91,3],[92,2,92,3],[93,2,93,3],[94,2,94,3],[108,2,108,3],[110,2,110,3],[111,2,111,3],[112,2,112,3],[113,2,113,3],[114,2,114,3],[102,2,102,3],[103,2,103,3],[104,2,104,3],[105,2,105,3],[106,2,106,3],[107,2,107,3],[122,2,122,3],[123,2,123,3],[124,2,124,3],[125,2,125,3],[126,2,126,3],[127,2,127,3],[115,2,115,3],[116,2,116,3],[117,2,117,3],[118,2,118,3],[119,2,119,3],[121,2,121,3],[135,2,135,3],[137,2,137,3],[138,2,138,3],[139,2,139,3],[140,2,140,3],[141,2,141,3],[128,2,128,3],[130,2,130,3],[131,2,131,3],[132,2,132,3],[133,2,133,3],[134,2,134,3],[148,2,148,3],[149,2,149,3],[151,2,151,3],[158,2,158,3],[166,2,166,3],[168,2,168,3],[142,2,142,3],[143,2,143,3],[144,2,144,3],[145,2,145,3],[146,2,146,3],[147,2,147,3],[176,2,176,3],[177,2,177,3],[178,2,178,3],[179,2,179,3],[180,2,180,3],[181,2,181,3],[169,2,169,3],[170,2,170,3],[172,2,172,3],[173,2,173,3],[174,2,174,3],[175,2,175,3],[188,2,188,3],[189,2,189,3],[190,2,190,3],[191,2,191,3],[192,2,192,3],[193,2,193,3],[182,2,182,3],[183,2,183,3],[184,2,184,3],[185,2,185,3],[186,2,186,3],[187,2,187,3],[200,2,200,3],[201,2,201,3],[202,2,202,3],[203,2,203,3],[204,2,204,3],[205,2,205,3],[194,2,194,3],[195,2,195,3],[196,2,196,3],[197,2,197,3],[198,2,198,3],[199,2,199,3],[212,2,212,3],[213,2,213,3],[214,2,214,3],[215,2,215,3],[216,2,216,3],[217,2,217,3],[206,2,206,3],[207,2,207,3],[208,2,208,3],[209,2,209,3],[210,2,210,3],[211,2,211,3],[224,2,224,3],[225,2,225,3],[226,2,226,3],[227,2,227,3],[228,2,228,3],[229,2,229,3],[218,2,218,3],[219,2,219,3],[220,2,220,3],[221,2,221,3],[222,2,222,3],[223,2,223,3],[236,2,236,3],[237,2,237,3],[238,2,238,3],[239,2,239,3],[240,2,240,3],[241,2,241,3],[230,2,230,3],[231,2,231,3],[232,2,232,3],[233,2,233,3],[234,2,234,3],[235,2,235,3],[248,2,248,3],[250,2,250,3],[257,2,257,3],[265,2,265,3],[268,2,268,3],[271,2,271,3],[242,2,242,3],[243,2,243,3],[244,2,244,3],[245,2,245,3],[246,2,246,3],[247,2,247,3],[281,2,281,3],[282,2,282,3],[283,2,283,3],[285,2,285,3],[286,2,286,3],[287,2,287,3],[275,2,275,3],[276,2,276,3],[277,2,277,3],[278,2,278,3],[279,2,279,3],[280,2,280,3],[295,2,295,3],[296,2,296,3],[298,2,298,3],[299,2,299,3],[300,2,300,3],[301,2,301,3],[288,2,288,3],[289,2,289,3],[291,2,291,3],[292,2,292,3],[293,2,293,3],[294,2,294,3],[309,2,309,3],[310,2,310,3],[311,2,311,3],[312,2,312,3],[313,2,313,3],[314,2,314,3],[302,2,302,3],[303,2,303,3],[305,2,305,3],[306,2,306,3],[307,2,307,3],[308,2,308,3],[322,2,322,3],[323,2,323,3],[324,2,324,3],[325,2,325,3],[326,2,326,3],[327,2,327,3],[316,2,316,3],[317,2,317,3],[318,2,318,3],[319,2,319,3],[320,2,320,3],[321,2,321,3],[334,2,334,3],[335,2,335,3],[336,2,336,3],[337,2,337,3],[338,2,338,3],[339,2,339,3],[328,2,328,3],[329,2,329,3],[330,2,330,3],[331,2,331,3],[332,2,332,3],[333,2,333,3],[346,2,346,3],[347,2,347,3],[348,2,348,3],[349,2,349,3],[350,2,350,3],[351,2,351,3],[340,2,340,3],[341,2,341,3],[342,2,342,3],[343,2,343,3],[344,2,344,3],[345,2,345,3],[358,2,358,3],[359,2,359,3],[360,2,360,3],[361,2,361,3],[362,2,362,3],[363,2,363,3],[352,2,352,3],[353,2,353,3],[354,2,354,3],[355,2,355,3],[356,2,356,3],[357,2,357,3],[370,2,370,3],[371,2,371,3],[374,2,374,3],[375,2,375,3],[376,2,376,3],[377,2,377,3],[364,2,364,3],[365,2,365,3],[366,2,366,3],[367,2,367,3],[368,2,368,3],[369,2,369,3],[382,2,382,3],[383,2,383,3],[385,2,385,3],[386,2,386,3],[387,2,387,3],[388,2,388,3],[380,2,380,3],[381,2,381,3],[378,2,378,3],[397,2,397,3],[399,2,399,3],[400,2,400,3],[401,2,401,3],[402,2,402,3],[403,2,403,3],[389,2,389,3],[390,2,390,3],[391,2,391,3],[392,2,392,3],[393,2,393,3],[395,2,395,3],[411,2,411,3],[412,2,412,3],[413,2,413,3],[415,2,415,3],[416,2,416,3],[417,2,417,3],[404,2,404,3],[406,2,406,3],[407,2,407,3],[408,2,408,3],[409,2,409,3],[410,2,410,3],[425,2,425,3],[426,2,426,3],[427,2,427,3],[429,2,429,3],[430,2,430,3],[431,2,431,3],[418,2,418,3],[419,2,419,3],[421,2,421,3],[422,2,422,3],[423,2,423,3],[424,2,424,3],[439,2,439,3],[441,2,441,3],[443,2,443,3],[444,2,444,3],[445,2,445,3],[446,2,446,3],[432,2,432,3],[434,2,434,3],[435,2,435,3],[436,2,436,3],[437,2,437,3],[438,2,438,3],[455,2,455,3],[456,2,456,3],[458,2,458,3],[460,2,460,3],[461,2,461,3],[462,2,462,3],[448,2,448,3],[450,2,450,3],[451,2,451,3],[452,2,452,3],[453,2,453,3],[454,2,454,3],[471,2,471,3],[474,2,474,3],[479,2,479,3],[488,2,488,3],[489,2,489,3],[490,2,490,3],[463,2,463,3],[464,2,464,3],[465,2,465,3],[467,2,467,3],[468,2,468,3],[470,2,470,3],[502,2,502,3],[503,2,503,3],[505,2,505,3],[506,2,506,3],[508,2,508,3],[509,2,509,3],[491,2,491,3],[492,2,492,3],[493,2,493,3],[494,2,494,3],[499,2,499,3],[500,2,500,3],[518,2,518,3],[520,2,520,3],[521,2,521,3],[522,2,522,3],[524,2,524,3],[525,2,525,3],[510,2,510,3],[512,2,512,3],[513,2,513,3],[514,2,514,3],[516,2,516,3],[517,2,517,3],[534,2,534,3],[536,2,536,3],[537,2,537,3],[539,2,539,3],[540,2,540,3],[542,2,542,3],[526,2,526,3],[528,2,528,3],[529,2,529,3],[530,2,530,3],[532,2,532,3],[533,2,533,3],[592,2,592,3],[593,2,593,3],[594,2,594,3],[595,2,595,3],[596,2,596,3],[597,2,597,3],[543,2,543,3],[545,2,545,3],[546,2,546,3],[548,2,548,3],[549,2,549,3],[591,2,591,3],[604,2,604,3],[605,2,605,3],[606,2,606,3],[607,2,607,3],[608,2,608,3],[609,2,609,3],[598,2,598,3],[599,2,599,3],[600,2,600,3],[601,2,601,3],[602,2,602,3],[603,2,603,3],[621,2,621,3],[622,2,622,3],[623,2,623,3],[624,2,624,3],[625,2,625,3],[626,2,626,3],[611,2,611,3],[616,2,616,3],[617,2,617,3],[618,2,618,3],[619,2,619,3],[620,2,620,3],[633,2,633,3],[634,2,634,3],[635,2,635,3],[636,2,636,3],[637,2,637,3],[638,2,638,3],[627,2,627,3],[628,2,628,3],[629,2,629,3],[630,2,630,3],[631,2,631,3],[632,2,632,3],[645,2,645,3],[646,2,646,3],[647,2,647,3],[648,2,648,3],[649,2,649,3],[650,2,650,3],[639,2,639,3],[640,2,640,3],[641,2,641,3],[642,2,642,3],[643,2,643,3],[644,2,644,3],[657,2,657,3],[658,2,658,3],[659,2,659,3],[660,2,660,3],[661,2,661,3],[662,2,662,3],[651,2,651,3],[652,2,652,3],[653,2,653,3],[654,2,654,3],[655,2,655,3],[656,2,656,3],[669,2,669,3],[670,2,670,3],[671,2,671,3],[672,2,672,3],[673,2,673,3],[674,2,674,3],[663,2,663,3],[664,2,664,3],[665,2,665,3],[666,2,666,3],[667,2,667,3],[668,2,668,3],[681,2,681,3],[682,2,682,3],[683,2,683,3],[684,2,684,3],[685,2,685,3],[686,2,686,3],[675,2,675,3],[676,2,676,3],[677,2,677,3],[678,2,678,3],[679,2,679,3],[680,2,680,3],[693,2,693,3],[694,2,694,3],[695,2,695,3],[696,2,696,3],[697,2,697,3],[698,2,698,3],[687,2,687,3],[688,2,688,3],[689,2,689,3],[690,2,690,3],[691,2,691,3],[692,2,692,3],[706,2,706,3],[707,2,707,3],[708,2,708,3],[709,2,709,3],[710,2,710,3],[711,2,711,3],[699,2,699,3],[701,2,701,3],[702,2,702,3],[703,2,703,3],[704,2,704,3],[705,2,705,3],[726,2,726,3],[727,2,727,3],[728,2,728,3],[729,2,729,3],[730,2,730,3],[731,2,731,3],[712,2,712,3],[713,2,713,3],[714,2,714,3],[721,2,721,3],[722,2,722,3],[725,2,725,3],[738,2,738,3],[739,2,739,3],[740,2,740,3],[742,2,742,3],[743,2,743,3],[732,2,732,3],[733,2,733,3],[734,2,734,3],[735,2,735,3],[736,2,736,3],[737,2,737,3]]}
[{"$f":"CONCATENATE('Rekapitulace stavby'!C57,\"_\",'Rekapitulace stavby'!I57)","v":"05_SO 04 - Stavebně - architektonická část"}]
[]
["SPECIFIKACE DODÁVEK A PRACÍ "]
["Název akce:"]
[{"$f":"'Identifikační údaje'!B1","v":"ČRo Brno – II. etapa rekonstrukce budovy Beethovenova 25/4"}]
[]
["Zadavatel:",null,{"$f":"'Identifikační údaje'!E7","v":"Český rozhlas, Vinohradská 12, 120 99 Praha 2"}]
[null,"IČ:",{"$f":"'Identifikační údaje'!B9","v":45245053}]
[null,"DIČ:",{"$f":"'Identifikační údaje'!B10","v":"CZ45245053"}]
[]
["Projektant:",null,{"$f":"'Identifikační údaje'!E12","v":"Ing. arch. Klement Miloš, Nejedlého 381/19, 638 00 Brno - Lesná"}]
[null,"IČ:",{"$f":"'Identifikační údaje'!B14","v":15188736}]
[null,"DIČ:",{"$f":"'Identifikační údaje'!B15","v":"CZ6101021344"}]
[]
["Uchazeč:",null,{"$f":"'Identifikační údaje'!E19","v":", ,  "}]
[null,"IČ:",{"$f":"'Identifikační údaje'!B23","v":0}]
[null,"DIČ:",{"$f":"'Identifikační údaje'!B24","v":0}]
[]
["Místo stavby:",null,{"$f":"'Identifikační údaje'!B3","v":"Budova Českého rozhlasu Brno na adrese Beethovenova 25/4, 657 42 Brno"}]
[]
["Datum vyplnění:",null,{"$f":"'Identifikační údaje'!B5","v":"00:00:00"}]
[]
[{"$f":"CONCATENATE(\"REKAPITULACE DODÁVEK A PRACÍ OBJEKTU \",'Rekapitulace stavby'!I57)","v":"REKAPITULACE DODÁVEK A PRACÍ OBJEKTU SO 04 - Stavebně - architektonická část"}]
[]
["P.č.","Číslo položky","Název položky","Kč bez DPH"]
[null,"Ceník, kapitola"]
["Díl:",{"$f":"B77","v":"3"},{"$f":"C77","v":"Svislé a kompletní konstrukce"},null,null,null,{"$f":"G77","v":0}]
["Díl:",{"$f":"B165","v":"61"},{"$f":"C165","v":"Upravy povrchů vnitřní"},null,null,null,{"$f":"G165","v":0}]
["Díl:",{"$f":"B264","v":"63"},{"$f":"C264","v":"Podlahy a podlahové konstrukce"},null,null,null,{"$f":"G264","v":0}]
["Díl:",{"$f":"B267","v":"94"},{"$f":"C267","v":"Lešení a stavební výtahy"},null,null,null,{"$f":"G267","v":0}]
["Díl:",{"$f":"B270","v":"95"},{"$f":"C270","v":"Dokončovací kce na pozem.stav."},null,null,null,{"$f":"G270","v":0}]
["Díl:",{"$f":"B274","v":"96"},{"$f":"C274","v":"Bourání konstrukcí"},null,null,null,{"$f":"G274","v":0}]
["Díl:",{"$f":"B484","v":"99"},{"$f":"C484","v":"Staveništní přesun hmot"},null,null,null,{"$f":"G484","v":0}]
["Díl:",{"$f":"B487","v":"711"},{"$f":"C487","v":"Izolace proti vodě"},null,null,null,{"$f":"G487","v":0}]
["Díl:",{"$f":"B498","v":"766"},{"$f":"C498","v":"Konstrukce truhlářské"},null,null,null,{"$f":"G498","v":0}]
["Díl:",{"$f":"B560","v":"767"},{"$f":"C560","v":"Konstrukce zámečnické"},null,null,null,{"$f":"G560","v":0}]
["Díl:",{"$f":"B590","v":"771"},{"$f":"C590","v":"Podlahy z dlaždic a obklady"},null,null,null,{"$f":"G590","v":0}]
["Díl:",{"$f":"B614","v":"781"},{"$f":"C614","v":"Obklady keramické"},null,null,null,{"$f":"G614","v":0}]
["Díl:",{"$f":"B717","v":"782"},{"$f":"C717","v":"Konstrukce z přírodního kamene"},null,null,null,{"$f":"G717","v":0}]
["Díl:",{"$f":"B720","v":"784"},{"$f":"C720","v":"Malby"},null,null,null,{"$f":"G720","v":0}]
["Díl:",{"$f":"B724","v":"40"},{"$f":"C724","v":"Podhledy"},null,null,null,{"$f":"G724","v":0}]
["Díl:",{"$f":"B745","v":"770"},{"$f":"C745","v":"Ostatní"},null,null,null,{"$f":"G745","v":0}]
[]
[{"$f":"CONCATENATE(\"CELKEM ZA OBJEKT \",'Rekapitulace stavby'!I57, \" v Kč bez DPH\")","v":"CELKEM ZA OBJEKT SO 04 - Stavebně - architektonická část v Kč bez DPH"},null,null,{"$f":"SUM(G27:G42)","v":0}]
[]
[]
[]
[]
[]
[]
[]
[]
[]
[]
[]
[]
[]
[]
[]
[]
[]
[]
[]
[]
[]
[]
[]
[]
[]
[]
[]
[]
[]
[]
["P.č.","Číslo položky","Název položky","MJ","množství","cena / MJ","celkem"]
[null,"Ceník, kapitola","Poznámka uchazeče"]
["Díl:","3","Svislé a kompletní konstrukce",null,null,null,{"$f":"SUBTOTAL(9,G78:G164)","v":0},null,null,null,null,null,null,null,null,null,null,null,null,null,null,null,null,null,null,null,null,"POL",null,null,null,null,null,null,null,21]
[1,"342 26-2411.RT4","Příčka SDK instalační 2x OK, 2x opl. tl. 220 mm desky  impreg. tl. 12,5 mm, Orsil tl. 5 cm","m2",61.026000000000003,null,{"$f":"E78*F78","v":0}]
[null,null,";předstěny ZTI",null,0]
[null,null,";přízemí",null,0]
[null,null,"1,08*1,20",null,1.296]
[null,null,"mezipatro:",null,0]
[null,null,"(0,955+0,885+0,89+0,85+2,185+2,045+3,40)*1,20",null,13.452]
[null,null,"(1,17+1,20+0,50)*1,20",null,3.444]
[null,null,";1.patro",null,0]
[null,null,"(1,715+1,655)*1,20",null,4.0439999999999996]
[null,null,";2.patro",null,0]
[null,null,"(2,30+0,90+0,90+0,90+0,90+1,15+1,00+1,00)*1,20",null,10.86]
[null,null,";3.patro",null,0]
[null,null,"(2,165+0,84+0,94+0,94+0,97+1,16+0,955+1,63)*1,20",null,11.52]
[null,null,";4.patro",null,0]
[null,null,"(1,75+0,90+0,90+0,90+1,30+0,90+0,90)*1,20",null,9.06]
[null,null,"(1,625+0,90+0,90)*1,20",null,4.1100000000000003]
[null,null,";5.patro",null,0]
[null,null,"(0,90+0,90+0,90)*1,20",null,3.24]
[{"$f":"A78+1","v":2},"342 24-812","Příčky POROTHERM  AKU na MVC 5, tl. 125 mm ","m2",186.17420000000001,null,{"$f":"E96*F96","v":0}]
[null,null,";mezipatro",null,0]
[null,null,"(2,55+3,76+2,55+2,255+0,86)*3,70",null,44.307499999999997]
[null,null,";2.patro",null,0]
[null,null,"(2,30+3,15+1,90+1,37)*2,99-0,70*2,00-0,85*2,00",null,22.972799999999999]
[null,null,";3.patro",null,0]
[null,null,"(2,165+3,32+1,70+1,00+2,60)*2,99-0,70*2,00",null,30.847200000000001]
[null,null,";4.patro",null,0]
[null,null,"(3,90+1,125+2,38+1,625+0,90)*2,99-0,70*2,00*2",null,26.890699999999999]
[null,null,"(1,40+1,80+1,40)*2,99+(3,00+2,30)*2,99",null,29.600999999999999]
[null,null,"-0,80*2,00*3",null,-4.8]
[null,null,";5.patro",null,0]
[null,null,"(2,20+1,20+2,50+1,60+2,70)*2,99-0,70*2,00*3",null,26.297999999999998]
[null,null,"(1,80+1,50+1,00)*2,99-0,70*2,00*2",null,10.057]
[{"$f":"A96+1","v":3},"342 24-811","Příčky POROTHERM  AKU na MVC 5, tl. 100 mm ","m2",39.129300000000001,null,{"$f":"E110*F110","v":0}]
[null,null,";mezipatro",null,0]
[null,null,"(0,90+1,275)*3,70-0,70*2,00",null,6.6475]
[null,null,";1.patro",null,0]
[null,null,"1,575*2,99-0,65*2,00",null,3.4093]
[null,null,";2.patro",null,0]
[null,null,"(1,30+1,70+2,90)*2,99-0,70*2,00-0,85*2,00",null,14.541]
[null,null,";3.patro",null,0]
[null,null,"(0,235+2,70)*2,99",null,8.7757000000000005]
[null,null,";4.patro",null,0]
[null,null,"(1,625+0,30)*2,99",null,5.7557999999999998]
[{"$f":"A110+1","v":4},"340 23-921","Zazdívka otvorů pl.4 m2,cihlami tl.zdi do 10 cm vč.omítky","m2",13.007999999999999,null,{"$f":"E121*F121","v":0}]
[null,null,";mezipatro",null,0]
[null,null,"0,90*2,00+0,70*2,04",null,3.2280000000000002]
[null,null,";1.patro",null,0]
[null,null,"0,65*2,00*2*0,65*2,00",null,3.38]
[null,null,";2.patro",null,0]
[null,null,"1,00*2,00*2",null,4]
[null,null,";5.patro",null,0]
[null,null,"0,60*2,00*2",null,2.4]
[{"$f":"A121+1","v":5},"340 23-9212.R00","Zazdívka otvorů pl.4 m2,cihlami tl.zdi nad 10 cm vč.omítky","m2",5.75,null,{"$f":"E130*F130","v":0}]
[null,null,";mezipatro",null,0]
[null,null,"0,90*2,10+0,85*2,00+0,30*3,70",null,4.7]
[null,null,";3.patro",null,0]
[null,null,"0,525*2,00",null,1.05]
[null,null,";4.patro",null,0]
[null,null,"0,90*2,001,00*2,00",null,0]
[{"$f":"A130+1","v":6},"310 23-921","Zazdívka  cihlami na MVC vč.omítkky vč.provázání se stávajícím zdivem","m3",5.5983000000000001,null,{"$f":"E137*F137","v":0}]
[null,null,";mezipatro",null,0]
[null,null,"0,30*3,70*0,30+0,60*3,70*0,30+0,20*3,70*0,20",null,1.147]
[null,null,";1.patro",null,0]
[null,null,"0,70*1,78*0,60+0,20*2,99*0,20",null,0.86719999999999997]
[null,null,";2.patro",null,0]
[null,null,"0,70*1,78*0,60+0,20*2,99*0,20",null,0.86719999999999997]
[null,null,";3.patro",null,0]
[null,null,"0,70*1,78*0,60+0,20*2,99*0,20",null,0.86719999999999997]
[null,null,";4.patro",null,0]
[null,null,"0,70*1,78*0,60+0,20*2,99*0,20",null,0.86719999999999997]
[null,null,"0,75*2,99*0,20",null,0.44850000000000001]
[null,null,";5..patro",null,0]
[null,null,"0,50*1,78*0,60",null,0.53400000000000003]
[{"$f":"A137+1","v":7},"31701","Překlad z I prof. Č.100 dl.1000 mm  D+M  vč.plentování","ks",{"$f":"SUM(E152:E157)","v":14},null,{"$f":"E151*F151","v":0}]
[null,null,";mezipatro:2",null,2]
[null,null,"1.patro:1",null,1]
[null,null,"2.patro:3",null,3]
[null,null,"3.patro:3",null,3]
[null,null,"4.patro:3",null,3]
[null,null,"5.patro:2",null,2]
[{"$f":"A151+1","v":8},"31702","Překlad z I prof. Č.100 dl.1200 mm  D+M  vč.plentování","ks",{"$f":"SUM(E159:E164)","v":6},null,{"$f":"E158*F158","v":0}]
[null,null,";mezipatro:1",null,1]
[null,null,"1.patro:0",null,0]
[null,null,"2.patro:1",null,1]
[null,null,"3.patro:1",null,1]
[null,null,"4.patro:3",null,3]
[null,null,"5.patro:0",null,0]
["Díl:","61","Upravy povrchů vnitřní",null,null,null,{"$f":"SUBTOTAL(9,G166:G263)","v":0}]
[{"$f":"A158+1","v":9},"612 47-3182.R00","Omítka vnitřního zdiva ze suché směsi, štuková ","m2",572.65,null,{"$f":"E166*F166","v":0}]
[null,null,"(61,026+186,17+39,129)*2",null,572.65]
[{"$f":"A166+1","v":10},"611 10-0011","Oprava omítek stropů vnitřních přeštukování a dvojnásobný nátěr stávající beton skořepiny","m2",49.71,null,{"$f":"E168*F168","v":0}]
[null,null,"1.patro:1,60+1,60",null,3.2]
[null,null,"2.patro:2*1,30+5,50+2*1,30+1,50+1,50",null,13.7]
[null,null,"4.patro:2*8,80+1,17+1,17+2,27+7,80+1,40+1,40",null,32.81]
[{"$f":"A168+1","v":11},"6121000","Oprava omítek stěn vápenocem.štuková oprava z 10%. malba dvojnásobná, otěruvzdorná, bílá, včetně penetrace povrchu","m2",359.2022,null,{"$f":"E172*F172","v":0}]
[null,null,";přízemí",null,0]
[null,null,"P9:(2,365+1,62)*2*0,70",null,5.5789999999999997]
[null,null,"P10:(1,08+1,62)*2*0,70",null,3.78]
[null,null,"P11:(1,505+1,62)*2*0,70",null,4.375]
[null,null,";mezipatro",null,0]
[null,null,"M08:(4,355+1,405)*2*0,70",null,8.0640000000000001]
[null,null,"M13:(1,90+2,50)*2*0,70",null,6.16]
[null,null,"M14:(1,245+1,17)*2*0,70",null,3.3809999999999998]
[null,null,"M15:(1,85+2,60)*2*0,70",null,6.23]
[null,null,"M31a:(1,54+3,40)*2*0,70",null,6.9160000000000004]
[null,null,"M31b:(1,15+2,13)*2*0,70",null,4.5919999999999996]
[null,null,"M32:(1,889+2,185)*2*0,70",null,5.7035999999999998]
[null,null,";M32a:((0,955+1,35)*2*0,70)*2",null,6.4539999999999997]
[null,null,"M33:(0,78+1,275)*2*0,70",null,2.8769999999999998]
[null,null,"M33a:(2,07+3,40)*2*0,70",null,7.6580000000000004]
[null,null,"M34:(1,994+2,185)*2*0,70",null,5.8506]
[null,null,"M34a:((0,89+1,35)*2*0,70)*2",null,6.2720000000000002]
[null,null,";1.patro",null,0]
[null,null,"103:(1,665+1,43)*2*0,70",null,4.3330000000000002]
[null,null,"103a:(1,665+1,89)*2*0,70",null,4.9770000000000003]
[null,null,"103b:(1,665+0,78)*2*0,70",null,3.423]
[null,null,"104:(1,715+2,34)*2*0,70",null,5.6769999999999996]
[null,null,"105a:(1,575+0,83)*2*0,70",null,3.367]
[null,null,"105b:(1,575+1,90)*2*0,70",null,4.8650000000000002]
[null,null,"105c:(1,575+1,35)*2*0,70",null,4.0949999999999998]
[null,null,"106:(1,445+2,10)*2*0,70",null,4.9630000000000001]
[null,null,"124:(2,19+1,48)*2*0,70",null,5.1379999999999999]
[null,null,"124a:(1,025+1,59)*2*0,70",null,3.661]
[null,null,"124b:(1,065+1,59)*2*0,70",null,3.7170000000000001]
[null,null,";2.patro",null,0]
[null,null,"214:(1,15+1,625)*2*0,70",null,3.8849999999999998]
[null,null,"215:(1,90+1,625)*2*0,70",null,4.9349999999999996]
[null,null,"215a:(3,15+2,30)*2*0,70",null,7.63]
[null,null,"215b:((0,90+1,475)*2*0,70)*2",null,6.65]
[null,null,"216:(1,90+2,90)*2*0,70",null,6.72]
[null,null,"216a:((0,90+1,475)*2*0,70)*2",null,6.65]
[null,null,"217:(1,775+2,30)*2*0,70",null,5.7050000000000001]
[null,null,"206:(1,00+1,50)*2*0,70",null,3.5]
[null,null,"207:(1,00+1,50)*2*0,70",null,3.5]
[null,null,"208:(1,00+1,50)*2*0,70",null,3.5]
[null,null,"209:(1,00+1,50)*2*0,70",null,3.5]
[null,null,";3.patro",null,0]
[null,null,"307:(2,70+1,48)*2*0,70",null,5.8520000000000003]
[null,null,"308:(0,955+1,48)*2*0,70",null,3.4089999999999998]
[null,null,"309:(1,63+1,48)*2*0,70",null,4.3540000000000001]
[null,null,"315:(1,16+1,455)*2*0,70",null,3.661]
[null,null,"317:(4,06+1,455)*2*0,70",null,7.7210000000000001]
[null,null,"317a:((0,94+1,56)*2*0,70)*2",null,7]
[null,null,"317b:(3,32+2,50)*2*0,70",null,8.1479999999999997]
[null,null,"316:(1,88+2,70)*2*0,70",null,6.4119999999999999]
[null,null,"316a:((0,94+1,56)*2*0,70)*2",null,7]
[null,null,"318:(1,825+2,165)*2*0,70",null,5.5860000000000003]
[null,null,";4.patro",null,0]
[null,null,"408:(1,80+1,625)*2*0,70",null,4.7949999999999999]
[null,null,"409:(1,80+1,625)*2*0,70",null,4.7949999999999999]
[null,null,"410:(3,90+2,725)*2*0,70",null,9.2750000000000004]
[null,null,"410a:((0,90+1,52)*2*0,70)*2",null,6.7759999999999998]
[null,null,"411:(3,15+2,80)*2*0,70",null,8.33]
[null,null,"411a:(0,90+1,30)*2*0,70",null,3.08]
[null,null,"411b:(0,90+1,30)*2*0,70",null,3.08]
[null,null,"412:(1,125+1,625)*2*0,70",null,3.85]
[null,null,"412a:(1,125+2,38)*2*0,70",null,4.907]
[null,null,"412a:(1,30+0,90)*2*0,70*2",null,6.16]
[null,null,"412b:(1,74+1,30)*2*0,70*2",null,8.5120000000000005]
[null,null,"413c:(1,30+1,30)*2*0,70",null,3.64]
[null,null,"413d:(1,30+0,90)*2*0,70",null,3.08]
[null,null,"426:(2,00+1,48)*2*0,70",null,4.8719999999999999]
[null,null,"426a:(1,00+1,53)*2*0,70",null,3.5419999999999998]
[null,null,"426b:(1,00+1,53)*2*0,70",null,3.5419999999999998]
[null,null,";5.patro",null,0]
[null,null,"511:(1,70+0,90)*2*0,70",null,3.64]
[null,null,"       (0,90+1,40)*2*0,70",null,3.22]
[null,null,"       (1,90+2,40)*2*0,70",null,6.02]
[null,null,"513:(1,50+1,00)*2*0,70",null,3.5]
[null,null,"        (0,90+1,20)*2*0,70",null,2.94]
[null,null,"504:(1,30+2,50)*2*0,70",null,5.32]
[null,null,"509:(2,20+1,30)*2*0,70",null,4.9000000000000004]
[{"$f":"A172+1","v":12},"612 47   poz.6","Stavební zapravení svislých drážek po rozvodech ZTI","m2",{"$f":"SUM(E251:E256)","v":31.799999999999997},null,{"$f":"E250*F250","v":0}]
[null,null,"přízemí:0,60*3,55*2",null,4.26]
[null,null,"mezipatro:0,60*3,70*3",null,6.66]
[null,null,"1.patro:0,60*3,00*3",null,5.4]
[null,null,"2.patro:0,60*3,00*3",null,5.4]
[null,null,"3.patro:0,60*2,80*3",null,5.04]
[null,null,"4.patro:0,60*2,80*3",null,5.04]
[{"$f":"A250+1","v":13},"612 47   poz.7","Stavební zapravení svislých drážek po rozvodech VZT","m2",{"$f":"SUM(E258:E263)","v":15.899999999999999},null,{"$f":"E257*F257","v":0}]
[null,null,"přízemí:0,30*3,55*2",null,2.13]
[null,null,"mezipatro:0,30*3,70*3",null,3.33]
[null,null,"1.patro:0,30*3,00*3",null,2.7]
[null,null,"2.patro:0,30*3,00*3",null,2.7]
[null,null,"3.patro:0,30*2,80*3",null,2.52]
[null,null,"4.patro:0,30*2,80*3",null,2.52]
["Díl:","63","Podlahy a podlahové konstrukce",null,null,null,{"$f":"SUBTOTAL(9,G265:G266)","v":0}]
[{"$f":"A257+1","v":14},"632 44-12","Samonivelační stěrky tl.5mm ","m2",238.9,null,{"$f":"E265*F265","v":0}]
[null,null,"P1:238,90",null,238.9]
["Díl:","94","Lešení a stavební výtahy",null,null,null,{"$f":"SUBTOTAL(9,G268:G269)","v":0}]
[{"$f":"A265+1","v":15},"941 95-5002.R00","Lešení lehké pomocné, výška podlahy do 1,9 m ","m2",212.74,null,{"$f":"E268*F268","v":0}]
[null,null,"pro podhledy:168,24+44,50",null,212.74]
["Díl:","95","Dokončovací kce na pozem.stav.",null,null,null,{"$f":"SUBTOTAL(9,G271:P273)","v":0}]
[{"$f":"A268+1","v":16},"952 90-1111.R00","Vyčištění budov o výšce podlaží do 4 m ","m2",367.48,null,{"$f":"E271*F271","v":0}]
[null,null,"367,48",null,367.48]
[{"$f":"A271+1","v":17},"900   -    .R02","HZS - nezměřitelné práce ","h",100,null,{"$f":"E273*F273","v":0}]
["Díl:","96","Bourání konstrukcí",null,null,null,{"$f":"SUBTOTAL(9,G275:G482)","v":0}]
[{"$f":"A273+1","v":18},"962 03-1132.R00","Bourání příček cihelných tl. 10 cm ","m2",98.209599999999995,null,{"$f":"E275*F275","v":0}]
[null,null,";A",null,0]
[null,null,"mezipatro:3,55*3,00",null,10.65]
[null,null,"1.patro:1,60*3,00",null,4.8]
[null,null,"2.patro:(0,95+1,53+1,305+1,60)*3,03",null,16.316600000000001]
[null,null,"           1,00*3,00*2",null,6]
[null,null,"3.patro:3,89*3,00",null,11.67]
[null,null,"4.patro:1,15*3,02+2,35*3,00+0,90*3,00",null,13.223000000000001]
[null,null,"            (2,30+3*1,50)*3,00",null,20.399999999999999]
[null,null,"5.patro:(2,50+1,15+1,40)*3,00",null,15.15]
[{"$f":"A275+1","v":19},"962 03-1133.R00","Bourání příček cihelných tl. 15 cm ","m2",32.136699999999998,null,{"$f":"E285*F285","v":0}]
[null,null,";A",null,0]
[null,null,"mezipatro:1,75*3,00+1,375*3,01+0,94*3,00",null,12.2088]
[null,null,"1.patro:1,715*3,00",null,5.1449999999999996]
[null,null,"3.patro:2,165*3,02+1,25*3,02",null,10.3133]
[null,null,"             1,48*3,02",null,4.4695999999999998]
[{"$f":"A285+1","v":20},"968 06-1125.R00","Vyvěšení dřevěných dveřních křídel pl. do 2 m2 ","kus",17,null,{"$f":"E291*F291","v":0}]
[null,null,";C",null,0]
[null,null,"mezipatro:5",null,5]
[null,null,"2.patro:3",null,3]
[null,null,"3.patro:3",null,3]
[null,null,"4.patro:2",null,2]
[null,null,"5.patro:4",null,4]
[{"$f":"A291+1","v":21},"968 06-245","Vybourání dveřních zárubní pl. do 2 m2 ","m2",28.706,null,{"$f":"E298*F298","v":0}]
[null,null,";C",null,0]
[null,null,"mwzipatro:0,90*1,97*2+0,80*1,97*3",null,8.2739999999999991]
[null,null,"2.patro:0,80*1,97*3",null,4.7279999999999998]
[null,null,"3.patro:0,80*1,97*3",null,4.7279999999999998]
[null,null,"4.patro:0,80*1,97",null,1.5760000000000001]
[null,null,"5.patro:0,85*2,00*4+0,65*2,00*2",null,9.4]
[{"$f":"A298+1","v":22},"965 08-1713.R00","Bourání dlaždic keramických tl. 1 cm, nad 1 m2 ","m2",160.06,null,{"$f":"E305*F305","v":0}]
[null,null,";M",null,0]
[null,null,"přízemí:2,30+1,75+3,80",null,7.85]
[null,null,"mezipatro:3,60+1,50+5,02+5,60+6,80+1,19+1,19",null,24.9]
[null,null,";7,00+6,52+1,25+1,14++2,20",null,0]
[null,null,"1.patro:6,50+2,40+8,10+2,90+7,10+2,90",null,29.9]
[null,null,"2.patro:10,90+4*1,36+4,10+1,50+1,50+1,50+1,50",null,26.44]
[null,null,"3.patro:2,90+1,34+1,35+4,74+4*1,42+11,71+2,68",null,30.4]
[null,null,"4.patro:5,51+2*1,40+1,70+1,17+1,17",null,12.35]
[null,null,"1,57+2,27+1,70+7,80",null,13.34]
[null,null,"5.patro:1,47+1,01+3,50+8,90",null,14.88]
[{"$f":"A305+1","v":23},"978 05-9521.R00","Odsekání vnitřních obkladů stěn do 2 m2 ","m2",{"$f":"SUM(E317:E373)","v":667.89089999999987},null,{"$f":"E316*F316","v":0}]
[null,null,";M",null,0]
[null,null,";přízemí",null,0]
[null,null,"(2,365+1,62)*2*1,64",null,13.0708]
[null,null,"(1,08+1,62)*2*2,02",null,10.907999999999999]
[null,null,"(1,505+1,62)*2*2,30",null,14.375]
[null,null,";mezipatro",null,0]
[null,null,"(1,57+1,215)*2*2,10",null,11.696999999999999]
[null,null,"(0,955+1,35)*2*2,10",null,9.6809999999999992]
[null,null,"(0,885+1,35)*2*2,10",null,9.3870000000000005]
[null,null,"(0,89+1,35)*2*2,10",null,9.4079999999999995]
[null,null,"(0,85+1,35)*2*2,10",null,9.24]
[null,null,"(1,889+2,185)*2*2,10",null,17.110800000000001]
[null,null,"(1,994+2,185)*2*2,10",null,17.5518]
[null,null,"(1,485+1,17)*2*2,10",null,11.151]
[null,null,"(1,86+2,01)*2*2,10",null,16.254000000000001]
[null,null,";1.patro",null,0]
[null,null,"(1,47+2,035)*2*2,50",null,17.524999999999999]
[null,null,"(1,575+1,85)*2*2,50",null,17.125]
[null,null,"(1,575+1,40)*2*2,50",null,14.875]
[null,null,"(1,575+0,83)*2*2,50",null,12.025]
[null,null,"(1,70+0,90)*2*2,50",null,13]
[null,null,"(1,70+1,60)*2*2,50",null,16.5]
[null,null,"(1,60+1,89)*2*2,50",null,17.45]
[null,null,"(1,60+1,43)*2*2,50",null,15.15]
[null,null,"(1,60+0,78)*2*2,50",null,11.9]
[null,null,"(2,19+1,48)*2*2,50",null,18.350000000000001]
[null,null,"(1,025+1,59)*2*2,50",null,13.074999999999999]
[null,null,"(1,065+1,59)*2*2,50",null,13.275]
[null,null,";2.patro",null,0]
[null,null,"(0,90+1,475)*2*2,10*4",null,39.9]
[null,null,"(3,825+2,80)*2*2,15",null,28.487500000000001]
[null,null,"(1,30+1,305)*2*2,10",null,10.941000000000001]
[null,null,"(1,00+1,50)*2*2,10*2",null,21]
[null,null,"(1,00+1,50)*2*2,10*2",null,21]
[null,null,";3.patro",null,0]
[null,null,"(2,02+1,48)*2*2,10",null,14.7]
[null,null,"(0,955+1,48)*2*2,10",null,10.227]
[null,null,"(0,965+1,48)*2*2,10",null,10.269]
[null,null,"(1,65+4,08)*2*2,10",null,24.065999999999999]
[null,null,"(0,87+1,56)*2*2,10*4",null,40.823999999999998]
[null,null,"(4,06+2,84)*2*2,10",null,28.98]
[null,null,"(1,25+0,815)*2*2,10",null,8.673]
[null,null,"(1,25+1,20)*2*2,10",null,10.29]
[null,null,";4.patro",null,0]
[null,null,"(1,75+1,30)*2*2,10",null,12.81]
[null,null,"(0,90+1,30)*2*2,10*2",null,18.48]
[null,null,"(1,30+0,895)*2*2,10",null,9.2189999999999994]
[null,null,"(1,75+0,90)*2*2,10",null,11.13]
[null,null,"(1,90+0,90)*2*2,10",null,11.76]
[null,null,"(1,30+1,30)*2*2,10",null,10.92]
[null,null,"(0,90+1,475)*2*2,10*2",null,19.95]
[null,null,"(1,90+2,85)*2*2,00",null,19]
[null,null,";5.patro",null,0]
[null,null,"(1,30+1,20)*2*2,10",null,10.5]
[null,null,"(1,55+1,00)*2*2,10",null,10.71]
[null,null,"(0,90+1,25)*2*2,10",null,9.0299999999999994]
[null,null,-75.06,null,-75.06]
[{"$f":"A316+1","v":24},"978 05-95","Opatrné odstraňování historických bělninových keramických obkladů a jejich očištění k opětovnému použití","m2",{"$f":"SUM(E375:E379)","v":106.04000000000002},null,{"$f":"E374*F374","v":0}]
[null,null,"mezipatro:33,6",null,33.6]
[null,null,"2.patro:0,85",null,0.85]
[null,null,"3.patro:0,85",null,0.85]
[null,null,"4.patro:30,00",null,30]
[null,null,"5.patro:40,74",null,40.74]
[{"$f":"A374+1","v":25},"96806         S","Vybourání nadsvětlíků ","m2",6.59,null,{"$f":"E380*F380","v":0}]
[null,null,";mezipatro:1,68*0,67*2+0,68*1,60",null,3.3391999999999999,null,null,null,null,null,null,null,null,null,null,null,null,null,null,null,null,null,null,null,null,null,null,null,null,null,null,null,null,null,null,null,15,21]
[null,null,"2.patro:1,30*0,88+1,00*0,88*2",null,2.9039999999999999,null,null,null,null,null,null,null,null,null,null,null,null,null,null,null,null,null,null,null,null,null,null,null,null,null,null,null,null,null,null,null,{"$f":"SUMIF(AJ77:AJ381,AK381,G77:G381)","v":0},{"$f":"SUMIF(AJ77:AJ381,AL381,G77:G381)","v":0}]
[null,null,"3.patro:2,02*0,88+1,25*0,882,02*0,88",null,0]
[null,null,"4.patro:0,17*2,04",null,0.3468]
[{"$f":"A380+1","v":26},"776 51-18     D","Odstranění PVC a koberců ","m2",201.25,null,{"$f":"E385*F385","v":0}]
[null,null,";koberec",null,0]
[null,null,"mezipatro:12,35",null,12.35]
[null,null,"1.patro:6,30+5,00",null,11.3]
[null,null,"2.patro:19,00",null,19]
[null,null,"3.patro:21,20",null,21.2]
[null,null,"5.patro:12,00",null,12]
[null,null,";PVC",null,0]
[null,null,"3.patro:27,70*2+21,20*2",null,97.8]
[null,null,"5.patro:13,80*2",null,27.6]
[{"$f":"A385+1","v":27},"9690507       G","Demontáž sádrokartonových podhledů vč.roštu ","m2",20.2,null,{"$f":"E395*F395","v":0}]
[null,null,"1.patro:6,50+2,40+8,10+3,20",null,20.2]
[{"$f":"A395+1","v":28},"776 51-18     F","Odstranění nášlapné vrstvy podlahy a násypu ","m2",2.6,null,{"$f":"E397*F397","v":0}]
[null,null,"mezipatro:1,30*2,00",null,2.6]
[{"$f":"A397+1","v":29},"776 51-18     ","Vybourání podlahové konstrukce pod novými příčkami ","m2",15.021000000000001,null,{"$f":"E399*F399","v":0}]
[null,null,"mezipatro:(11,97+2,17)*0,20",null,2.8279999999999998]
[null,null,"1.patro:(1,575)*0,20",null,0.315]
[null,null,"2.patro:(8,72+5,90)*0,20",null,2.9239999999999999]
[null,null,"3.patro:(10,87+2,94)*0,20",null,2.762]
[null,null,"4.patro:(14,53+1,93)*0,20",null,3.2919999999999998]
[null,null,"5.patro:14,50*0,20",null,2.9]
[{"$f":"A399+1","v":30},"96905071     G","Demontáž podhledů  - monierky ","m2",30.66,null,{"$f":"E406*F406","v":0}]
[null,null,";přízemí",null,0]
[null,null,"2,30+1,75+3,80",null,7.85]
[null,null,";mezipatro",null,0]
[null,null,"2,10+2,10+1,25+1,14",null,6.59]
[null,null,";4.patro",null,0]
[null,null,"2*1,40+1,17+1,17+2,27+7,80",null,15.21]
[null,null,";5.patro",null,0]
[null,null,"1,01",null,1.01]
[{"$f":"A406+1","v":31},"968066        P","Prostup stropem pro VZT ","ks",14,null,{"$f":"E415*F415","v":0}]
[null,null,"mezipatro:4",null,4]
[null,null,"1.patro:1",null,1]
[null,null,"2.patro:1",null,1]
[null,null,"3.patro:3",null,3]
[null,null,"4.patro:5",null,5]
[{"$f":"A415+1","v":32},"968067        X","Prostup stropem pro pro šachtu slaboproudu ","ks",6,null,{"$f":"E421*F421","v":0}]
[null,null,";170/845 mm",null,0]
[null,null,"mezipatro:1",null,1]
[null,null,"přízemí:1",null,1]
[null,null,"1.patro:1",null,1]
[null,null,"2..patro:1",null,1]
[null,null,"3.patro:1",null,1]
[null,null,"4.patro:1",null,1]
[{"$f":"A421+1","v":33},"96788         C","Vybourání dřev.okna vč.rámu ","m2",3.56,null,{"$f":"E429*F429","v":0}]
[null,null,"1.patro:0,50*1,78",null,0.89]
[null,null,"2.patro:0,50*1,78",null,0.89]
[null,null,"3.patro:0,50*1,78",null,0.89]
[null,null,"4.patro:0,50*1,78",null,0.89]
[{"$f":"A429+1","v":34},"968067        K","Odstranění betonového stopu se sítí ","m2",0.87070000000000003,null,{"$f":"E434*F434","v":0}]
[null,null,"mezipatro:0,17*0,845",null,0.14369999999999999]
[null,null,"přízemí:0,17*0,845",null,0.14369999999999999]
[null,null,"1.patro:0,17*0,845",null,0.14369999999999999]
[null,null,"2..patro:0,17*0,845",null,0.14369999999999999]
[null,null,"3.patro:0,17*0,845",null,0.14369999999999999]
[null,null,"4.patro:0,17*0,895",null,0.1522]
[{"$f":"A434+1","v":35},"96905072     G","Demontáž akustických podhledů ","m2",16,null,{"$f":"E441*F441","v":0}]
[null,null,"mezipatro:16,00",null,16]
[{"$f":"A441+1","v":36},"96807         R","Demontáž radiátorů ","ks",15,null,{"$f":"E443*F443","v":0}]
[null,null,"1.patro:3",null,3]
[null,null,"2.patro:6",null,6]
[null,null,"3.patro:3",null,3]
[null,null,"4.patro:3",null,3]
[{"$f":"A443+1","v":37},"96808","Demontáž dřevěných stěn do WC ","m2",38.561700000000002,null,{"$f":"E448*F448","v":0}]
[null,null,"1,79*3,03*3+3,83*2,91*2",null,38.561700000000002]
[{"$f":"A448+1","v":38},"971 03-3621.R00","Vybourání otv. zeď cihel. pl.4 m2, tl.10 cm, MVC ","m2",25.460999999999999,null,{"$f":"E450*F450","v":0}]
[null,null,";E",null,0]
[null,null,"mezipatro:0,70*2,00+0,85*2,00",null,3.1]
[null,null,"1.patro:0,65*2,00",null,1.3]
[null,null,"2.patro:1,79*2,00+1,275*3,02",null,7.4305000000000003]
[null,null,"3.patro:1,76*2,00+1,275*3,02+0,80*2,00",null,8.9704999999999995]
[null,null,"4.patro:0,70*1,80+0,85*2,00",null,2.96]
[null,null,"5.patro:0,85*2,00",null,1.7]
[{"$f":"A450+1","v":39},"766 66-281","Demontáž prahů dveří ","kus",45,null,{"$f":"E458*F458","v":0}]
[null,null,"4+4+4+2+2+17+8+1+3",null,45]
[{"$f":"A458+1","v":40},"971 03-3641.R00","Vybourání otv. zeď cihel. pl.4 m2, tl.30 cm, MVC ","m3",3.4849000000000001,null,{"$f":"E460*F460","v":0}]
[null,null,";A",null,0]
[null,null,"mezipatro:0,50*2,00*0,20+1,215*2,00*0,20+0,25*2,00*0,30",null,0.83599999999999997]
[null,null,"                0,30*3,00*0,25+0,30*3,00*0,10",null,0.315]
[null,null,"1.patro:0,60*3,00*0,30",null,0.54]
[null,null,"3.patro:1,48*3,02*0,20",null,0.89390000000000003]
[null,null,"5.patro:1,00*2,00*0,45",null,0.9]
[{"$f":"A460+1","v":41},"974 03-116","Vysekání rýh ve zdi cihelné 30 x 30 cm pro specialisty ZTI","m",20.48,null,{"$f":"E467*F467","v":0}]
[null,null,";přízemí - 5.patro",null,0]
[null,null,"4,24+4,24+3,00+3,00+3,00+3,00",null,20.48]
[{"$f":"A467+1","v":42},"974 03-118  N","Vysekání drážek  ve zdi cihelné pro specialisty","m",36.72,null,{"$f":"E470*F470","v":0}]
[null,null,";přízemí - 5.patro",null,0]
[null,null,"1*4,24+2*4,24+2*3,00+2*3,00+3*3,00+3,00",null,36.72]
[{"$f":"A470+1","v":43},"979 01-1211.R00","Svislá doprava suti a vybour. hmot za 2.NP nošením ","t",92.83,null,{"$f":"E473*F473","v":0}]
[{"$f":"A473+1","v":44},"979 01-1219.R00","Přípl.k svislé dopr.suti za každé další NP nošením ","t",139.245,null,{"$f":"E474*F474","v":0}]
[null,null,"3*(92,83/2)",null,139.245]
[{"$f":"A474+1","v":45},"979 08-2111.R00","Vnitrostaveništní doprava suti do 10 m ","t",92.83,null,{"$f":"E476*F476","v":0}]
[{"$f":"A476+1","v":46},"979 08-2121.R00","Příplatek k vnitrost. dopravě suti za dalších 5 m ","t",92.83,null,{"$f":"E477*F477","v":0}]
[{"$f":"A477+1","v":47},"979 08-1111.R00","Odvoz suti a vybour. hmot na skládku do 1 km ","t",92.83,null,{"$f":"E478*F478","v":0}]
[48,"979 08-1121.R00","Příplatek k odvozu za každý další 1 km ","t",1763.77,null,{"$f":"E479*F479","v":0}]
[null,null,"19*92,83",null,1763.77]
[{"$f":"A479+1","v":49},"979 09-3111.R00","Uložení suti na skládku bez zhutnění ","t",92.83,null,{"$f":"E481*F481","v":0}]
[{"$f":"A481+1","v":50},"979 99-999","Poplatek za skladku ","t",92.83,null,{"$f":"E482*F482","v":0}]
[null,"Celkem za",{"$f":"CONCATENATE(B274,\" \",C274)","v":"96 Bourání konstrukcí"}]
["Díl:","99","Staveništní přesun hmot",null,null,null,{"$f":"SUBTOTAL(9,G485:P486)","v":0}]
[{"$f":"A482+1","v":51},"999 28-1112.R00","Přesun hmot pro opravy a údržbu do výšky 36 m ","t",78.2,null,{"$f":"E485*F485","v":0}]
[null,"Celkem za",{"$f":"CONCATENATE(B484,\" \",C484)","v":"99 Staveništní přesun hmot"}]
["Díl:","711","Izolace proti vodě",null,null,null,{"$f":"SUBTOTAL(9,G488:P497)","v":0}]
[{"$f":"A485+1","v":52},"711 21-002","Stěrka hydroizolační těsnicí hmotou Aquafin 2 K, proti vlhkosti","m2",272.18,null,{"$f":"E488*F488","v":0}]
[null,null,";pod obklady stěn ve sprchách",null,0]
[null,null,"103:(1,575+0,83)*2*2,00-0,65*2,00",null,8.32]
[null,null,"105:(1,655+0,83)*2*2,00-0,65*2,00",null,8.64]
[null,null,"412a:(1,125+2,38)*2*2,00-0,65*2,00",null,12.72]
[null,null,"504:(0,90+0,90)*2,00",null,3.6]
[null,null,";podlahy",null,0]
[null,null,"P1:238,90",null,238.9]
[{"$f":"A488+1","v":53},"998 71-1103.R00","Přesun hmot pro izolace proti vodě, výšky do 60 m ","t",1.02,null,{"$f":"E496*F496","v":0}]
[null,"Celkem za",{"$f":"CONCATENATE(B487,\" \",C487)","v":"711 Izolace proti vodě"}]
["Díl:","766","Konstrukce truhlářské",null,null,null,{"$f":"SUBTOTAL(9,G499:P559)","v":0}]
[{"$f":"A496+1","v":54},"766       Tp/1a","Dveřní stěna na WC 2dílná  1790/3030 mm očištění, obroušení a nový nátěr vč.dveří,","ks",3,null,{"$f":"E499*F499","v":0}]
[null,null,";doplnění chybějícího kování replikami, ",null,0]
[null,null,3,null,3]
[{"$f":"A499+1","v":55},"766     Tpd/1","Dveře dřevěné dýhované 850/1970 mm podlepení dýhy, očištění a nový nátěr","ks",1,null,{"$f":"E502*F502","v":0}]
[null,null,";doplnění chybějícího kování replikami, ",null,0]
[null,null,1,null,1]
[{"$f":"A502+1","v":56},"766     Tpd/3","Dveře dřevěné dýhované 650/1970 mm podlepení dýhy, očištění, a nový nátěr","ks",1,null,{"$f":"E505*F505","v":0}]
[null,null,";doplnění chybějícího kování replikami, ",null,0]
[null,null,1,null,1]
[{"$f":"A505+1","v":57},"766     Tpd/7a","Dveře dřevěné stáv.lakované  vlysov. 650/1970 mm očištění, obroušení přetmelení a nový nátěr","ks",14,null,{"$f":"E508*F508","v":0}]
[null,null,";oprava obložkové zárubně vč.nátěru",null,0]
[null,null,";doplnění chybějícího kování replikami, ",null,0]
[null,null,14,null,14]
[{"$f":"A508+1","v":58},"766     Tpd/7a","Dveře dřevěné stáv.lakované  vlysov. 650/1970 mm očištění, obroušení přetmelení a nový nátěr - přemístění na nové místo","ks",2,null,{"$f":"E512*F512","v":0}]
[null,null,";oprava obložkové zárubně vč.nátěru",null,0]
[null,null,";doplnění chybějícího kování replikami, ",null,0]
[null,null,2,null,2]
[{"$f":"A512+1","v":59},"766     Tpd/7b","Dveře dřevěné stáv.lakované  vlysov. 850/1970 mm očištění, obroušení přetmelení a nový nátěr","ks",2,null,{"$f":"E516*F516","v":0}]
[null,null,";oprava obložkové zárubně vč.nátěru",null,0]
[null,null,";doplnění chybějícího kování replikami, ",null,0]
[null,null,2,null,2]
[{"$f":"A516+1","v":60},"766     Tpd/8a","Dveře dřevěné stáv.lakované  prosklené 580/1970 mm očištění, obroušení přetmelení a nový nátěr","ks",1,null,{"$f":"E520*F520","v":0}]
[null,null,";oprava obložkové zárubně vč.nátěru",null,0]
[null,null,";doplnění chybějícího kování replikami, ",null,0]
[null,null,1,null,1]
[{"$f":"A520+1","v":61},"766     Tpd/8b","Dveře dřevěné stáv.lakované  vlysov. 650/1690 mm očištění, obroušení přetmelení a nový nátěr","ks",1,null,{"$f":"E524*F524","v":0}]
[null,null,";oprava obložkové zárubně vč.nátěru",null,0]
[null,null,";doplnění chybějícího kování replikami, ",null,0]
[null,null,1,null,1]
[{"$f":"66","v":66},"766     Tpd/9a","Dveře dřevěné stáv.lakované  vlysov. s prosklením 650/1860 mm očištění, obroušení přetmelení a nový nátěr","ks",9,null,{"$f":"E528*F528","v":0}]
[null,null,";oprava obložkové zárubně vč.nátěru",null,0]
[null,null,";doplnění chybějícího kování replikami, ",null,0]
[null,null,7,null,7]
[{"$f":"A528+1","v":67},"766     Tpd/9a","Dveře dřevěné stáv.lakované  vlysov. s prosklením 650/1860 mm očištění, obroušení přetmelení a nový nátěr - přemístění na nové místo","ks",5,null,{"$f":"E532*F532","v":0}]
[null,null,";oprava obložkové zárubně vč.nátěru",null,","]
[null,null,";doplnění chybějícího kování replikami, ",null,0]
[null,null,4,null,4]
[{"$f":"A532+1","v":68},"766     Tpo/4","Okno do ulice - stávající 900/1250 mm očištění, přebroušení, přetmelení okna, nový nátěr","ks",4,null,{"$f":"E536*F536","v":0}]
[null,null,";případné lokální opravy vč.parapetů",null,0]
[null,null,4,null,4]
[{"$f":"A536+1","v":69},"766     Tpo/5","Okno do ulice - stávající 550/1350 mm očištění, přebroušení, přetmelení okna, nový nátěr","ks",2,null,{"$f":"E539*F539","v":0}]
[null,null,";případné lokální opravy vč.parapetů",null,0]
[null,null,2,null,2]
[{"$f":"A539+1","v":70},"766     Tpo/6a","Okno na WC - stávající 1495/1135 mm očištění, přebroušení, přetmelení okna, nový nátěr","ks",7,null,{"$f":"E542*F542","v":0}]
[null,null,";případné lokální opravy vč.parapetů",null,0]
[null,null,7,null,7]
[{"$f":"A542+1","v":71},"766     Tpo/6b","Okno na WC - stávající 1495/1135 mm očištění, přebroušení, přetmelení okna, nový nátěr","ks",2,null,{"$f":"E545*F545","v":0}]
[null,null,";případné lokální opravy vč.parapetů",null,0]
[null,null,2,null,2]
[{"$f":"A545+1","v":72},"766     Tpo/7","Okno do jižního dvora  - stávající 1250/2070 mm očištění, přebroušení, přetmelení okna, nový nátěr","ks",2,null,{"$f":"E548*F548","v":0}]
[null,null,";případné lokální opravy vč.parapetů",null,0]
[null,null,2,null,2]
[{"$f":"A548+1","v":73},"766     Tpo/11","Nadsvětlík na toaletě nade dveřmi 1200/1500 mm přebroušení, nový nátěr,vyspravení kování","ks",1,null,{"$f":"E551*F551","v":0}]
[{"$f":"A551+1","v":74},"766     Tpo/12","Nadsvětlík na toaletě 600/1500 mm přebroušení, nový nátěr,vyspravení kování","ks",1,null,0]
[{"$f":"A552+1","v":75},"766     Tn/12","Provětrávací mřížka ve dveřích 550/91 mm  D+M ","ks",22,null,0]
[76,"766     Tpo/21","Dveřní stěna na WC -2-dílná 2120/1795 mm - nová","ks",4,null,0]
[77,"766     Tnd/2a","Dřevěné dveře 1kř. 700/1970 - kopie  D+M vč.obložkové zárubně","ks",10,null,0]
[78,"766     Tnd/2b","Dřevěné dveře 1kř. 850/1970 - kopie  D+M vč.obložkové zárubně","ks",4,null,0]
[79,"766     Tno/5","Dřevěné okno na terasu 700/700-1200mm kopie  D+M ","ks",1,null,0]
[null,"poznámka 1","Truhlářské konstrukce jsou kompletní výrobky dle popisu v tabulkách"]
[null,"poznámka 2","Truhlářské  konstrukce jsou vč.přesunu hmot "]
["Díl:","767","Konstrukce zámečnické",null,null,null,{"$f":"SUBTOTAL(9,G561:P589)","v":0}]
[{"$f":"A557+1","v":80},"767       Zp/14","Mechanické odvětrání záchodové kabinky očištění, zprovoznění a nový nátěr","ks",26,null,{"$f":"E561*F561","v":0}]
[{"$f":"A561+1","v":81},"767       Zp/7d","Okenní mříž vystouplá na okně jižního dvora 1350/2350 mm,  očištění, přebroušení a nový nátěr","ks",2,null,0]
[82,"767       Zn/4","Přechodová lišta pro vozíčkáře  D+M ","ks",5,null,0]
[83,"767a      Zn/10","Čelní krytí SDK přízemí - P 13 500x730 mm + 500x1270 mm EI 60 DP1","ks",1,null,{"$f":"E564*F564","v":0}]
[84,"767a      Zn/10","Čelní krytí SDK mezipatro - M 14 840x730 mm + 840x2020 mm EI 60 DP1","ks",1,null,{"$f":"E565*F565","v":0}]
[85,"767a      Zn/10","Čelní krytí SDK 1. patro - 106 850x730 mm + 850x1270 mm EI 60 DP1","ks",1,null,{"$f":"E566*F566","v":0}]
[86,"767a      Zn/10","Čelní krytí SDK 2. patro - 217 895x730 mm + 895x1270 mm EI 60 DP1","ks",1,null,{"$f":"E567*F567","v":0}]
[87,"767a      Zn/10","Čelní krytí SDK 3. patro - 318 850x730 mm + 850x1270 mm EI 60 DP1","ks",1,null,{"$f":"E568*F568","v":0}]
[88,"767a      Zn/10","Čelní krytí SDK 4. patro - 413d 895x730 mm + 895x1270 mm EI 60 DP1","ks",1,null,{"$f":"E569*F569","v":0}]
[89,"767a      Zn/10","Dvířka zakrývající šachtu pro silnoproud  D+M 850/800 mm EW 30 DP1","ks",2,null,0]
[{"$f":"A570+1","v":90},"767b      Zn/10","Dvířka zakrývající šachtu pro silnoproud  D+M 870/800 mm EW 30 DP1","ks",2,null,0]
[91,"767c      Zn/10","Dvířka zakrývající šachtu pro silnoproud  D+M 895/800 mm EW 30 DP1","ks",2,null,0]
[92,"767c      Zn/11","Sklopné zrcadlo pro vozíčkáře, nerez matný  D+M ","ks",5,null,0]
[93,"767c      Zn/12","Vodorovné madlo pro vozíčkáře, nerez matný  D+M ","ks",5,null,0]
[94,"767c      Zn/13","Sklopné madlo pro vozíčkáře, nerez matný  D+M ","ks",5,null,0]
[95,"767c      Zn/14","Pevné madlo pro vozíčkáře, nerez matný  D+M ","ks",5,null,0]
[96,"767c      Zn/27","Revizní dvířka do SDK v předséni na toaletách","ks",44,null,0]
[97,"767c     Zno/5","Nadsvětlík nový 1795/600 mm repase ","ks",4,null,0]
[98,"767c     Zno/6","Nadsvětlík nový 2000/750 mm repase ","ks",1,null,0]
[{"$f":"A579+1","v":99},"767c     Zpo/3a","Snížení nadsvětlíku - 1275/880 mm repase - obroušení, přetmelení, nový nátěr","ks",1,null,0]
[100,"767c     Zpo/3b","Snížení nadsvětlíku - 1900/520 mm repase - obroušení,  nový nátěr","ks",2,null,0]
[101,"767c     Zpo/4a","Snížení nadsvětlíku - 1680/510 mm repase - obroušení, nový nátěr","ks",2,null,0]
[102,"767c     Zpo/4b","Snížení nadsvětlíku - 1920/560 mm repase - obroušení,  nový nátěr","ks",2,null,0]
[103,"767c     Zpo/8","Okno na schodišti 525/3150 mm repase - obroušení, přetmelení, nový nátěr","ks",1,null,0]
[104,"767c     Zpo/10","snížení nadsvětlíku nade dveřmii 600/1795 mm repase - obroušení, nový nátěr","ks",3,null,0]
[105,"767c     Zpo/9a","Nadsvětlík nade dveřmii 2000/750 mm repase - obroušení, nový nátěr","ks",1,null,0]
[106,"767c     Zpo/9b","Nadsvětlík nade dveřmii 2000/880 mm repase - obroušení, nový nátěr","ks",1,null,0]
[null,"poznámka 1","Zámečnické konstrukce jsou kompletní výrobky dle popisu v tabulkách"]
[null,"poznámka 2","Zámečnické konstrukce jsou vč.přesunu hmot "]
["Díl:","771","Podlahy z dlaždic a obklady",null,null,null,{"$f":"SUBTOTAL(9,G591:P613)","v":0}]
[{"$f":"A587+1","v":107},"771 10-00    P1","Vyrovnání podkladu ","m2",238.9,null,{"$f":"E591*F591","v":0}]
[null,null,";přízemí",null,0]
[null,null,"2,30+1,75+3,80",null,7.85]
[null,null,";mezipatro",null,0]
[null,null,"5,70+4,20+2,10+4,40+3,30+5,60+2,40+4,23",null,31.93]
[null,null,"1,25+1,40+4,53+1,25",null,8.43]
[null,null,";1.patro",null,0]
[null,null,"2,40+3,20+1,30+4,20+1,30+3,00+2,10",null,17.5]
[null,null,"2,90+3,20+1,50+1,60",null,9.1999999999999993]
[null,null,";2.patro",null,0]
[null,null,"1,87+3,10+5,00+2*1,30+5,50+2*1,30",null,20.67]
[null,null,"4,10+1,50+1,50+1,50+1,50",null,10.1]
[null,null,";3.patro",null,0]
[null,null,"3,60+1,40+2,80+1,70+2,90+2*1,41+5,30",null,20.52]
[null,null,"5,10+2*1,41+3,80",null,11.72]
[null,null,";4.patro",null,0]
[null,null,"2,90+3,09+7,40+2*8,80+9,20+1,17+1,17+1,80",null,44.33]
[null,null,"2,67+2,27+1,70+7,80+3,11+1,40+1,40",null,20.350000000000001]
[null,null,";5.patro",null,0]
[null,null,"3,50+11,50+8,90+2,70+7,00+2,70",null,36.299999999999997]
[{"$f":"A591+1","v":108},"771 57-5     P1","Dlažba do tmele vč.spárování vč.dodávky dlažby","m2",262.79000000000002,null,{"$f":"E611*F611","v":0}]
[null,null,"238,90*1,10",null,262.79000000000002]
[{"$f":"A611+1","v":109},"998 77-1104.R00","Přesun hmot pro podlahy z dlaždic, výšky do 36 m ","t",7.24,null,{"$f":"E613*F613","v":0}]
["Díl:","781","Obklady keramické",null,null,null,{"$f":"SUBTOTAL(9,G615:P716)","v":0}]
[{"$f":"A613+1","v":110},"781 10-1210.R00","Penetrace podkladu pod obklady ","m2",928.29,null,{"$f":"E615*F615","v":0}]
[{"$f":"A615+1","v":111},"781 47-511","Obklad vnitřní keramický do tmele, vč.koutových a rohových lišt, beze spar na sraz, vč.dod.obkladu","m2",1021.1179,null,0]
[null,null,";přízemí",null,0]
[null,null,"P9:(2,365+1,62)*2*2,10-0,65*1,825",null,15.550800000000001]
[null,null,"P10:(1,08+1,62)*2*2,10-0,65*1,825*2",null,8.9674999999999994]
[null,null,"P11:(1,505+1,62)*2*2,10-0,65*1,89",null,11.8965]
[null,null,";mezipatro",null,0]
[null,null,"M08:(4,355+1,405)*2*2,10-0,65*2,00",null,22.891999999999999]
[null,null,"M13:(1,90+2,50)*2*2,10-0,60*2,00",null,17.28]
[null,null,"M14:(1,245+1,17)*2*2,10-0,60*2,00",null,8.9429999999999996]
[null,null,"M15:(1,85+2,60)*2*2,10-0,85*2,00",null,16.989999999999998]
[null,null,"M31a:(1,54+3,40)*2*2,10-0,70*2,00*2",null,17.948]
[null,null,"M31b:(1,15+2,13)*2*2,10-0,70*2,00",null,12.375999999999999]
[null,null,"M32:(1,889+2,185)*2*2,10-0,70*2,00*3",null,12.9108]
[null,null,"M32a:((0,955+1,35)*2*2,10-0,70*2,00)*2",null,16.562000000000001]
[null,null,"M33:(0,78+1,275)*2*2,10-0,70*2,00",null,7.2309999999999999]
[null,null,"M33a:(2,07+3,40)*2*2,10-0,70*2,00*2",null,20.173999999999999]
[null,null,"M34:(1,994+2,185)*2*2,10-0,70*2,00*3",null,13.351800000000001]
[null,null,"M34a:((0,89+1,35)*2*2,10-0,70*2,00)*2",null,16.015999999999998]
[null,null,"M24:(0,60+2,55)*1,50",null,4.7249999999999996]
[null,null,";1.patro",null,0]
[null,null,"103:(1,665+1,43)*2*2,10-0,65*2,00*2",null,10.398999999999999]
[null,null,"103a:(1,665+1,89)*2*2,10-0,65*2,00",null,13.631]
[null,null,"103b:(1,665+0,78)*2*2,10-0,65*2,00",null,8.9689999999999994]
[null,null,"104:(1,715+2,34)*2*2,10-0,85*2,00",null,15.331]
[null,null,"105a:(1,575+0,83)*2*2,10-0,65*2,00",null,8.8010000000000002]
[null,null,"105b:(1,575+1,90)*2*2,10-0,65*2,00*2",null,11.994999999999999]
[null,null,"105c:(1,575+1,35)*2*2,10-0,65*2,00",null,10.984999999999999]
[null,null,"106:(1,445+2,10)*2*2,10-0,65*2,10",null,13.523999999999999]
[null,null,"124:(2,19+1,48)*2*2,10-0,65*2,00*2-0,85*2,00",null,11.114000000000001]
[null,null,"124a:(1,025+1,59)*2*2,10-0,65*2,00",null,9.6829999999999998]
[null,null,"124b:(1,065+1,59)*2*2,10-0,65*2,00",null,9.8510000000000009]
[null,null,";2.patro",null,0]
[null,null,"214:(1,15+1,625)*2*2,10-0,65*2,00",null,10.355]
[null,null,"215:(1,90+1,625)*2*2,10-0,70*2,00*2",null,12.005000000000001]
[null,null,"215a:(3,15+2,30)*2*2,10-0,70*2,00*3",null,18.690000000000001]
[null,null,"215b:((0,90+1,475)*2*2,10-0,70*2,00)*2",null,17.149999999999999]
[null,null,"216:(1,90+2,90)*2*2,10-0,70*2,00*3",null,15.96]
[null,null,"216a:((0,90+1,475)*2*2,10-0,70*2,00)*2",null,17.149999999999999]
[null,null,"217:(1,775+2,30)*2*2,10-0,85*2,00",null,15.414999999999999]
[null,null,"206:(1,00+1,50)*2*2,10-0,70*2,00*2",null,7.7]
[null,null,"207:(1,00+1,50)*2*2,10-0,70*2,00",null,9.1]
[null,null,"208:(1,00+1,50)*2*2,10-0,70*2,00*2",null,7.7]
[null,null,"209:(1,00+1,50)*2*2,10-0,70*2,00",null,9.1]
[null,null,"224:(0,60+2,57+0,60)*1,50",null,5.6550000000000002]
[null,null,";3.patro",null,0]
[null,null,"307:(2,70+1,48)*2*2,10-0,65*2,00*3",null,13.656000000000001]
[null,null,"308:(0,955+1,48)*2*2,10-0,65*2,00",null,8.9269999999999996]
[null,null,"309:(1,63+1,48)*2*2,10-0,65*2,00",null,11.762]
[null,null,"310:(0,60+2,50+0,60)*1,50",null,5.55]
[null,null,"315:(1,16+1,455)*2*2,10-0,65*2,00",null,9.6829999999999998]
[null,null,"317:(4,06+1,455)*2*2,10-0,70*2,00*2",null,20.363]
[null,null,"317a:((0,94+1,56)*2*2,10-0,70*2,00)*2",null,18.2]
[null,null,"317b:(3,32+2,50)*2*2,10-0,70*2,00*3",null,20.244]
[null,null,"316:(1,88+2,70)*2*2,10-0,70*2,00*3",null,15.036]
[null,null,"316a:((0,94+1,56)*2*2,10-0,70*2,00)*2",null,18.2]
[null,null,"318:(1,825+2,165)*2*2,10-0,65*2,00",null,15.458]
[null,null,"332:1,50*1,50",null,2.25]
[null,null,"326:(0,60+2,575+0,60)*1,50",null,5.6624999999999996]
[null,null,";4.patro",null,0]
[null,null,"408:(1,80+1,625)*2*2,10-0,85*2,00",null,12.685]
[null,null,"409:(1,80+1,625)*2*2,10-0,65*2,00*2",null,11.785]
[null,null,"410:(3,90+2,725)*2*2,10-0,70*2,00*3",null,23.625]
[null,null,"410a:((0,90+1,52)*2*2,10-0,70*2,00)*2",null,17.527999999999999]
[null,null,"411:(3,15+2,80)*2*2,10-0,65*2,00*3-0,85*2,00",null,19.39]
[null,null,"411a:(0,90+1,30)*2*2,10-0,70*2,00",null,7.84]
[null,null,"411b:(0,90+1,30)*2*2,10-0,70*2,00",null,7.84]
[null,null,"412:(1,125+1,625)*2*2,10-0,70*2,00*2",null,8.75]
[null,null,"412a:(1,125+2,38)*2*2,10-0,70*2,00",null,13.321]
[null,null,"413a:(1,30+0,90)*2*2,10-0,70*2,00*2",null,6.44]
[null,null,"413b:(1,74+1,30)*2*2,10-0,70*2,00",null,11.368]
[null,null,"413c:(1,30+1,30)*2*2,10-0,65*2,00*2",null,8.32]
[null,null,"413d:(1,30+0,90)*2*2,10-0,65*2,00",null,7.94]
[null,null,"426:(2,00+1,48)*2*2,10-0,65*2,00*2-0,70*2,00",null,10.616]
[null,null,"426a:(1,00+1,53)*2*2,10-0,65*2,00",null,9.3260000000000005]
[null,null,"426b:(1,00+1,53)*2*2,10-0,65*2,00",null,9.3260000000000005]
[null,null,";5.patro",null,0]
[null,null,"511:(1,70+0,90)*2*2,10-0,60*2,00",null,9.7200000000000006]
[null,null,"       (0,90+1,40)*2*2,10-0,70*2,00",null,8.26]
[null,null,"       (1,90+2,40)*2*2,10-0,60*2,00-0,70*2,00-0,85*2,00",null,13.76]
[null,null,"513:(1,50+1,00)*2*2,10-0,65*2,00*2",null,7.9]
[null,null,"        (0,90+1,20)*2*2,10-0,65*2,00",null,7.52]
[null,null,"504:(1,30+2,50)*2*2,10-0,70*2,00",null,14.56]
[null,null,"505:(1,50+3,30+0,60)*1,50",null,8.1]
[null,null,"509:(2,20+1,30)*2*2,10-0,70*2,00",null,13.3]
[null,null,"ztratné a prořez:928,29*0,1",null,92.828999999999994]
[{"$f":"A616+1","v":112},"781 67-001","Obklad parapetu keramický do tmele předstěny ZTI","m",43.06,null,{"$f":"E701*F701","v":0}]
[null,null,";přízemí",null,0]
[null,null,"1,08",null,1.08]
[null,null,";mezipatro",null,0]
[null,null,"0,955*3+1,17+1,065+1,10+0,35+1,17",null,7.72]
[null,null,";1.patro",null,0]
[null,null,"1,715+1,655",null,3.37]
[null,null,";2.patro",null,0]
[null,null,"2*1,00+4*0,90+1,15+2,30",null,9.0500000000000007]
[null,null,";3.patro",null,0]
[null,null,"4*0,97+1,16+2,165+0,955+1,93",null,10.09]
[null,null,";4.patro",null,0]
[null,null,"1,75+5*0,90+1,30",null,7.55]
[null,null,";5.patro",null,0]
[null,null,"2*0,90+2,40",null,4.2]
[{"$f":"A701+1","v":113},"998 78-1104.R00","Přesun hmot pro obklady keramické, výšky do 36 m ","t",18.38,null,{"$f":"E716*F716","v":0}]
["Díl:","782","Konstrukce z přírodního kamene",null,null,null,{"$f":"SUBTOTAL(9,G718:P719)","v":0}]
[{"$f":"A716+1","v":114},"782      Kp/10a","Ostění a parapet oken na WC - ryolit 1795/1650mm oprava, očištění, impregnace","ks",3,null,{"$f":"E718*F718","v":0}]
[{"$f":"A718+1","v":115},"782      Kp/10b","Ostění a parapet oken na WC - ryolit 795/1650mm oprava, očištění, impregnace","ks",2,null,0]
["Díl:","784","Malby",null,null,null,{"$f":"SUBTOTAL(9,G721:P723)","v":0}]
[{"$f":"A719+1","v":116},"784 45-0030.RA0","Malba ze směsi , penetrace 1x, bílá 2x ","m2",834.07,null,{"$f":"E721*F721","v":0}]
[null,null,"stropy:168,24+44,50",null,212.74]
[null,null,"stěny:572,65+(13,00+5,75+5,59)*2",null,621.33000000000004]
["Díl:","40","Podhledy",null,null,null,{"$f":"SUBTOTAL(9,G725:P744)","v":0}]
[{"$f":"A721+1","v":117},"401           A","Snížený strop - sádrokartonový podhled odolný  proti vodě","m2",168.24,null,{"$f":"E725*F725","v":0}]
[null,null,";přízemí",null,0]
[null,null,";mezipatro",null,0]
[null,null,"5,70+4,20+2,10+4,40+3,30+5,60+2,40+4,23",null,31.93]
[null,null,"1,25+1,40+1,40+4,53+1,25",null,9.83]
[null,null,";1.patro",null,0]
[null,null,"2,40+3,20+1,30+4,20+1,30+3,00+2,10",null,17.5]
[null,null,"2,90+3,20",null,6.1]
[null,null,";2.patro",null,0]
[null,null,"1,87+3,10+5,00+5,50+5,50",null,20.97]
[null,null,"4,10+1,50+1,50",null,7.1]
[null,null,";3.patro",null,0]
[null,null,"3,60+1,40+2,80+1,70+2,90+2*1,41+5,30",null,20.52]
[null,null,"5,10+2*1,41+3,80+10,70",null,22.42]
[null,null,";4.patro",null,0]
[null,null,"2,90+3,09+7,40+9,20+1,80+2,67+1,70+3,11",null,31.87]
[null,null,";5.patro",null,0]
[{"$f":"A725+1","v":118},"4011          A","Snížený strop - sádrokartonový podhled ","m2",44.5,null,{"$f":"E742*F742","v":0}]
[null,null,";1.patro:3,20+5,00",null,8.1999999999999993]
[null,null,";5.patro:3,50+11,50+8,90+2,70+7,00+2,70",null,36.299999999999997]
["Díl:","770","Ostatní",null,null,null,{"$f":"SUBTOTAL(9,G746:P763)","v":0}]
[{"$f":"A742+1","v":119},"770         B0","Zrcadlo zapuštěné do obkladu 800/1505 mm  D+M ","ks",1,null,{"$f":"E746*F746","v":0}]
[{"$f":"A746+1","v":120},"770         B2","Zrcadlo zapuštěné do obkladu 800/2045 mm  D+M ","ks",1,null,0]
[{"$f":"A747+1","v":121},"770         B1","Zrcadlo zapuštěné do obkladu 800/2050 mm  D+M ","ks",1,null,0]
[{"$f":"A748+1","v":122},"770         B3","Zrcadlo zapuštěné do obkladu 800/1000 mm  D+M ","ks",1,null,0]
[123,"770         B5","Zrcadlo zapuštěné do obkladu 800/1480 mm  D+M ","ks",1,null,0]
[124,"770         B6","Zrcadlo zapuštěné do obkladu 800/830 mm  D+M ","ks",2,null,0]
[125,"770         B9","Zrcadlo zapuštěné do obkladu 800/1430 mm  D+M ","ks",1,null,0]
[126,"770         B10","Zrcadlo zapuštěné do obkladu 800/2000 mm  D+M ","ks",1,null,0]
[127,"770         B11","Zrcadlo zapuštěné do obkladu 800/1480 mm  D+M ","ks",2,null,0]
[128,"770         B12","Zrcadlo zapuštěné do obkladu 800/1520 mm  D+M ","ks",1,null,0]
[129,"770         B14","Zrcadlo zapuštěné do obkladu 800/1940 mm  D+M ","ks",1,null,0]
[130,"770         B15","Zrcadlo zapuštěné do obkladu 800/1455 mm  D+M ","ks",1,null,0]
[131,"770         B16","Zrcadlo zapuštěné do obkladu 800/780 mm  D+M ","ks",1,null,0]
[132,"770         B17","Zrcadlo zapuštěné do obkladu 800/2750 mm  D+M ","ks",1,null,0]
[133,"770         B18","Zrcadlo zapuštěné do obkladu 800/1480 mm  D+M ","ks",1,null,0]
[134,"770         B19","Zrcadlo zapuštěné do obkladu 800/1625 mm  D+M ","ks",1,null,0]
[135,"770         B21","Zrcadlo zapuštěné do obkladu 800/1120 mm  D+M ","ks",1,null,0]
[136,"770         B22","Zrcadlo zapuštěné do obkladu 800/1000 mm  D+M ","ks",1,null,0]

{"sheet":"06_SO 04 - Silnoproud","index":10,"n_rows":140,"n_cols":9,"rows_kept":140,"cut":false,"hidden":false,"merged":[[26,1,26,2],[26,3,26,4],[26,5,26,6],[26,7,26,8],[27,1,27,2],[27,3,27,4],[27,5,27,6],[27,7,27,8],[4,0,4,8],[24,1,24,2],[24,3,24,4],[24,5,24,6],[24,7,24,8],[28,1,28,2],[28,3,28,4],[28,5,28,6],[28,7,28,8],[31,1,31,2],[31,3,31,4],[31,5,31,6],[31,7,31,8],[29,3,29,4],[29,5,29,6],[29,7,29,8],[30,1,30,2],[30,3,30,4],[30,5,30,6],[30,7,30,8],[29,1,29,2],[32,1,32,2],[32,3,32,4],[32,5,32,6],[32,7,32,8],[34,7,34,8],[37,0,37,8],[40,5,40,6],[40,7,40,8],[42,5,42,6],[42,7,42,8],[101,5,101,6],[101,7,101,8],[114,5,114,6],[114,7,114,8],[119,5,119,6],[119,7,119,8],[125,5,125,6],[125,7,125,8],[129,5,129,6],[129,7,129,8],[133,5,133,6],[133,7,133,8]]}
[{"$f":"CONCATENATE('Rekapitulace stavby'!C58,\"_\",'Rekapitulace stavby'!I58)","v":"06_SO 04 - Silnoproudá elektroinstalace "}]
[]
["SPECIFIKACE DODÁVEK A PRACÍ "]
["Název akce:"]
[{"$f":"'Identifikační údaje'!B1","v":"ČRo Brno – II. etapa rekonstrukce budovy Beethovenova 25/4"}]
[]
["Zadavatel:",null,{"$f":"'Identifikační údaje'!E7","v":"Český rozhlas, Vinohradská 12, 120 99 Praha 2"}]
[null,"IČ:",{"$f":"'Identifikační údaje'!B9","v":45245053}]
[null,"DIČ:",{"$f":"'Identifikační údaje'!B10","v":"CZ45245053"}]
[]
["Projektant:",null,{"$f":"'Identifikační údaje'!E12","v":"Ing. arch. Klement Miloš, Nejedlého 381/19, 638 00 Brno - Lesná"}]
[null,"IČ:",{"$f":"'Identifikační údaje'!B14","v":15188736}]
[null,"DIČ:",{"$f":"'Identifikační údaje'!B15","v":"CZ6101021344"}]
[]
["Uchazeč:",null,{"$f":"'Identifikační údaje'!E19","v":", ,  "}]
[null,"IČ:",{"$f":"'Identifikační údaje'!B23","v":0}]
[null,"DIČ:",{"$f":"'Identifikační údaje'!B24","v":0}]
[]
["Místo stavby:",null,{"$f":"'Identifikační údaje'!B3","v":"Budova Českého rozhlasu Brno na adrese Beethovenova 25/4, 657 42 Brno"}]
[]
["Datum:",null,{"$f":"'Identifikační údaje'!B5","v":"00:00:00"}]
[]
[{"$f":"CONCATENATE(\"REKAPITULACE DODÁVEK A PRACÍ OBJEKTU \",'Rekapitulace stavby'!I58)","v":"REKAPITULACE DODÁVEK A PRACÍ OBJEKTU SO 04 - Silnoproudá elektroinstalace "}]
[]
["P.č.","Ozn.",null,"Materiál celkem",null,"Montáž celkem",null,"M+M celkem"]
[]
[{"$f":"B43","v":"A."},{"$f":"C43","v":"Svítidla a příslušenství"},null,{"$f":"F43","v":0},null,{"$f":"H43","v":0},null,{"$f":"D27+F27","v":0}]
[{"$f":"B102","v":"B."},{"$f":"C102","v":"Spínače, zásuvky a ostatní přístroje "},null,{"$f":"F102","v":0},null,{"$f":"H102","v":0},null,{"$f":"D28+F28","v":0}]
[{"$f":"B115","v":"C."},{"$f":"C115","v":"Instalační, úložný a ochranný materiál"},null,{"$f":"F115","v":0},null,{"$f":"H115","v":0},null,0]
[{"$f":"B120","v":"D."},{"$f":"C120","v":"Kabely a vodiče"},null,{"$f":"F120","v":0},null,{"$f":"H120","v":0},null,0]
[{"$f":"B126","v":"E."},{"$f":"C126","v":"Pospojování, uzemnění"},null,{"$f":"F126","v":0},null,{"$f":"H126","v":0},null,0]
[{"$f":"B130","v":"F."},{"$f":"C130","v":"Rozvaděče"},null,{"$f":"F130","v":0},null,{"$f":"H130","v":0},null,0]
[{"$f":"B134","v":"G."},{"$f":"C134","v":"Ostatní"},null,{"$f":"F134","v":0},null,{"$f":"H134","v":0},null,0]
[]
[{"$f":"CONCATENATE(\"CELKEM ZA OBJEKT \",'Rekapitulace stavby'!I58, \" v Kč bez DPH\")","v":"CELKEM ZA OBJEKT SO 04 - Silnoproudá elektroinstalace  v Kč bez DPH"},null,null,null,null,null,null,{"$f":"SUBTOTAL(9,H27:I33)","v":0}]
[]
[]
["Textová, výkresová i tabulková část projektové dokumentace tvoří jeden vzájemně se doplňující a provázaný celek. Jednotliví účastníci výběrového řízení se musí seznámit s projektojektovou dokumentací v návaznosti na soupis prací a na základě těchto informací části díla nacenit. Dále je potřeba při stanovení ceny dle vykázané výměry započítat všechny předpokládané doplňkové prvky a činnosti s touto položkou související tak, aby cena byla kompletní a prvek funkční."]
[]
[1]
[null,null,null,null,null,"Materiál",null,"Montáž"]
["poř.č.","položka","popis položky","MJ","množství","jedn.cena","celkem [Kč]","jedn.cena","celkem [Kč]"]
[null,"A.","Svítidla a příslušenství",null,null,{"$f":"SUBTOTAL(9,G45:G100)","v":0},null,{"$f":"SUBTOTAL(9,I45:I100)","v":0}]
[null,null," (komplet, včetně zdrojů, závěsů, pomocného materiálu, osazení zapojení, vyzkoušení apod.)"]
[1,null,"svítidlo typ A13 - Svítidlo stropní přisazené, bílá barva, difuzor opál, odsazený, Ø 195 mm, v=131 mm, LED 35W, 3000 K, 3000 lm, IP40","ks",2,null,{"$f":"E45*F45","v":0},null,{"$f":"E45*H45","v":0}]
[{"$f":"A45+1","v":2},null,"svítidlo typ A5 - Svítidlo přisazené, bílá barva, difuzor sklo mat, Ø 267 mm, v=80 mm, 2xE27, 2x20W max","ks",6,null,{"$f":"E46*F46","v":0},null,{"$f":"E46*H46","v":0}]
[3,null,"svítidlo typ A6 - Svítidlo stropní přisazené, bílá barva, difuzor opál, odsazený, Ø 130 mm, v=100 mm, LED 15W, 3000 K, 1280 lm, IP40","ks",1,null,0,null,{"$f":"E47*H47","v":0}]
[4,null,"svítidlo typ C13 - Svítidlo vestavné do podhledu SDK, korpus Al, bílá barva, difuzor opál - odsazený, Ø 110 mm, vestavná hloubka 70 mm, LED SMD 2835, 13W, 3000 K, 925 lm, 90°, IP54","ks",51,null,0,null,{"$f":"E48*H48","v":0}]
[5,null,"svítidlo typ C14 - Svítidlo vestavné do podhledu SDK, bílý rámeček, difuzor mat, Ø 230 mm, vestavná hloubka 150 mm, 2x E27, 2x20W max","ks",2,null,0,null,{"$f":"E49*H49","v":0}]
[6,null,"svítidlo typ C15 - Svítidlo vestavné do podhledu SDK, bílý rámeček, difuzor mat, Ø 190 mm, vestavná hloubka 150 mm, 2x E27, 2x15W max","ks",1,null,0,null,{"$f":"E50*H50","v":0}]
[7,null,"svítidlo typ C8 Svítidlo vestavné do podhledu SDK, bílá barva, odsazený světelný zdroj, Ø 69 mm, vest. hloubka 86 mm, LED 7,5W, 3000 K, 1000 lm, 33°","ks",5,null,0,null,0]
[8,null,"svítidlo typ D6 - Svítidlo nástěnné, Al+difuzor opál, Ø trubice 42 mm, l=620 mm, pro zářivku 1x14W, G5, EP","ks",3,null,0,null,0]
[9,null,"svítidlo typ E3-1 - Ukončující profil podhledu SDK, Al, difuzor PC opál, vč. LED 9W/m,3000 K, 720 lm/m, 12V DC, délka 0,75 m","ks",1,null,0,null,0]
[10,null,"svítidlo typ E3-10 - Ukončující profil podhledu SDK, Al, difuzor PC opál, vč. LED 9W/m,3000 K, 720 lm/m, 12V DC, délka  0,85m","ks",1,null,0,null,0]
[11,null,"svítidlo typ E3-11 - Ukončující profil podhledu SDK, Al, difuzor PC opál, vč. LED 9W/m,3000 K, 720 lm/m, 12V DC, délka  0,85","ks",1,null,0,null,0]
[12,null,"svítidlo typ E3-12 - Ukončující profil podhledu SDK, Al, difuzor PC opál, vč. LED 9W/m,3000 K, 720 lm/m, 12V DC, délka  2,85m","ks",1,null,0,null,0]
[13,null,"svítidlo typ E3-13 - Ukončující profil podhledu SDK, Al, difuzor PC opál, vč. LED 9W/m,3000 K, 720 lm/m, 12V DC, délka  0,85m","ks",1,null,0,null,0]
[14,null,"svítidlo typ E3-14 - Ukončující profil podhledu SDK, Al, difuzor PC opál, vč. LED 9W/m,3000 K, 720 lm/m, 12V DC, délka  0,85m","ks",1,null,0,null,0]
[15,null,"svítidlo typ E3-15 - Ukončující profil podhledu SDK, Al, difuzor PC opál, vč. LED 9W/m,3000 K, 720 lm/m, 12V DC, délka  2,25m","ks",1,null,0,null,0]
[16,null,"svítidlo typ E3-16 - Ukončující profil podhledu SDK, Al, difuzor PC opál, vč. LED 9W/m,3000 K, 720 lm/m, 12V DC, délka  1m","ks",1,null,0,null,0]
[17,null,"svítidlo typ E3-17 - Ukončující profil podhledu SDK, Al, difuzor PC opál, vč. LED 9W/m,3000 K, 720 lm/m, 12V DC, délka  1m","ks",1,null,0,null,0]
[18,null,"svítidlo typ E3-19 - Ukončující profil podhledu SDK, Al, difuzor PC opál, vč. LED 9W/m,3000 K, 720 lm/m, 12V DC, délka  1,4m","ks",1,null,0,null,0]
[19,null,"svítidlo typ E3-2 - Ukončující profil podhledu SDK, Al, difuzor PC opál, vč. LED 9W/m,3000 K, 720 lm/m, 12V DC, délka  0,8m","ks",1,null,0,null,0]
[20,null,"svítidlo typ E3-20 - Ukončující profil podhledu SDK, Al, difuzor PC opál, vč. LED 9W/m,3000 K, 720 lm/m, 12V DC, délka  2,5m","ks",1,null,0,null,0]
[21,null,"svítidlo typ E3-21 - Ukončující profil podhledu SDK, Al, difuzor PC opál, vč. LED 9W/m,3000 K, 720 lm/m, 12V DC, délka  0,95m","ks",1,null,0,null,0]
[22,null,"svítidlo typ E3-22 - Ukončující profil podhledu SDK, Al, difuzor PC opál, vč. LED 9W/m,3000 K, 720 lm/m, 12V DC, délka  0,95m","ks",1,null,0,null,0]
[23,null,"svítidlo typ E3-23 - Ukončující profil podhledu SDK, Al, difuzor PC opál, vč. LED 9W/m,3000 K, 720 lm/m, 12V DC, délka  2,7m","ks",1,null,0,null,0]
[24,null,"svítidlo typ E3-24 - Ukončující profil podhledu SDK, Al, difuzor PC opál, vč. LED 9W/m,3000 K, 720 lm/m, 12V DC, délka  0,95m","ks",1,null,0,null,0]
[25,null,"svítidlo typ E3-25 - Ukončující profil podhledu SDK, Al, difuzor PC opál, vč. LED 9W/m,3000 K, 720 lm/m, 12V DC, délka  0,85m","ks",1,null,0,null,0]
[26,null,"svítidlo typ E3-26 - Ukončující profil podhledu SDK, Al, difuzor PC opál, vč. LED 9W/m,3000 K, 720 lm/m, 12V DC, délka  2,15m","ks",1,null,0,null,0]
[27,null,"svítidlo typ E3-27 - Ukončující profil podhledu SDK, Al, difuzor PC opál, vč. LED 9W/m,3000 K, 720 lm/m, 12V DC, délka  2m","ks",1,null,0,null,0]
[28,null,"svítidlo typ E3-28 - Ukončující profil podhledu SDK, Al, difuzor PC opál, vč. LED 9W/m,3000 K, 720 lm/m, 12V DC, délka  1,6m","ks",1,null,0,null,0]
[29,null,"svítidlo typ E3-29 - Ukončující profil podhledu SDK, Al, difuzor PC opál, vč. LED 9W/m,3000 K, 720 lm/m, 12V DC, délka  1,6m","ks",1,null,0,null,0]
[30,null,"svítidlo typ E3-3 - Ukončující profil podhledu SDK, Al, difuzor PC opál, vč. LED 9W/m,3000 K, 720 lm/m, 12V DC, délka  2,15m","ks",1,null,0,null,0]
[31,null,"svítidlo typ E3-30 - Ukončující profil podhledu SDK, Al, difuzor PC opál, vč. LED 9W/m,3000 K, 720 lm/m, 12V DC, délka  2,6m","ks",1,null,0,null,0]
[32,null,"svítidlo typ E3-31 - Ukončující profil podhledu SDK, Al, difuzor PC opál, vč. LED 9W/m,3000 K, 720 lm/m, 12V DC, délka  0,85m","ks",1,null,0,null,0]
[33,null,"svítidlo typ E3-32 - Ukončující profil podhledu SDK, Al, difuzor PC opál, vč. LED 9W/m,3000 K, 720 lm/m, 12V DC, délka  0,85m","ks",1,null,0,null,0]
[34,null,"svítidlo typ E3-33 - Ukončující profil podhledu SDK, Al, difuzor PC opál, vč. LED 9W/m,3000 K, 720 lm/m, 12V DC, délka  1,3m","ks",1,null,0,null,0]
[35,null,"svítidlo typ E3-34 - Ukončující profil podhledu SDK, Al, difuzor PC opál, vč. LED 9W/m,3000 K, 720 lm/m, 12V DC, délka  1,3m","ks",1,null,0,null,0]
[36,null,"svítidlo typ E3-36 - Ukončující profil podhledu SDK, Al, difuzor PC opál, vč. LED 9W/m,3000 K, 720 lm/m, 12V DC, délka  0,9m","ks",1,null,0,null,0]
[37,null,"svítidlo typ E3-37 - Ukončující profil podhledu SDK, Al, difuzor PC opál, vč. LED 9W/m,3000 K, 720 lm/m, 12V DC, délka  0,9m","ks",1,null,0,null,0]
[38,null,"svítidlo typ E3-38 - Ukončující profil podhledu SDK, Al, difuzor PC opál, vč. LED 9W/m,3000 K, 720 lm/m, 12V DC, délka  0,9m","ks",1,null,0,null,0]
[39,null,"svítidlo typ E3-39 - Ukončující profil podhledu SDK, Al, difuzor PC opál, vč. LED 9W/m,3000 K, 720 lm/m, 12V DC, délka  1,7m","ks",1,null,0,null,0]
[40,null,"svítidlo typ E3-4 - Ukončující profil podhledu SDK, Al, difuzor PC opál, vč. LED 9W/m,3000 K, 720 lm/m, 12V DC, délka  0,85m","ks",1,null,0,null,0]
[41,null,"svítidlo typ E3-40 - Ukončující profil podhledu SDK, Al, difuzor PC opál, vč. LED 9W/m,3000 K, 720 lm/m, 12V DC, délka  1,5m","ks",1,null,0,null,0]
[42,null,"svítidlo typ E3-41 - Ukončující profil podhledu SDK, Al, difuzor PC opál, vč. LED 9W/m,3000 K, 720 lm/m, 12V DC, délka  0,95m","ks",1,null,0,null,0]
[43,null,"svítidlo typ E3-42 - Ukončující profil podhledu SDK, Al, difuzor PC opál, vč. LED 9W/m,3000 K, 720 lm/m, 12V DC, délka  0,95m","ks",1,null,0,null,0]
[44,null,"svítidlo typ E3-5 - Ukončující profil podhledu SDK, Al, difuzor PC opál, vč. LED 9W/m,3000 K, 720 lm/m, 12V DC, délka  0,85m","ks",1,null,0,null,0]
[45,null,"svítidlo typ E3-50 - Ukončující profil podhledu SDK, Al, difuzor PC opál, vč. LED 9W/m,3000 K, 720 lm/m, 12V DC, délka  0,9m","ks",1,null,0,null,0]
[46,null,"svítidlo typ E3-51 - Ukončující profil podhledu SDK, Al, difuzor PC opál, vč. LED 9W/m,3000 K, 720 lm/m, 12V DC, délka  0,9m","ks",1,null,0,null,0]
[47,null,"svítidlo typ E3-52 - Ukončující profil podhledu SDK, Al, difuzor PC opál, vč. LED 9W/m,3000 K, 720 lm/m, 12V DC, délka  1,3m","ks",1,null,0,null,0]
[48,null,"svítidlo typ E3-53 - Ukončující profil podhledu SDK, Al, difuzor PC opál, vč. LED 9W/m,3000 K, 720 lm/m, 12V DC, délka  1,4m","ks",1,null,0,null,0]
[49,null,"svítidlo typ E3-54 - Ukončující profil podhledu SDK, Al, difuzor PC opál, vč. LED 9W/m,3000 K, 720 lm/m, 12V DC, délka  2,25m","ks",1,null,0,null,0]
[50,null,"svítidlo typ E3-55 - Ukončující profil podhledu SDK, Al, difuzor PC opál, vč. LED 9W/m,3000 K, 720 lm/m, 12V DC, délka  1,3","ks",1,null,0,null,0]
[51,null,"svítidlo typ E3-56 - Ukončující profil podhledu SDK, Al, difuzor PC opál, vč. LED 9W/m,3000 K, 720 lm/m, 12V DC, délka  1,7m","ks",1,null,0,null,0]
[52,null,"svítidlo typ E3-57 - Ukončující profil podhledu SDK, Al, difuzor PC opál, vč. LED 9W/m,3000 K, 720 lm/m, 12V DC, délka  0,8m","ks",1,null,0,null,0]
[53,null,"svítidlo typ E3-6 - Ukončující profil podhledu SDK, Al, difuzor PC opál, vč. LED 9W/m,3000 K, 720 lm/m, 12V DC, délka 0,85m ","ks",1,null,0,null,0]
[54,null,"svítidlo typ E3-7 - Ukončující profil podhledu SDK, Al, difuzor PC opál, vč. LED 9W/m,3000 K, 720 lm/m, 12V DC, délka 0,85m ","ks",1,null,0,null,0]
[55,null,"svítidlo typ E3-8 - Ukončující profil podhledu SDK, Al, difuzor PC opál, vč. LED 9W/m,3000 K, 720 lm/m, 12V DC, délka  1,6m","ks",1,null,0,null,0]
[56,null,"svítidlo typ E3-9 - Ukončující profil podhledu SDK, Al, difuzor PC opál, vč. LED 9W/m,3000 K, 720 lm/m, 12V DC, délka  2,3m","ks",1,null,0,null,{"$f":"E100*H100","v":0}]
[]
[null,"B.","Spínače, zásuvky a ostatní přístroje ",null,null,{"$f":"SUBTOTAL(9,G105:G113)","v":0},null,{"$f":"SUBTOTAL(9,I105:I113)","v":0}]
[null,null,"(komplet, včetně příslušenství, pomocného materiálu, osazení, zapojení, vyzkoušení apod.)"]
[null,null,"Návazně na předchozí etapy rekonstrukce budou osaztovány výrobky z řady ABB Tango"]
[{"$f":"A100+1","v":57},null,"Domovní spínač řazení 1, komplet","ks",47,null,{"$f":"E105*F105","v":0},null,{"$f":"E105*H105","v":0}]
[58,null,"Domovní spínač řazení 5, komplet ","ks",25,null,{"$f":"E106*F106","v":0},null,{"$f":"E106*H106","v":0}]
[59,null,"Domovní tlačítko řazení 1/0 s popisem větrání , komplet","ks",29,null,{"$f":"E107*F107","v":0},null,{"$f":"E107*H107","v":0}]
[60,null,"Časový doběh pro ventilátor montáž do krabice","ks",18,null,{"$f":"E108*F108","v":0},null,{"$f":"E108*H108","v":0}]
[61,null,"Napojení VZT zařízení 230V, dle montážního návodu ","ks",18,null,{"$f":"E109*F109","v":0},null,{"$f":"E109*H109","v":0}]
[{"$f":"A109+1","v":62},null,"Napojení napajecího zdroje splachovačů , dle montážního návodu ","ks",4,null,{"$f":"E110*F110","v":0},null,{"$f":"E110*H110","v":0}]
[63,null,"Domovní zásuvka 230V 16A,napájení z trafa  komplet","ks",5,null,0,null,0]
[64,null,"Napojení osoušeče rukou 230V, dle montážního návodu ","ks",21,null,0,null,0]
[65,null,"Napojení SLP zařízení 230V, dle montážního návodu ","ks",5,null,0,null,0]
[]
[null,"C.","Instalační, úložný a ochranný materiál",null,null,{"$f":"SUBTOTAL(9,G116:G118)","v":0},null,{"$f":"SUBTOTAL(9,I115:I118)","v":0}]
[null,null," (komplet, včetně příslušenství, pomocného materiálu, výkopu, záhozu výkopu, vytyčení trasy, osazení, zapojení, vyzkoušení apod.)"]
[{"$f":"A113+1","v":66},null,"Krabice přístrojová","ks",106,null,{"$f":"E117*F117","v":0},null,{"$f":"E117*H117","v":0}]
[{"$f":"A117+1","v":67},null,"Krabice odbočná včetně wago svorek","ks",50,null,0,null,0]
[]
[null,"D.","Kabely a vodiče",null,null,{"$f":"SUBTOTAL(9,G121:G124)","v":0},null,{"$f":"SUBTOTAL(9,I120:I124)","v":0}]
[null,null,"(komplet, včetně vyhotovení drážky, zapravení drážky, vytyčení trasy, pomocného materiálu, příchytek, spojek, odlehčovacích oblouků, zapojení, vyzkoušení apod.)"]
[{"$f":"A118+1","v":68},null,"CYKY J 3x1,5","m",600,null,{"$f":"E122*F122","v":0},null,{"$f":"E122*H122","v":0}]
[{"$f":"A122+1","v":69},null,"CYKY J 3x2,5","m",350,null,0,null,0]
[70,null,"CYKY O 3x1,5","m",150,null,0,null,0]
[]
[null,"E.","Pospojování, uzemnění",null,null,{"$f":"SUBTOTAL(9,G127:G128)","v":0},null,{"$f":"SUBTOTAL(9,I126:I128)","v":0}]
[null,null,"(komplet, včetně příslušenství, svorek, pomocného materiálu, osazení, zapojení, vyzkoušení apod.) "]
[{"$f":"A124","v":70},null,"Vodič CYA4 žlutozelený včetně svorek - doplňkové pospojení","m",140,null,{"$f":"E128*F128","v":0},null,{"$f":"E128*H128","v":0}]
[]
[null,"F.","Rozvaděče",null,null,{"$f":"SUBTOTAL(9,G131:G132)","v":0},null,{"$f":"SUBTOTAL(9,I130:I132)","v":0}]
[null,null,"(komplet, včetně příslušenství, svorek, pomocného materiálu, osazení, zapojení, vyzkoušení apod.) "]
[{"$f":"A128+1","v":71},null,"Doplnění stávajícího rozvaděče R11","ks",1,null,{"$f":"E132*F132","v":0},null,{"$f":"E132*H132","v":0}]
[]
[null,"G.","Ostatní",null,null,{"$f":"SUBTOTAL(9,G135:G140)","v":0},null,{"$f":"SUBTOTAL(9,I134:I140)","v":0}]
[{"$f":"A132+1","v":72},null,"Výchozí revize","hod",10,null,{"$f":"E135*F135","v":0},null,{"$f":"E135*H135","v":0}]
[{"$f":"A135+1","v":73},null,"Demontáže včetně likvidace odpadu","hod",50,null,0,null,0]
[74,null,"Stavební přípomoce ","kpl",1," ---"," ---",null,0]
[{"$f":"A137+1","v":75},null,"Pomocný a podružný materiál upevňovací","kpl",1,null,0,null,0]
[76,null,"Zednické výpomoci (PPV)","kpl",1," ---"," ---",null,0]
[77,null,"Doprava materiálu","kpl",1," ---"," ---",null,0]

{"sheet":"07_SO 04 - VZT","index":11,"n_rows":75,"n_cols":10,"rows_kept":75,"cut":false,"hidden":false,"merged":[[16,9,19,9],[17,5,17,6],[17,7,17,8],[18,3,19,3],[18,4,19,4],[16,0,19,0],[16,1,19,1],[16,2,19,2],[16,3,17,4],[16,5,16,8],[50,4,51,4],[74,0,74,4],[74,5,74,6],[23,0,23,9],[34,0,34,1],[34,7,34,9],[48,0,51,0],[48,1,51,1],[48,2,51,2],[48,3,49,4],[48,5,48,8],[48,9,51,9],[50,3,51,3]]}
[{"$f":"CONCATENATE('Rekapitulace stavby'!C59,\"_\",'Rekapitulace stavby'!I59)","v":"07_SO 04 - Vzduchotechnika a chlazení"}]
[]
["SPECIFIKACE DODÁVEK A PRACÍ "]
["Název akce:"]
[{"$f":"'Identifikační údaje'!B1","v":"ČRo Brno – II. etapa rekonstrukce budovy Beethovenova 25/4"}]
[]
["Zadavatel:",null,{"$f":"'Identifikační údaje'!E7","v":"Český rozhlas, Vinohradská 12, 120 99 Praha 2"},"Projektant:",null,{"$f":"'Identifikační údaje'!E12","v":"Ing. arch. Klement Miloš, Nejedlého 381/19, 638 00 Brno - Lesná"}]
[null,"IČ",{"$f":"'Identifikační údaje'!B9","v":45245053},null,"IČ",{"$f":"'Identifikační údaje'!B14","v":15188736}]
[null,"DIČ",{"$f":"'Identifikační údaje'!B10","v":"CZ45245053"},null,"DIČ",{"$f":"'Identifikační údaje'!B15","v":"CZ6101021344"}]
[]
["Uchazeč:",null,{"$f":"'Identifikační údaje'!E19","v":", ,  "},"Místo stavby:",null,{"$f":"'Identifikační údaje'!B3","v":"Budova Českého rozhlasu Brno na adrese Beethovenova 25/4, 657 42 Brno"}]
[null,"IČ",{"$f":"'Identifikační údaje'!B23","v":0}]
[null,"DIČ",{"$f":"'Identifikační údaje'!B24","v":0}]
[]
["Datum:",null,{"$f":"'Identifikační údaje'!B5","v":"00:00:00"}]
[]
["P.Č.","Č.Z"," Popis položky:","Měrná jednotka",null,"Cena",null,null,null,"Poznámka"]
[null,null,null,null,null,"Jednotková",null,"Celkem"]
[null,null,null,"-","počet","Dodávka","Montáž","Dodávka","Montáž"]
[null,null,null,null,null,"[ Kč ]","[ Kč ]","[ Kč ]","[ Kč ]"]
[null,null,{"$f":"CONCATENATE(\"REKAPITULACE OBJEKTU  \",'Rekapitulace stavby'!I59)","v":"REKAPITULACE OBJEKTU  SO 04 - Vzduchotechnika a chlazení"}]
[1,1,{"$f":"C53","v":"Zařízení č.3 - Větrání sociálních zařízení"},"kpl",1," - "," - ",{"$f":"H75","v":0},{"$f":"I75","v":0},"-"]
[null,null,"Mezisoučet",null,null,null,null,{"$f":"SUM(H22:H22)","v":0},{"$f":"SUM(I22:I22)","v":0},"Kč bez DPH"]
[]
[{"$f":"A22+1","v":2},"-","Protipožární ucpávky","ks",8,null,null,{"$f":"E25*F25","v":0},{"$f":"E25*G25","v":0},"-"]
[{"$f":"A25+1","v":3},"-","Materiál pro spoje, montáž, závěsy, atd.","kpl",1,null,null,{"$f":"E26*F26","v":0},{"$f":"E26*G26","v":0},"-"]
[{"$f":"A26+1","v":4},"-","Doprava","kpl",1," - ",null," - ",{"$f":"E27*G27","v":0},"-"]
[5,"-","Přesuny","kpl",1," - ",null," - ",0,"-"]
[6,"-","Uvedení do provozu, zaregulování, vyzkoušení, předávací řízení","kpl",1," - ",null," - ",0,"-"]
[7,"-","Inženýrská a koordinační činnost","kpl",1," - ",null," - ",0,"-"]
[8,"-","Prováděcí a výrobní projektová dokumentace","kpl",1," - ",null," - ",0,"-"]
[9,"-","Dokumentace konečného provedení, návody, atesty, prohlášení o shodě","kpl",1," - ",null," - ",0,"-"]
[null,null,"Mezisoučet",null,null,null,null,{"$f":"SUM(H25:H32)","v":0},{"$f":"SUM(I25:I32)","v":0},"Kč bez DPH"]
[]
["CELKEM D+M",null,{"$f":"CONCATENATE(\"OBJEKT \",'Rekapitulace stavby'!I59,\" v Kč bez DPH\")","v":"OBJEKT SO 04 - Vzduchotechnika a chlazení v Kč bez DPH"},null,null,null,null,{"$f":"H23+H33+I23+I33","v":0}]
[]
[]
[]
[]
[]
[]
[]
[]
[]
[]
[]
[]
[]
["P.Č.","Č.P."," Popis položky:","Měrná jednotka",null,"Cena",null,null,null,"Poznámka"]
[null,null,null,null,null,"Jednotková cena",null,"Celková cena"]
[null,null,null,"-","počet","Dodávka","Montáž","Dodávka","Montáž"]
[null,null,null,null,null,"[ Kč ]","[ Kč ]","[ Kč ]","[ Kč ]"]
[null,null,"Zařízení č.3 - Větrání sociálních zařízení"]
[{"$f":"A32+1","v":10},"3.1","Ventilátor - referenční výrobek Mixvent TD 800/200 Silent","ks",1,null,null,{"$f":"E54*F54","v":0},{"$f":"E54*G54","v":0}]
[{"$f":"A54+1","v":11},null,"Rychloupínací spona - referenční výrobek VBM 200","ks",2,null,null,{"$f":"E55*F55","v":0},{"$f":"E55*G55","v":0}]
[{"$f":"A55+1","v":12},null,"Zpětná klapka - referenční výrobek RSK 200","ks",1,null,null,0,0]
[13,"3.2","Ventilátor - referenční výrobek Mixvent TD 500/160 Silent","ks",11,null,null,0,0]
[14,null,"Rychloupínací spona - referenční výrobek VBM 160","ks",22,null,null,0,0]
[15,null,"Zpětná klapka - referenční výrobek RSK 160","ks",11,null,null,0,0]
[16,"3.3","Ventilátor - referenční výrobek Mixvent TD 350/125 Silent","ks",7,null,null,0,0]
[17,null,"Rychloupínací spona - referenční výrobek VBM 125","ks",14,null,null,0,0]
[18,null,"Zpětná klapka - referenční výrobek RSK 125","ks",7,null,null,0,0]
[19,"3.4","Talířový ventil - referenční výrobek DAVBR 125","ks",71,null,null,0,0]
[20,"3.5","Talířový ventil - referenční výrobek DAVBR 200","ks",2,null,null,0,0]
[21,"3.6","Stěnová mřížka - referenční výrobek NOVA - L - 1 - 1 - 300 x 100 - 20,0","ks",140,null,null,0,0]
[22,0,"Trouba SPIRO - 125 - včetně tvarovek","bm",10,null,null,0,0]
[23,0,"Trouba SPIRO - 160 - včetně tvarovek","bm",66,null,null,0,0]
[24,0,"Trouba SPIRO - 200 - včetně tvarovek","bm",21,null,null,0,0]
[25,0,"Trouba SPIRO - 250 - včetně tvarovek","bm",34,null,null,0,0]
[26,null,"Čtyřhranné ocel. potrubí sk. I včetně tvarovek","m2",58,null,null,0,0]
[27,null,"Ohebná hadice Sonodec 25 - 127","bm",312,null,null,0,0]
[28,null,"Ohebná hadice Sonodec 25 - 203","bm",12,null,null,0,0]
[29,null,"Ohebná hadice Sonodec 25 - 160","bm",44,null,null,0,0]
[30,null,"Tep a protihluk.izol.tl. 6 cm - venkovní s oplechováním","m2",5,null,null,0,0]
[{"$f":"CONCATENATE(C53,\" - celkem\")","v":"Zařízení č.3 - Větrání sociálních zařízení - celkem"},null,null,null,null,null,null,{"$f":"SUM(H54:H74)","v":0},{"$f":"SUM(I54:I74)","v":0},"bez DPH"]

{"sheet":"08_SO 04 - Slaboproud","index":12,"n_rows":55,"n_cols":9,"rows_kept":55,"cut":false,"hidden":false,"merged":[[26,1,26,2],[26,3,26,4],[26,5,26,6],[26,7,26,8],[4,0,4,8],[24,1,24,2],[24,3,24,4],[24,5,24,6],[24,7,24,8],[27,1,27,2],[27,3,27,4],[27,5,27,6],[27,7,27,8],[28,1,28,2],[28,3,28,4],[28,5,28,6],[28,7,28,8],[46,5,46,6],[46,7,46,8],[50,5,50,6],[50,7,50,8],[30,7,30,8],[32,0,32,8],[36,5,36,6],[36,7,36,8],[38,5,38,6],[38,7,38,8]]}
[{"$f":"CONCATENATE('Rekapitulace stavby'!C60,\"_\",'Rekapitulace stavby'!I60)","v":"08_SO 04 - Slaboproudá elektroinstalace"}]
[]
["SPECIFIKACE DODÁVEK A PRACÍ "]
["Název akce:"]
[{"$f":"'Identifikační údaje'!B1","v":"ČRo Brno – II. etapa rekonstrukce budovy Beethovenova 25/4"}]
[]
["Zadavatel:",null,{"$f":"'Identifikační údaje'!E7","v":"Český rozhlas, Vinohradská 12, 120 99 Praha 2"}]
[null,"IČ:",{"$f":"'Identifikační údaje'!B9","v":45245053}]
[null,"DIČ:",{"$f":"'Identifikační údaje'!B10","v":"CZ45245053"}]
[]
["Projektant:",null,{"$f":"'Identifikační údaje'!E12","v":"Ing. arch. Klement Miloš, Nejedlého 381/19, 638 00 Brno - Lesná"}]
[null,"IČ:",{"$f":"'Identifikační údaje'!B14","v":15188736}]
[null,"DIČ:",{"$f":"'Identifikační údaje'!B15","v":"CZ6101021344"}]
[]
["Uchazeč:",null,{"$f":"'Identifikační údaje'!E19","v":", ,  "}]
[null,"IČ:",{"$f":"'Identifikační údaje'!B23","v":0}]
[null,"DIČ:",{"$f":"'Identifikační údaje'!B24","v":0}]
[]
["Místo stavby:",null,{"$f":"'Identifikační údaje'!B3","v":"Budova Českého rozhlasu Brno na adrese Beethovenova 25/4, 657 42 Brno"}]
[]
["Datum:",null,{"$f":"'Identifikační údaje'!B5","v":"00:00:00"}]
[]
[{"$f":"CONCATENATE(\"REKAPITULACE DODÁVEK A PRACÍ OBJEKTU \",'Rekapitulace stavby'!I60)","v":"REKAPITULACE DODÁVEK A PRACÍ OBJEKTU SO 04 - Slaboproudá elektroinstalace"}]
[]
["P.č.","Ozn.",null,"Materiál celkem",null,"Montáž celkem",null,"M+M celkem"]
[]
[{"$f":"B39","v":"A."},{"$f":"C39","v":"SIGNALIZAČNÍ SYSTÉM PRO INVALIDNÍ OSOBY"},null,{"$f":"F39","v":0},null,{"$f":"H39","v":0},null,{"$f":"D27+F27","v":0}]
[{"$f":"B47","v":"B."},{"$f":"C47","v":"Kabely a vodiče"},null,{"$f":"F47","v":0},null,{"$f":"H47","v":0},null,{"$f":"D28+F28","v":0}]
[{"$f":"B51","v":"G."},{"$f":"C51","v":"Ostatní"},null,{"$f":"F51","v":0},null,{"$f":"H51","v":0},null,0]
[]
[{"$f":"CONCATENATE(\"CELKEM ZA OBJEKT \",'Rekapitulace stavby'!I60, \" v Kč bez DPH\")","v":"CELKEM ZA OBJEKT SO 04 - Slaboproudá elektroinstalace v Kč bez DPH"},null,null,null,null,null,null,{"$f":"SUBTOTAL(9,H27:I29)","v":0}]
[]
["Textová, výkresová i tabulková část projektové dokumentace tvoří jeden vzájemně se doplňující a provázaný celek. Jednotliví účastníci výběrového řízení se musí seznámit s projektojektovou dokumentací v návaznosti na soupis prací a na základě těchto informací části díla nacenit. Dále je potřeba při stanovení ceny dle vykázané výměry započítat všechny předpokládané doplňkové prvky a činnosti s touto položkou související tak, aby cena byla kompletní a prvek funkční."]
[]
[]
[{"$f":"A1","v":"08_SO 04 - Slaboproudá elektroinstalace"}]
[null,null,null,null,null,"Materiál",null,"Montáž"]
["poř.č.","položka","popis položky","MJ","množství","jedn.cena","celkem [Kč]","jedn.cena","celkem [Kč]"]
[null,"A.","SIGNALIZAČNÍ SYSTÉM PRO INVALIDNÍ OSOBY",null,null,{"$f":"SUBTOTAL(9,G40:G45)","v":0},null,{"$f":"SUBTOTAL(9,I40:I45)","v":0}]
[1,null,"Transformátor","ks",5,null,{"$f":"E40*F40","v":0},null,{"$f":"E40*H40","v":0}]
[{"$f":"A40+1","v":2},null,"Modul kontrolní s alarmem, bílé","ks",5,null,{"$f":"E41*F41","v":0},null,{"$f":"E41*H41","v":0}]
[3,null,"Tlačítko prosvětlené, bílé","ks",5,null,0,null,{"$f":"E42*H42","v":0}]
[4,null,"Tlačítko signální táhové, bílé","ks",5,null,0,null,{"$f":"E43*H43","v":0}]
[5,null,"Dvojrámeček dle silnoproudu svislý, bílý","ks",5,null,0,null,{"$f":"E44*H44","v":0}]
[6,null,"Jednoduchý rámeček dle silnoproudu bílý","ks",5,null,0,null,{"$f":"E45*H45","v":0}]
[]
[null,"B.","Kabely a vodiče",null,null,{"$f":"SUBTOTAL(9,G48:G48)","v":0},null,{"$f":"SUBTOTAL(9,I47:I48)","v":0}]
[{"$f":"A45+1","v":7},null,"CYKY J 3x1,5","m",110,null,{"$f":"E48*F48","v":0},null,{"$f":"E48*H48","v":0}]
[]
[]
[null,"G.","Ostatní",null,null,{"$f":"SUBTOTAL(9,G52:G55)","v":0},null,{"$f":"SUBTOTAL(9,I51:I55)","v":0}]
[{"$f":"A48+1","v":8},null,"Protokol o zkoušce funkčnosti instalovaného systému","kpl",1,null,{"$f":"E52*F52","v":0},null,{"$f":"E52*H52","v":0}]
[{"$f":"A52+1","v":9},null,"Stavební přípomoce ","kpl",1," ---"," ---",null,0]
[10,null,"Pomocný a podružný materiál upevňovací","kpl",1,null,0,null,0]
[11,null,"Doprava materiálu","kpl",1," ---"," ---",null,0]

{"sheet":"09_SO 04 - ZTI","index":13,"n_rows":274,"n_cols":10,"rows_kept":274,"cut":false,"hidden":false,"merged":[[273,8,273,9],[4,0,4,9],[26,8,26,9],[27,8,27,9],[28,8,28,9],[29,8,29,9],[236,2,236,5],[239,2,239,5],[238,2,238,5],[31,8,31,9],[75,8,75,9],[129,8,129,9],[212,8,212,9]]}
[{"$f":"CONCATENATE('Rekapitulace stavby'!C61,\"_\",'Rekapitulace stavby'!I61)","v":"09_SO 04 - Zdravotně technické instalace"}]
[]
["SPECIFIKACE DODÁVEK A PRACÍ "]
["Název akce:"]
[{"$f":"'Identifikační údaje'!B1","v":"ČRo Brno – II. etapa rekonstrukce budovy Beethovenova 25/4"}]
[]
["Zadavatel:",null,null,{"$f":"'Identifikační údaje'!E7","v":"Český rozhlas, Vinohradská 12, 120 99 Praha 2"}]
[null,null,"IČ:",{"$f":"'Identifikační údaje'!B9","v":45245053}]
[null,null,"DIČ:",{"$f":"'Identifikační údaje'!B10","v":"CZ45245053"}]
[]
["Projektant:",null,null,{"$f":"'Identifikační údaje'!E12","v":"Ing. arch. Klement Miloš, Nejedlého 381/19, 638 00 Brno - Lesná"}]
[null,null,"IČ:",{"$f":"'Identifikační údaje'!B14","v":15188736}]
[null,null,"DIČ:",{"$f":"'Identifikační údaje'!B10","v":"CZ45245053"}]
[]
["Uchazeč:",null,null,{"$f":"'Identifikační údaje'!E19","v":", ,  "}]
[null,null,"IČ:",{"$f":"'Identifikační údaje'!B23","v":0}]
[null,null,"DIČ:",{"$f":"'Identifikační údaje'!B24","v":0}]
[]
["Místo stavby:",null,null,{"$f":"'Identifikační údaje'!B3","v":"Budova Českého rozhlasu Brno na adrese Beethovenova 25/4, 657 42 Brno"}]
[]
["Datum:",null,null,{"$f":"'Identifikační údaje'!B5","v":"00:00:00"}]
[]
[{"$f":"CONCATENATE(\"REKAPITULACE DODÁVEK A PRACÍ OBJEKTU \",'Rekapitulace stavby'!I61)","v":"REKAPITULACE DODÁVEK A PRACÍ OBJEKTU SO 04 - Zdravotně technické instalace"}]
[]
["P.č.",null,"Ozn.","Název položky",null,null,null,null,"Kč bez DPH"]
[]
["Díl:",{"$f":"A68","v":1},null,{"$f":"C68","v":"Stavební úpravy"},null,null,null,null,{"$f":"I76","v":0}]
["Díl:",{"$f":"A80","v":2},null,{"$f":"C80","v":"Vnitřní kanalizace"},null,null,null,null,{"$f":"I130","v":0}]
["Díl:",{"$f":"A134","v":3},null,{"$f":"C134","v":"Vnitřní vodovod"},null,null,null,null,{"$f":"I213","v":0}]
["Díl:",{"$f":"A217","v":4},null,{"$f":"C217","v":"Zařizovací předměty"},null,null,null,null,{"$f":"I274","v":0}]
[]
[{"$f":"CONCATENATE(\"CELKEM ZA OBJEKT \",'Rekapitulace stavby'!I61, \" v Kč bez DPH\")","v":"CELKEM ZA OBJEKT SO 04 - Zdravotně technické instalace v Kč bez DPH"},null,null,null,null,null,null,null,{"$f":"SUM(I27:J30)","v":0}]
[]
[]
[]
["Poznámky:"]
["Při oceňování stavby je třeba se řídit také technickou zprávou a výkresovou dokumentací."]
["Standardy výrobků jsou uvedeny v položkách tohoto výkazu výměr a nejsou-li uvedeny zde, pak popisem nebo příkladem v technické zprávě. "]
["S ohledem na skutečnost, že II. etapa rekonstrukce navazuje na etapu I. jsou předepsané referenční výrobky v položce tohoto výkazu"]
["výměr závazné, neb stejné jsou již do objektu osazeny v předchozí etapě rekonstrukce."]
["Všechny položky zahrnují montáž."]
["Ostatní zemní práce jsou ve stavebním rozpočtu."]
[]
[]
[]
[]
[]
[]
[]
[]
[]
[]
[]
[]
[]
[]
[]
[]
[]
[]
[]
[]
[]
[]
[]
[]
[]
[1,null,"Stavební úpravy"]
["poř.č.",null,"popis položky",null,null,null,"MJ","množství","jedn.cena","celkem [Kč]"]
[1,null,"Sekání drážek šířky do 300 mm",null,null,null,"m",230,null,{"$f":"I70*H70","v":0}]
[{"$f":"A70+1","v":2},null,"Zaomítání drážek šíř.do 300mm vč. dodání materiálu",null,null,null,"m",230,null,{"$f":"I71*H71","v":0}]
[{"$f":"A71+1","v":3},null,"Vybourání prostupů stropem",null,null,null,"ks",70,null,{"$f":"I72*H72","v":0}]
[4,null,"Zapravení prostupů stropem",null,null,null,"ks",70,null,0]
[5,null,"Odvoz suti na skládku s naložením",null,null,null,"t",3,null,0]
[6,null,"Poplatek za skládku",null,null,null,"t",3,null,0]
[{"$f":"CONCATENATE(\"Celkem Kč bez DPH za \",A68,\" - \",C68)","v":"Celkem Kč bez DPH za 1 - Stavební úpravy"},null,null,null,null,null,null,null,{"$f":"SUM(J70:J75)","v":0}]
[]
[]
[]
[2,null,"Vnitřní kanalizace"]
["poř.č.",null,"popis položky",null,null,null,"MJ","množství","jedn.cena","celkem [Kč]"]
[{"$f":"A75+1","v":7},null,"Potrubí PP HT Ø 40",null,null,null,"m",2,null,{"$f":"I82*H82","v":0}]
[{"$f":"A82+1","v":8},null,"Potrubí PP HT Ø 50",null,null,null,"m",128,null,0]
[{"$f":"A83+1","v":9},null,"Potrubí PP HT Ø 75",null,null,null,"m",25,null,0]
[10,null,"Potrubí PP HT Ø 110",null,null,null,"m",97,null,0]
[11,null,"Potrubí PP HT Ø 125",null,null,null,"m",47,null,0]
[12,null,"Potrubí tlumicí hluk Ø 75",null,null,null,"m",8,null,0]
[13,null,"Potrubí tlumicí hluk Ø 110",null,null,null,"m",41,null,0]
[14,null,"Potrubí tlumicí hluk Ø 125",null,null,null,"m",12,null,0]
[15,null,"Svařované PE potrubí Ø 75",null,null,null,"m",39,null,0]
[16,null,"Hlukově optimalizované PP potrubí Ø 110",null,null,null,"m",38,null,0]
[17,null,"Hlukově optimalizované PP potrubí Ø 125",null,null,null,"m",58,null,0]
[18,null,"Potrubí PPR, PN 10 Ø 32",null,null,null,"m",23,null,0]
[19,null,"Ochrana potrubí Ø 32 plstí",null,null,null,"m",23,null,0]
[20,null,"Tepelná izolace tl. 20 mm Ø 125",null,null,null,"m",16,null,0]
[21,null,"Připoj.klimat.jednotek pomocí hadice s koncovkami",null,null,null,"Soub.",5,null,0]
[22,null,"Vyvedení a upevnění výpustek do Ø 40",null,null,null,"ks",35,null,0]
[23,null,"Vyvedení a upevnění výpustek do Ø 50",null,null,null,"ks",29,null,0]
[24,null,"Vyvedení a upevnění výpustek Ø 110",null,null,null,"ks",41,null,0]
[25,null,"Přivzdušňovací ventil podomítkový Ø 50",null,null,null,"ks",1,null,0]
[26,null,"Přivzdušňovací ventil Ø 50",null,null,null,"ks",1,null,0]
[27,null,"Plastová růžice Ø 110",null,null,null,"ks",3,null,0]
[28,null,"Plechová růžice Ø 125",null,null,null,"ks",2,null,0]
[29,null,"Oplechování větracího potrubí Ø 75",null,null,null,"Soub.",1,null,0]
[30,null,"Oplechování větracího potrubí Ø 125",null,null,null,"Soub.",1,null,0]
[31,null,"Podomítkový sifon s vodní a mech.zápach.uzávěrkou",null,null,null,"ks",2,null,0]
[32,null,"Vpust podlahová Ø 50 s vodní a mechanickou záp. uz.",null,null,null,"ks",6,null,0]
[33,null,"Střešní vtok se svislým odtokem Ø 125 a el. ohřevem",null,null,null,"ks",8,null,0]
[34,null,"Nástavec pro střešní vtok",null,null,null,"ks",8,null,0]
[35,null,"Ocelové konstrukce pro upevnění potrubí ",null,null,null,"Soub.",1,null,0]
[36,null,"Krycí dvířka 150 x 300 mm",null,null,null,"ks",4,null,0]
[37,null,"Krycí dvířka 300 x 300 mm",null,null,null,"ks",3,null,0]
[38,null,"Demontáž potrubí z litinových trub do DN 100",null,null,null,"m",141,null,0]
[39,null,"Demontáž potrubí z litinových trub DN 125",null,null,null,"m",120,null,0]
[40,null,"Demontáž potrubí z PVC do Ø 75",null,null,null,"m",132,null,0]
[41,null,"Demontáž potrubí z PVC Ø 110",null,null,null,"m",30,null,0]
[42,null,"Demontáž flexibilní trubky PPH Ø 110 vč. patk.kolena",null,null,null,"m",38,null,0]
[43,null,"Demontáž vpusti podlahové DN 100",null,null,null,"ks",8,null,0]
[44,null,"Napojení nového na stávající potrubí Ø 75",null,null,null,"Soub.",3,null,0]
[45,null,"Napojení nového na stávající potrubí Ø 110",null,null,null,"Soub.",3,null,0]
[46,null,"Napojení nového na stávající potrubí Ø 125",null,null,null,"Soub.",3,null,0]
[47,null,"Protipožární manžeta Ø 50",null,null,null,"ks",3,null,0]
[48,null,"Protipožární manžeta Ø 75",null,null,null,"ks",2,null,0]
[49,null,"Protipožární manžeta Ø 110",null,null,null,"ks",22,null,0]
[50,null,"Protipožární manžeta Ø 125",null,null,null,"ks",21,null,0]
[51,null,"Zkouška těsnosti kanalizace plynem",null,null,null,"m",518,null,0]
[52,null,"Odvoz demontovaného materiálu",null,null,null,"t",6.22,null,0]
[53,null,"Přesun hmot (do výšky 36 m)",null,null,null,"kpl",1,null,0]
[54,null,"Výpomoc HSV",null,null,null,"h",224,null,0]
[{"$f":"CONCATENATE(\"Celkem Kč bez DPH za \",A80,\" - \",C80)","v":"Celkem Kč bez DPH za 2 - Vnitřní kanalizace"},null,null,null,null,null,null,null,{"$f":"SUM(J82:J129)","v":0}]
[]
[]
[]
[3,null,"Vnitřní vodovod"]
["poř.č.",null,"popis položky",null,null,null,"jedn.","množství","jedn.cena","celkem [Kč]"]
[{"$f":"A129+1","v":55},null,"Potrubí PP typ 3, PN 20 Ø 16 x 2,7",null,null,null,"m",56,null,{"$f":"I136*H136","v":0}]
[{"$f":"A136+1","v":56},null,"Potrubí PP typ 3, PN 20 Ø 20 x 3,4",null,null,null,"m",251,null,0]
[{"$f":"A137+1","v":57},null,"Potrubí PP typ 3, PN 20 Ø 25 x 4,2",null,null,null,"m",106,null,0]
[58,null,"Potrubí PP typ 3, PN 20 Ø 32 x 5,4",null,null,null,"m",22,null,0]
[59,null,"Potrubí PP s hliníkovou vložkou Ø 20 x 2,8",null,null,null,"m",95,null,0]
[60,null,"Potrubí PP s hliníkovou vložkou Ø 25 x 3,5",null,null,null,"m",125,null,0]
[61,null,"Potrubí PP s hliníkovou vložkou Ø 32 x 4,5",null,null,null,"m",110,null,0]
[62,null,"Potrubí PP s hliníkovou vložkou Ø 40 x 5,6",null,null,null,"m",65,null,0]
[63,null,"Potrubí PP s hliníkovou vložkou Ø 50 x 6,9",null,null,null,"m",68,null,0]
[64,null,"Potrubí PP s hliníkovou vložkou Ø 63 x 8,7",null,null,null,"m",15,null,0]
[65,null,"Potrubí ocelové závitové pozinkované DN 25",null,null,null,"m",2,null,0]
[66,null,"Potrubí ocelové závitové pozinkované DN 32",null,null,null,"m",28,null,0]
[67,null,"Potrubí ocelové závitové pozinkované DN 50",null,null,null,"m",42,null,0]
[68,null,"Ochrana potrubí DN 25 plstí",null,null,null,"m",2,null,0]
[69,null,"Ochrana potrubí DN 32 plstí",null,null,null,"m",28,null,0]
[70,null,"Ochrana potrubí DN 50 plstí",null,null,null,"m",42,null,0]
[71,null,"Návleková izolace tl. 9 mm Ø 16",null,null,null,"m",56,null,0]
[72,null,"Návleková izolace tl. 9 mm Ø 20",null,null,null,"m",251,null,0]
[73,null,"Návleková izolace tl. 9 mm Ø 25",null,null,null,"m",106,null,0]
[74,null,"Návleková izolace tl. 9 mm Ø 32",null,null,null,"m",22,null,0]
[75,null,"Návleková izolace tl. 19 mm Ø 20",null,null,null,"m",95,null,0]
[76,null,"Návleková izolace tl. 19 mm Ø 25",null,null,null,"m",125,null,0]
[77,null,"Návleková izolace tl. 19 mm Ø 32",null,null,null,"m",110,null,0]
[78,null,"Návleková izolace tl. 19 mm Ø 40",null,null,null,"m",65,null,0]
[79,null,"Návleková izolace tl. 19 mm Ø 50",null,null,null,"m",68,null,0]
[80,null,"Návleková izolace tl. 19 mm Ø 63",null,null,null,"m",15,null,0]
[81,null,"Demontáž potrubí ocel. pozinkovaného do DN 25",null,null,null,"m",648,null,0]
[82,null,"Demont.potrubí ocel.pozinkovaného DN 32 a DN 40",null,null,null,"m",129,null,0]
[83,null,"Demontáž potrubí ocel. pozinkovaného DN 50",null,null,null,"m",23,null,0]
[84,null,"Demontáž potrubí ocel. pozinkovaného DN 80",null,null,null,"m",47,null,0]
[85,null,"Demontáž plstěných pásů z trubek do DN 25",null,null,null,"m",648,null,0]
[86,null,"Demontáž plstěných pásů z trubek DN 32 a DN 40",null,null,null,"m",129,null,0]
[87,null,"Demontáž plstěných pásů z trubek DN 50",null,null,null,"m",23,null,0]
[88,null,"Demontáž plstěných pásů z trubek DN 80",null,null,null,"m",47,null,0]
[89,null,"Demontáž armatur s jedním závitem DN 15",null,null,null,"ks",7,null,0]
[90,null,"Demontáž armatur se dvěma závity do Ø 3/4\"",null,null,null,"ks",47,null,0]
[91,null,"Demontáž armatur se dvěma závity Ø 1\"",null,null,null,"ks",10,null,0]
[92,null,"Demontáž armatur se dvěma závity Ø 6/4\"",null,null,null,"ks",4,null,0]
[93,null,"Demontáž hydrantu 52 C",null,null,null,"ks",12,null,0]
[94,null,"Demontáž cirkulačního čerpadla",null,null,null,"ks",1,null,0]
[95,null,"Napojení nového na stávající potrubí do Ø 32",null,null,null,"Soub.",13,null,0]
[96,null,"Napojení nového na stávající potrubí Ø 40 až 63",null,null,null,"Soub.",5,null,0]
[97,null,"Napojení nového na stávající potrubí DN 80",null,null,null,"Soub.",2,null,0]
[98,null,"Propojení stávajícího potrubí do Ø 32",null,null,null,"Soub.",2,null,0]
[99,null,"Vyvedení a upevnění výpustek DN 15",null,null,null,"ks",169,null,0]
[100,null,"Nástěnka DN 15",null,null,null,"ks",169,null,0]
[101,null,"Kulový kohout DN 15",null,null,null,"ks",14,null,0]
[102,null,"Kulový kohout DN 20",null,null,null,"ks",19,null,0]
[103,null,"Kulový kohout DN 25",null,null,null,"ks",10,null,0]
[104,null,"Kulový kohout DN 32",null,null,null,"ks",1,null,0]
[105,null,"Kulový kohout DN 40",null,null,null,"ks",2,null,0]
[106,null,"Kulový kohout DN 15 s odvodněním",null,null,null,"ks",1,null,0]
[107,null,"Kulový kohout DN 20 s odvodněním",null,null,null,"ks",5,null,0]
[108,null,"Regulační ventil termostatický DN 15",null,null,null,"ks",2,null,0]
[109,null,"Regulační ventil termostatický DN 20",null,null,null,"ks",1,null,0]
[110,null,"Mechanický šikmý filtr DN 20",null,null,null,"ks",5,null,0]
[111,null,"Zpětný ventil DN 20",null,null,null,"ks",5,null,0]
[112,null,"Ventil na hadici se zpět.a zavzduš.ventilem DN 15",null,null,null,"ks",1,null,0]
[113,null,"Vypouštěcí kohout kulový DN 15",null,null,null,"ks",3,null,0]
[114,null,"Protipožární pěna",null,null,null,"balení",5,null,0]
[115,null,"Cirkulační čerpadlo",null,null,null,"ks",1,null,0]
[116,null,"Úprava potrubí u cirkulačního čerpadla",null,null,null,"Soub.",1,null,0]
[117,null,"Vodoměr na studenou vodu DN 15",null,null,null,"ks",1,null,0]
[118,null,"Vodoměr na teplou vodu DN 15",null,null,null,"ks",1,null,0]
[119,null,"Dvířka krycí 300 x 300 mm",null,null,null,"ks",27,null,{"$f":"I200*H200","v":0}]
[120,null,"Hadicový systém s hadicí DN 19 bez skříňky",null,null,null,"ks",1,null,0]
[{"$f":"A201+1","v":121},null,"Hadicový systém s hadicí DN 25 bez skříňky",null,null,null,"ks",5,null,0]
[122,null,"Hadicový systém s hadicí DN 19, prosklená skříňka",null,null,null,"ks",3,null,0]
[123,null,"Hadicový systém s hadicí DN 25, prosklená skříňka",null,null,null,"ks",3,null,0]
[124,null,"Tlaková zkouška vodovodního potrubí",null,null,null,"m",985,null,0]
[125,null,"Proplach a desinfekce vodovodního potrubí",null,null,null,"m",985,null,0]
[126,null,"Odvoz demontovaného materiálu",null,null,null,"t",3.1,null,0]
[127,null,"Uzavř.nebo otevř.potr.při opr. vč. vypušť. a napušť.",null,null,null,"ks",20,null,0]
[128,null,"Přesun hmot (do výšky 36 m)",null,null,null,"kpl",1,null,0]
[129,null,"Výpomoc HSV",null,null,null,"h",224,null,0]
[130,null,"Ekvipotenciální propojení kovového potrubí (vodič)",null,null,null,"m",30,null,0]
[131,null,"Revize ekvipotenciálního propojení",null,null,null,"Soub.",1,null,0]
[{"$f":"CONCATENATE(\"Celkem Kč bez DPH za \",A134,\" - \",C134)","v":"Celkem Kč bez DPH za 3 - Vnitřní vodovod"},null,null,null,null,null,null,null,{"$f":"SUM(J136:J212)","v":0}]
[]
[]
[]
[4,null,"Zařizovací předměty"]
["poř.č.",null,"popis položky",null,null,null,"MJ","množství","jedn.cena","celkem [Kč]"]
[{"$f":"A212+1","v":132},null,"Záchodová mísa závěsná keramická bílá ",null,null,null,"ks",31,null,{"$f":"I219*H219","v":0}]
[{"$f":"A219+1","v":133},null,"Záchodové sedátko plastové bílé",null,null,null,"ks",31,null,0]
[{"$f":"A220+1","v":134},null,"Montážní prvek pro záchodovou mísu s integrov.nádržkou",null,null,null,"ks",31,null,0]
[135,null,"Ovládací tlačítko 3/6 l k montážnímu prvku",null,null,null,"ks",31,null,0]
[136,null,"Záchodová mísa závěs.keram.bílá pro těl.postižené ",null,null,null,"ks",5,null,0]
[137,null,"Záchodové sedátko plastové bílé",null,null,null,"ks",5,null,0]
[138,null,"Mont.prvek pro záchod.mísu pro těl.postiž.s nádržkou ",null,null,null,"ks",5,null,0]
[139,null,"Sada pro oddálené splachování",null,null,null,"ks",5,null,0]
[140,null,"Sklopné a pevné madlo",null,null,null,"Soub.",5,null,0]
[141,null,"Výlevka keramická závěsná bílá ",null,null,null,"ks",4,null,0]
[142,null,"Montážní prvek pro záchodovou mísu s integrov.nádržkou",null,null,null,"ks",4,null,0]
[143,null,"Ovládací tlačítko 6 l k montážnímu prvku",null,null,null,"ks",4,null,0]
[144,null,"Směš.baterie nástěnná pochrom.s dlouh.otoč.výtok.",null,null,null,"ks",6,null,0]
[145,null,"Výlevka keramická bílá stojící na podlaze",null,null,null,"ks",2,null,0]
[146,null,"Nádržkový splachovač vysoko položený",null,null,null,"ks",2,null,0]
[147,null,"Splachovací trubka komplet",null,null,null,"Soub.",2,null,0]
[148,null,"Napojovací tvarovka Ø 110",null,null,null,"ks",2,null,0]
[149,null,"Rohový ventil pochromovaný DN 15 s filtrem",null,null,null,"ks",113,null,0]
[150,null,"Umyvadlo keramické bílé s otvorem pro baterii JIKA CUBITO 85 cm (návaznost na předchozí instalace)",null,null,null,"ks",30,null,0]
[151,null,"Zápachová uzávěrka umyvadlová pochromovaná",null,null,null,"ks",30,null,0]
[152,null,"Směš.baterie jednopáková umyvadlov.jednootvorová NOVASERVIS UMYVADLOVÁ BATERIE S KOVOVOU VÝPUSTÍ OVAL CHROM (návaznost na předchozí instalace)",null,null,null,"ks",35,null,0]
[153,null,"Umývátko keramické bílé s otvorem pro baterii JIKA CUBITO 50 cm (návaznost na předchozí instalace)",null,null,null,"ks",1,null,0]
[154,null,"Umyvadlo keramické bílé pro tělesně postižené",null,null,null,"ks",4,null,0]
[155,null,"Svislé madlo k umyvadlu",null,null,null,"ks",5,null,0]
[156,null,"Zápachová uzávěrka umyvadlová podomítková",null,null,null,"ks",5,null,0]
[157,null,"Bidet keramický závěsný bílý",null,null,null,"ks",1,null,0]
[158,null,"Montážní prvek pro závěsný bidet",null,null,null,"ks",1,null,0]
[159,null,"Zápachová uzávěrka bidetová",null,null,null,"ks",1,null,0]
[160,null,"Směšovací baterie bidetová",null,null,null,"ks",1,null,0]
[161,null,"Souprava pro připoj.aut.pračky se záp.uz.a ventilem",null,null,null,"Soub.",1,null,0]
[162,null,"Pisoárová mísa keramická bílá",null,null,null,"ks",13,null,0]
[163,null,"Automat. elektronické splachovací zařízení pisoáru",null,null,null,"ks",13,null,0]
[164,null,"Zápachová uzávěrka pisoárová",null,null,null,"ks",13,null,0]
[165,null,"Zdroj (trafo) pro napájení automatických splachovačů",null,null,null,"ks",5,null,0]
[166,null,"Sprchová mísa ocelová smaltovaná bílá ",null,null,null,"ks",2,null,0]
[167,null,"Sprchová zástěna s posuvnými dveřmi",null,null,null,"Soub.",3,null,0]
[168,null,"Směšovací baterie sprchová jednopák. s ruč. sprchou",null,null,null,"ks",3,null,0]
[169,null,"Držák ruční sprchy",null,null,null,"ks",3,null,0]
[170,null,"Zápachová uzávěrka sprchová",null,null,null,"ks",2,null,0]
[171,null,"Směš. baterie jednopáková dřezová jednootvorová",null,null,null,"ks",13,null,0]
[172,null,"Zápachová uzávěrka dřezová plastová",null,null,null,"ks",12,null,0]
[173,null,"Zápachová uzávěrka dřezová plastová s odbočkou",null,null,null,"ks",1,null,0]
[174,null,"Demontáž záchodové mísy s vysok.pol.nádrží",null,null,null,"Soub.",29,null,0]
[175,null,"Demontáž pisoárové mísy",null,null,null,"Soub.",1,null,0]
[176,null,"Demontáž umyvadla",null,null,null,"Soub.",25,null,0]
[177,null,"Demontáž sprchového koutu",null,null,null,"Soub.",1,null,0]
[178,null,"Demontáž výlevky",null,null,null,"Soub.",3,null,0]
[179,null,"Demontáž dřezu",null,null,null,"Soub.",5,null,0]
[180,null,"Demontáž bidetu",null,null,null,"Soub.",1,null,0]
[181,null,"Demontáž vany",null,null,null,"Soub.",1,null,0]
[182,null,"Demontáž směšovací baterie",null,null,null,"Soub.",38,null,0]
[183,null,"Demontáž zápachové uzávěrky",null,null,null,"ks",33,null,0]
[184,null,"Odvoz demontovaného materiálu",null,null,null,"t",1.5,null,0]
[185,null,"Přesun hmot pro zař. předměty (do výšky 36 m)",null,null,null,"kpl",1,null,0]
[null,null,"Dřezy jsou součástí dodávky nábytku"]
[{"$f":"CONCATENATE(\"Celkem Kč bez DPH za \",A217,\" - \",C217)","v":"Celkem Kč bez DPH za 4 - Zařizovací předměty"},null,null,null,null,null,null,null,{"$f":"SUM(J219:J273)","v":0}]

{"sheet":"10_SO 12 - Stav arch část","index":14,"n_rows":155,"n_cols":36,"rows_kept":155,"cut":false,"hidden":false,"merged":[[24,3,24,6],[25,2,25,6],[53,2,53,3],[39,2,39,6],[42,2,42,3],[43,2,43,3],[44,2,44,3],[45,2,45,3],[46,2,46,3],[47,2,47,3],[48,2,48,3],[50,2,50,3],[51,2,51,3],[52,2,52,3],[68,2,68,3],[54,2,54,3],[55,2,55,3],[57,2,57,3],[58,2,58,3],[59,2,59,3],[60,2,60,3],[61,2,61,3],[62,2,62,3],[64,2,64,3],[65,2,65,3],[66,2,66,3],[128,2,128,3],[132,2,132,3],[118,2,118,3],[71,2,71,3],[74,2,74,3],[79,2,79,3],[80,2,80,3],[83,2,83,3],[84,2,84,3],[85,2,85,3],[87,2,87,3],[90,2,90,3],[113,2,113,3],[114,2,114,3]]}
[{"$f":"CONCATENATE('Rekapitulace stavby'!C63,\"_\",'Rekapitulace stavby'!I63)","v":"10_SO 12 - Stavebně - architektonická část"}]
[]
["SPECIFIKACE DODÁVEK A PRACÍ "]
["Název akce:"]
[{"$f":"'Identifikační údaje'!B1","v":"ČRo Brno – II. etapa rekonstrukce budovy Beethovenova 25/4"}]
[]
["Zadavatel:",null,{"$f":"'[2]Identifikační údaje'!E7","v":"Český rozhlas, Vinohradská 12, 120 99 Praha 2"}]
[null,"IČ:",{"$f":"'[2]Identifikační údaje'!B9","v":45245053}]
[null,"DIČ:",{"$f":"'[2]Identifikační údaje'!B10","v":"CZ45245053"}]
[]
["Projektant:",null,{"$f":"'[2]Identifikační údaje'!E12","v":"Ing. arch. Klement Miloš, Nejedlého 381/19, 638 00 Brno - Lesná"}]
[null,"IČ:",{"$f":"'[2]Identifikační údaje'!B14","v":15188736}]
[null,"DIČ:",{"$f":"'[2]Identifikační údaje'!B15","v":"CZ6101021344"}]
[]
["Uchazeč:",null,{"$f":"'[2]Identifikační údaje'!E19","v":"Tomáš, Sedláčkova, 21700 Praha"}]
[null,"IČ:",{"$f":"'[2]Identifikační údaje'!B23","v":1312345}]
[null,"DIČ:",{"$f":"'[2]Identifikační údaje'!B24","v":"CZ12312345"}]
[]
["Místo stavby:",null,{"$f":"'[2]Identifikační údaje'!B3","v":"Budova Českého rozhlasu Brno na adrese Beethovenova 25/4, 657 42 Brno"}]
[]
["Datum vyplnění:",null,{"$f":"'[2]Identifikační údaje'!B5","v":"2018-03-12"}]
[]
[{"$f":"CONCATENATE(\"REKAPITULACE DODÁVEK A PRACÍ OBJEKTU \",'Rekapitulace stavby'!I63)","v":"REKAPITULACE DODÁVEK A PRACÍ OBJEKTU SO 12 - Stavebně - architektonická část"}]
[]
["P.č.","Číslo položky","Název položky","Kč bez DPH"]
[null,"Ceník, kapitola"]
["Díl:",{"$f":"B41","v":1},{"$f":"C41","v":"Stavební práce navazující na rekonstrukcí systému ÚT"},null,null,null,{"$f":"G41","v":0}]
["Díl:",{"$f":"B94","v":2},{"$f":"C94","v":"Stavební práce navazující na rekonstrukcí silnoproudé části elektro"},null,null,null,{"$f":"G94","v":0}]
["Díl:",{"$f":"B134","v":3},{"$f":"C134","v":"Stavební práce navazující na první etapu"},null,null,null,{"$f":"G134","v":0}]
["Díl:",{"$f":"B147","v":4},{"$f":"C147","v":"Dočasné stavební práce a konstrukce"},null,null,null,{"$f":"G147","v":0}]
[]
[{"$f":"CONCATENATE(\"CELKEM ZA OBJEKT \",'Rekapitulace stavby'!I63, \" v Kč bez DPH\")","v":"CELKEM ZA OBJEKT SO 12 - Stavebně - architektonická část v Kč bez DPH"},null,null,null,null,null,{"$f":"SUM(G27:G31)","v":0}]
[]
[]
[]
[]
[]
[]
["P.č.","Číslo položky","Název položky","MJ","množství","cena / MJ","celkem"]
[null,"Ceník, kapitola","Poznámka uchazeče"]
["Díl:",1,"Stavební práce navazující na rekonstrukcí systému ÚT",null,null,null,{"$f":"SUBTOTAL(9,G42:G93)","v":0},null,null,null,null,null,null,null,null,null,null,null,null,null,null,null,null,null,null,null,null,"POL",null,null,null,null,null,null,null,21]
[1,"73001   pol.3","Protipožární utěsnění stupaček ÚT","ks",{"$f":"SUM(E43:E49)","v":7},null,{"$f":"E42*F42","v":0}]
[null,null,"přízemí:4",null,4]
[null,null,"mezipatro:3",null,3]
[null,null,"1.patro:0"]
[null,null,"2.patro:0"]
[null,null,"3.patro:0"]
[null,null,"4.patro:0"]
[null,null,"5.patro:0"]
[{"$f":"A42+1","v":2},"73001   pol.4","Akustické utěsnění stupaček tvrdou minerální vatou","ks",{"$f":"SUM(E51:E56)","v":29},null,{"$f":"E50*F50","v":0}]
[null,null,"přízemí:10",null,10]
[null,null,"mezipatro:6",null,6]
[null,null,"1.patro:9",null,9]
[null,null,"2.patro:4",null,4]
[null,null,"3.patro:5"]
[null,null,"4.patro:4"]
[{"$f":"A50+1","v":3},"73001   pol.5","Zapravení svislé drážky po rozvodech ÚT","m2",{"$f":"SUM(E58:E63)","v":25.98},null,{"$f":"E57*F57","v":0}]
[null,null,"přízemí:0,20*3,55*10",null,7.1]
[null,null,"mezipatro:0,20*3,70*8",null,5.92]
[null,null,"1.patro:0,20*3,00*9",null,5.4]
[null,null,"2.patro:0,20*3,00*4",null,2.4]
[null,null,"3.patro:0,20*2,80*5",null,2.8]
[null,null,"4.patro:0,20*2,95*4",null,2.36]
[{"$f":"A57+1","v":4},"73001   pol.8","Stupačky ÚT budou opláštěny SDK obkladem vč.akustického utěsnění prostupu stropem","m2",{"$f":"SUM(E65:E78)","v":85.61},null,{"$f":"E64*F64","v":0}]
[null,null,"přízemí:"]
[null,null,"mezipatro:(0,15+0,39)*3,70+(0,15+0,73)*3,70",null,3.3]
[null,null,"1.patro:(0,20+0,32)*3,00+(0,20+0,817)*3,00+(0,20+0,574)*3,00",null,6.93]
[null,null,"(0,20+0,325)*3,00+(0,20+0,533)*3,00+(0,20+0,865)*3,00+(0,20+1,20)*3,00",null,11.18]
[null,null,"2.patro:(0,20+0,32)*3,00+(0,20+0,67)*3,00+(0,20+0,325)*3,00",null,5.75]
[null,null,"(0,20+0,39)*3,00+(0,20+0,635)*3,00+(0,20+0,80)*3,00",null,7.28]
[null,null,"(0,20+0,82)*3,00",null,3.06]
[null,null,"3.patro:(0,20+0,32)*2,80+(0,20+0,543)*2,80+(0,20+0,43)*2,80",null,5.26]
[null,null,"(0,20+0,67)*2,80+(0,20+0,44)*2,80+(0,20+0,53)*2,80+(0,20+0,43)*2,80",null,8.0299999999999994]
[null,null,"(0,20+0,59)*2,80+(0,20+0,50)*2,80+(0,20+0,87)*2,80",null,7.17]
[null,null,"4.patro:(0,20+0,32)*2,95+(0,20+1,05+0,20)*2,95",null,5.81]
[null,null,"(0,20+1,05+0,20)*2,95+(0,20+0,545)*2,95+(0,20+0,57)*2,95",null,8.75]
[null,null,"(0,20+0,635)*2,95+(0,20+0,76)*2,95+(0,20+0,45)*2,95",null,7.21]
[null,null,"(0,20+0,45)*2,95+(0,20+0,30)*2,95+(0,20+0,64)*2,95",null,5.88]
[{"$f":"A64+1","v":5},"73002   ","Zateplení za radiátory - minerální vata tl.50 mm opláštěná SDK","m2",{"$f":"SUM(E80:E89)","v":147.37000000000003},null,{"$f":"E79*F79","v":0}]
[null,null,"přízemí:"]
[null,null,"mezipatro:2,82*0,85+2,745*0,85+2,70*0,85+2,625*0,90*2",null,11.75]
[null,null,"2,745*0,84*2+4,05*0,90+4,175*0,80+3,15*0,60+1,63*0,70",null,14.63]
[null,null,"4,90*0,60+1,50*0,60+2,73*0,60+3,15*0,60",null,7.37]
[null,null,"1.patro:0"]
[null,null,"2.patro:2,75*0,84*11+2,65*0,84*3+1,175*0,84*2+4,125*0,84",null,37.53]
[null,null,"3.patro:2,75*0,88*5+2,75*0,84*5+0,60*0,95",null,24.22]
[null,null,"4,11*0,85+1,20*0,87*2+4,13*0,87+2,70*0,87*2",null,13.87]
[null,null,"4.patro:2,75*0,90+2,75*0,89*10+3,975*0,87",null,30.42]
[null,null,"2,65*0,83+1,175*0,83*2+4,125*0,83",null,7.58]
[{"$f":"A79+1","v":6},"73003   ","Zateplení niky pěnosklem tl.30mm","m2",1.26,null,{"$f":"E90*F90","v":0}]
[null,null,"přízemí:(0,20+1,10+0,20)*0,84",null,1.26]
[{"$f":"A90+1","v":7},"73004   ","Zasekaní potrubí ÚT v 5.np","kpl.",1,null,{"$f":"E92*F92","v":0}]
[]
["Díl:",2,"Stavební práce navazující na rekonstrukcí silnoproudé části elektro",null,null,null,{"$f":"SUBTOTAL(9,G95:G133)","v":0}]
[{"$f":"A92+1","v":8},"M2101","Vybourání stropních otvorů pro silnoproudé rozvody v instalační šachtě na celý půdorysný profil instalační šachty.","ks",12,null,{"$f":"E95*F95","v":0}]
[{"$f":"A95+1","v":9},"M2102","Opláštění vnitřního povrchu nik pro rozvaděče protipožárním sádrokartonem","m2",{"$f":"SUM(E97:E103)","v":31.569999999999997},null,{"$f":"E96*F96","v":0}]
[null,null,"přízemí:(2*0,45+0,90)*3,50",null,6.3]
[null,null,"mezipatro:(2*0,30+0,90)*3,70",null,5.55]
[null,null,"1.patro:(2*0,30+0,845)*2,95",null,4.28]
[null,null,"2.patro:(2*0,30+0,895)*2,95",null,3.54]
[null,null,"3.patro:(2*0,30+0,65)*2,80",null,3.5]
[null,null,"4.patro:(2*0,30+0,895)*2,80",null,4.2]
[null,null,"5.patro:(2*0,30+0,895)*2,80",null,4.2]
[{"$f":"A96+1","v":10},"M2103","SDK předstěna včetně konstrukce před rozvaděči na hlavním schodišti. Požární odolnost SDK předstěny posusovaná v kopletu s revizními dvířky - viz. položka níže, je EI 30.","m2",{"$f":"SUM(E105:E111)","v":35.699999999999989},null,{"$f":"E104*F104","v":0}]
[null,null,"přízemí:(2*0,2+1)*5,1",null,{"$f":"(2*0.2+1)*5.1","v":7.1399999999999988}]
[null,null,"mezipatro:(2*0,2+1)*3,4",null,{"$f":"(2*0.2+1)*3.4","v":4.76}]
[null,null,"1.patro:(2*0,2+1)*3,4",null,{"$f":"(2*0.2+1)*3.4","v":4.76}]
[null,null,"2.patro:(2*0,2+1)*3,4",null,4.76]
[null,null,"3.patro:(2*0,2+1)*3,4",null,4.76]
[null,null,"4.patro:(2*0,2+1)*3,4",null,4.76]
[null,null,"5.patro:(2*0,2+1)*3,4",null,4.76]
[{"$f":"A104+1","v":11},"M2103","Otevíravá revizní dvířka velikosti 800 x 800 EI 30 kouřotěsná (S200) pro osazení do SDK předstěny.","ks",7,null,{"$f":"E112*F112","v":0}]
[{"$f":"A112+1","v":12},"631 32-0024.RAB","Mazanina vyztužená sítí, beton C 12/15, tl. 15 cm vyztužená sítí - drát 6,0 oka 100/100 mm","m2",6.69,null,{"$f":"E113*F113","v":0}]
[null,null,";zvednutí podlahy",null,0]
[null,null,"1,50*2,975+1,35*1,65",null,6.69]
[{"$f":"A113+1","v":13},"76601","Úprave dveří zvednutím ","ks",1,null,{"$f":"E116*F116","v":0}]
[{"$f":"A116+1","v":14},"76602     Zn/10","Dvířka SDK EW30 DP1 š.850 mm  D+M ","ks",1,null,{"$f":"E117*F117","v":0}]
[{"$f":"A117+1","v":15},"631 31-002","Mazanina z betonu C 12/15, tloušťka 0-15 cm nová vyrovnávací rampa","m2",1.125,null,{"$f":"E118*F118","v":0}]
[null,null,"0,90*1,25",null,1.125]
[{"$f":"A118+1","v":16},"971 10-0","Vybourání otvorů ve zdivu cihelném 100/300 mm , vč.odvozu suti a poplatku","ks",1,null,{"$f":"E120*F120","v":0}]
[{"$f":"A120+1","v":17},null,"Provedení požární ucpávky otvoru 100/300 mm s průchozími instalacemi ","ks",1,null,0]
[18,"971 10-1","Vybourání otvorů ve stropu 100/100 mm , vč.požární ucpávky, vč.odvozu suti a poplatku","ks",1,null,0]
[19,null,"Provedení požární ucpávky otvoru 100/100 mm s průchozími instalacemi ","ks",1,null,0]
[20,"63102","Rošt kabelový šířky 2 x 300 mm vč. kotevních prvků pro uchycení na stěnu","m",4.6349999999999998,null,0]
[21,"63102","Vybourání otvoru 800 x 250 mm do betonové zdi tl. 450 mm a jeho následné zednické začištění včetně sražení hran tak, aby nebyly poškozeny elektroinstalační kabely.","ks",1,null,0]
[22,"63102","Vybourání elektroinstalačního kanálu v suterénu. Profil vybourané betononové mazaniny podlahy kryté teraco dlažbou je 600 x 250 dle výkresu D.1.1.B.9.","m",7.6349999999999998,null,0]
[23,"63102","Zednické zapravení elektroinstalačního kanálu v suterénu do pravoúhlého profilu v řezu, finálně zapravený povrch kanálu bude natřen polyuretanovým nátěrem na beton. Profil elektrokanálu je 600 x 250. Vše dle výkresu D.1.1.B.9.","m",7.6349999999999998,null,0]
[24,"63102","Zámečnicky provedený kanál rozvodu elektro 450/150 mm  D+M s překrytím splzičkovým nerez plechem tl. 8 mm do rámu z L profilů dle výkresu D.1.1.B.9.","m",7.6349999999999998,null,0]
[null,null,"2,975+4,66",null,7.6349999999999998]
[{"$f":"A128+1","v":25},"63103","Kastlík z SDK  EI 60 DP1  D+M","m",3.5,null,{"$f":"E130*F130","v":0}]
[]
[{"$f":"A130+1","v":26},"771 55-001","Dlažba z dlaždic teracových 30 x 30 cm vč.soklíku  D+M, pokládaná na nerez slzičkový plech","m2",7.359,null,{"$f":"E132*F132","v":0}]
[null,null,"6,69*1,10",null,7.359]
["Díl:",3,"Stavební práce navazující na první etapu",null,null,null,{"$f":"SUBTOTAL(9,G135:G146)","v":0}]
[{"$f":"A132+1","v":27},null,"Úprava požárního schodiště vč.doplnění bočnic dle výkresu D.1.1.d.10","kpl",1,null,{"$f":"E135*F135","v":0}]
[{"$f":"A135+1","v":28},null,"Zasekání stávajícího trezoru na klíče od branky za únikovým schodištěm do betonové opěrné stěny dvora. Klíčový trezor má rozměry 300 x 300 x 250 mm. Součástí položky je i začištění stěny po osazení klíčového trezoru a úprava stávající kabeláže.","kpl",1,null,{"$f":"E136*F136","v":0}]
[{"$f":"A136+1","v":29},"ZN 26a","Schody do chodby za trezor - materiál schodnice – poporost, podkonstrukce – 4ks U profil 100 dl. 1200 kotvené do zdi 2x chemická kotva pr. 10 mm. Povrchová úprava pozink","kpl",1,null,{"$f":"E137*F137","v":0}]
[29,null,"Nátěr fasády do ulice Beethovenova na úrovni 5. patra budovy. Nátěru bude předcházet očištění stávající fasády. Nátěr bude vzorkován a výsledný barevný odstín musí být schválen objednatelem. Součástí položky je i příplatek za práce prováděné ve výškách.","m2",52,null,{"$f":"E138*F138","v":0}]
[30,null,"Doplnění druhých dveří na vstup do studia S8 vysílacího komplexu v přízemí budovy. Doplněny budou plné dřevěné dveře, povrch dýha americký javor v odstínu stávajících dveří Sapeli. Neprůzvučnost dveří je předepsána na 38 dB, součástí položky je i dodávka a montáž obložkových zárubní stejného povrchu.  ","ks",1,null,{"$f":"E139*F139","v":0}]
[31,null,"Demontáž a opětovná montáž stávajících dveří Sapeli včetně obložkové zárubně na vstupu do studia S8 vysílacího komplexu v přízemí budovy. Dveře budou montovány do mírně posunuté pozice.","ks",1,null,0]
[32,null,"Truhlářská úprava akustického obkladu studia S8 spočívající v demontáži obkladu lemujícího stávající dřevěné dveře, jeho rozměrová úprava a opětovná montáž do upravené pozice navazující na doplněné druhé dveře. ","m2",6,null,0]
[33,null,"Akustické utěsnění mezery zdvojené podlahy chodby studiového komplexu v přízemí. Do dutiny bude celoplošně na celou výšku 70 mm doplněna minerální vata objemové hmotnosti 60 kg/m3. Součástí položky je i roznoměrné rozprostření kabelových svazků tak, aby bylo možné rovnoměrně rozmístit minerální vatu. ","m2",14,null,0]
[34,null,"Demontáž a opětovná montáž zdvojené podlahy Kingspan s deskami celoobvodově krytými plechem. Součástí položky je i následné vyrovnání podlahy tak, aby neklapala.","m2",14,null,0]
[35,null,"Demontáž a opětovná pokládka kobercových čtverců lepených na lepidlo non pernament kryjící zdvojenou podlahu Kingspan s deskami celoobvodově krytými plechem. ","m2",17,null,0]
[36,null,"Provedení izolovaného podlahového stupně v machineroomu studiového komplexu přízemí budovy o rozměrech 1200 x 700 x 300 mm, včetně kovové konstrukce. Povrch stupně bude proveden z 2x natírané desky CETRIS. Celý objem stupně bude vyplněn minerální vatou o objemové hmotnosti 60 kg/m3. Dodávka a montáž.","ks",1,null,0]
[]
["Díl:",4,"Dočasné stavební práce a konstrukce",null,null,null,{"$f":"SUBTOTAL(9,G148:G160)","v":0}]
[{"$f":"A145+1","v":37},null,"SDK stavební předěly jednostranně opláštěnou SDK příčkou z desky bílé, netmelené, s konstrukcí rozepřenou (nelze kotvit do podlahy). Předěly zajišťují protiprašné oddělení staveniště od prostoru, kde probíhá provoz ČRo Brno.","m2",190.85,null,{"$f":"E148*F148","v":0}]
[{"$f":"A148+1","v":38},null,"Dočasné stavební dveře ve stavebních předělech minimálního rozměru 800 x 1970 mm.","ks",16,null,{"$f":"E149*F149","v":0}]
[{"$f":"A149+1","v":39},null,"Vyklizení prostoru vrátnice (3 x stůl, 1 šatní skříň, 4x skřín policová, 2x nástěnka) stěhování mezi provizorní vrátnicí v hale a prostorem vrátnice","kpl",2,null,{"$f":"E150*F150","v":0}]
[]
[]
[]
[]
[null,null,null,null,null,null,null,null,null,null,null,null,null,null,null,null,null," "]

{"sheet":"11_SO 12 - Silnoproud","index":15,"n_rows":121,"n_cols":9,"rows_kept":121,"cut":false,"hidden":false,"merged":[[26,1,26,2],[26,3,26,4],[26,5,26,6],[26,7,26,8],[4,0,4,8],[24,1,24,2],[24,3,24,4],[24,5,24,6],[24,7,24,8],[27,1,27,2],[27,3,27,4],[27,5,27,6],[27,7,27,8],[28,1,28,2],[28,3,28,4],[28,5,28,6],[28,7,28,8],[29,1,29,2],[29,3,29,4],[29,5,29,6],[29,7,29,8],[30,1,30,2],[30,3,30,4],[30,5,30,6],[30,7,30,8],[32,7,32,8],[35,0,35,8],[38,5,38,6],[38,7,38,8],[40,5,40,6],[40,7,40,8],[114,5,114,6],[114,7,114,8],[50,5,50,6],[50,7,50,8],[94,5,94,6],[94,7,94,8],[99,5,99,6],[99,7,99,8]]}
[{"$f":"CONCATENATE('Rekapitulace stavby'!C64,\"_\",'Rekapitulace stavby'!I64)","v":"11_SO 12 - Silnoproudá elektroinstalace "}]
[]
["SPECIFIKACE DODÁVEK A PRACÍ "]
["Název akce:"]
[{"$f":"'Identifikační údaje'!B1","v":"ČRo Brno – II. etapa rekonstrukce budovy Beethovenova 25/4"}]
[]
["Zadavatel:",null,{"$f":"'Identifikační údaje'!B7","v":"Český rozhlas"}]
[null,"IČ:",{"$f":"'Identifikační údaje'!B9","v":45245053}]
[null,"DIČ:",{"$f":"'Identifikační údaje'!B10","v":"CZ45245053"}]
[]
["Projektant:",null,{"$f":"'Identifikační údaje'!B12","v":"Ing. arch. Klement Miloš"}]
[null,"IČ:",{"$f":"'Identifikační údaje'!B9","v":45245053}]
[null,"DIČ:",{"$f":"'Identifikační údaje'!B15","v":"CZ6101021344"}]
[]
["Uchazeč:",null,{"$f":"'Identifikační údaje'!B19","v":0}]
[null,"IČ:",{"$f":"'Identifikační údaje'!B23","v":0}]
[null,"DIČ:",{"$f":"'Identifikační údaje'!B24","v":0}]
[]
["Místo stavby:",null,{"$f":"'Identifikační údaje'!B3","v":"Budova Českého rozhlasu Brno na adrese Beethovenova 25/4, 657 42 Brno"}]
[]
["Datum:",null,{"$f":"'Identifikační údaje'!B5","v":"00:00:00"}]
[]
[{"$f":"CONCATENATE(\"REKAPITULACE DODÁVEK A PRACÍ OBJEKTU \",A1)","v":"REKAPITULACE DODÁVEK A PRACÍ OBJEKTU 11_SO 12 - Silnoproudá elektroinstalace "}]
[]
["P.č.","Ozn.",null,"Materiál celkem",null,"Montáž celkem",null,"M+M celkem"]
[]
[{"$f":"B41","v":"A."},{"$f":"C41","v":"Instalační, úložný a ochranný materiál"},null,{"$f":"F41","v":0},null,{"$f":"H41","v":0},null,{"$f":"D27+F27","v":0}]
[{"$f":"B51","v":"B."},{"$f":"C51","v":"Kabely a vodiče"},null,{"$f":"F51","v":0},null,{"$f":"H51","v":0},null,0]
[{"$f":"B95","v":"C."},{"$f":"C95","v":"Pospojování, uzemnění"},null,{"$f":"F95","v":0},null,{"$f":"H95","v":0},null,0]
[{"$f":"B100","v":"D."},{"$f":"C100","v":"Rozvaděče"},null,{"$f":"F100","v":0},null,{"$f":"H100","v":0},null,0]
[{"$f":"B115","v":"E."},{"$f":"C115","v":"Ostatní"},null,{"$f":"F115","v":0},null,{"$f":"H115","v":0},null,0]
[]
[{"$f":"CONCATENATE(\"CELKEM ZA OBJEKT \",'Rekapitulace stavby'!I64, \" v Kč bez DPH\")","v":"CELKEM ZA OBJEKT SO 12 - Silnoproudá elektroinstalace  v Kč bez DPH"},null,null,null,null,null,null,{"$f":"SUBTOTAL(9,H27:I31)","v":0}]
[]
[]
["Textová, výkresová i tabulková část projektové dokumentace tvoří jeden vzájemně se doplňující a provázaný celek. Jednotliví účastníci výběrového řízení se musí seznámit s projektojektovou dokumentací v návaznosti na soupis prací a na základě těchto informací části díla nacenit. Dále je potřeba při stanovení ceny dle vykázané výměry započítat všechny předpokládané doplňkové prvky a činnosti s touto položkou související tak, aby cena byla kompletní a prvek funkční."]
[]
[{"$f":"A1","v":"11_SO 12 - Silnoproudá elektroinstalace "}]
[null,null,null,null,null,"Materiál",null,"Montáž"]
["poř.č.","položka","popis položky","MJ","množství","jedn.cena","celkem [Kč]","jedn.cena","celkem [Kč]"]
[null,"A.","Instalační, úložný a ochranný materiál",null,null,{"$f":"SUBTOTAL(9,G42:G49)","v":0},null,{"$f":"SUBTOTAL(9,I41:I49)","v":0}]
[null,null," (komplet, včetně příslušenství, pomocného materiálu, výkopu, záhozu výkopu, vytyčení trasy, osazení, zapojení, vyzkoušení apod.)"]
[1,null,"Kabelová lávka 60x300 do stoupačky, komplet včetně příslušenství","m",25,null,{"$f":"E43*F43","v":0},null,{"$f":"E43*H43","v":0}]
[{"$f":"A43+1","v":2},null,"Kabelový drátový žlab 200x100 včetně příslušenství a závěsů","m",25,null,0,null,0]
[{"$f":"A44+1","v":3},null,"Protipožární ucpávka pro průchod kabelů stěnou nebo stropem, požární odolnost dle požadavku specialisty PO, materiál: var.- požárně ochranná malta, var.-minerální vlna + desky z minerální vlny + požárně ochranná stěrková hmota, var.- protipožární polštáře ","m2",0.5,null,0,null,0]
[4,null,"Podlahový kanál pro uložení do betonu OBO Bettermann 350x38","m",4.5,null,0,null,0]
[5,null,"Podlahový kanál pro kabely s funkční schopností uložení do betonu OBO Bettermann 190x28","m",4.5,null,0,null,0]
[6,null,"Kabelová lávka 60x150 s funkční schopností při požáru P60-R do stoupačky, komplet včetně příslušenství","m",25,null,0,null,0]
[7,null,"Kabelový drátový žlab 100x100 s funkční schopností při požáru P60R včetně příslušenství a závěsů","m",30,null,0,null,0]
[]
[null,"B.","Kabely a vodiče",null,null,{"$f":"SUBTOTAL(9,G52:G93)","v":0},null,{"$f":"SUBTOTAL(9,I51:I93)","v":0}]
[null,null,"(komplet, včetně vyhotovení drážky, zapravení drážky, vytyčení trasy, pomocného materiálu, příchytek, spojek, odlehčovacích oblouků, zapojení, vyzkoušení apod.)"]
[{"$f":"A49+1","v":8},null,"Přívod pro patrový rozvaděč RM1 CYKY-J 5x16","m",55,null,{"$f":"E53*F53","v":0},null,{"$f":"E53*H53","v":0}]
[{"$f":"A53+1","v":9},null,"Rezerva pro patrový rozvaděč RM1 CYKY-J 5x6 diesel","m",55,null,0,null,0]
[10,null,"Rezerva pro patrový rozvaděč RM1 CYKY-J 5x6 UPS","m",55,null,0,null,0]
[11,null,"Přívod pro patrový rozvaděč RM1.1 trafo CYKY-J 5x6","m",70,null,0,null,0]
[12,null,"Přívod pro patrový rozvaděč RM1.1 diesel CYKY-J 5x6","m",70,null,0,null,0]
[13,null,"Přívod pro patrový rozvaděč RM1.1 UPS CYKY-J 5x6","m",70,null,0,null,0]
[14,null,"Přívod pro patrový rozvaděč RM1.2 trafo CYKY-J 5x6","m",65,null,0,null,0]
[15,null,"Přívod pro patrový rozvaděč RM1.2 diesel CYKY-J 5x6","m",65,null,0,null,0]
[16,null,"Přívod pro patrový rozvaděč RM1.2 UPS CYKY-J 5x6","m",65,null,0,null,0]
[17,null,"Přívod pro patrový rozvaděč R11 trafo přeložení (výměna)","m",55,null,0,null,0]
[18,null,"Přívod pro patrový rozvaděč R11 diesel přeložení (výměna)","m",55,null,0,null,0]
[19,null,"Přívod pro patrový rozvaděč R21 CYKY-J 5x16","m",65,null,0,null,0]
[20,null,"Rezerva pro patrový rozvaděč R21 CYKY-J 5x6 diesel","m",65,null,0,null,0]
[21,null,"Rezerva pro patrový rozvaděč R21 CYKY-J 5x6 UPS","m",65,null,0,null,0]
[22,null,"Přívod pro  rozvaděč server RS2 trafo CYKY-J 5x6","m",75,null,0,null,0]
[23,null,"Přívod pro  rozvaděč server RS2 diesel CYKY-J 5x10","m",75,null,0,null,0]
[24,null,"Rezerva pro  rozvaděč server RS2 CYKY-J 5x10 UPS","m",75,null,0,null,0]
[25,null,"Přívod pro patrový rozvaděč R31 CYKY-J 5x25","m",65,null,0,null,0]
[26,null,"Rezerva pro patrový rozvaděč R31 CYKY-J 5x6 diesel","m",65,null,0,null,0]
[27,null,"Rezerva pro patrový rozvaděč R31 CYKY-J 5x6 UPS","m",65,null,0,null,0]
[28,null,"Přívod pro patrový rozvaděč R41 CYKY-J 5x25","m",70,null,0,null,0]
[29,null,"Rezerva pro patrový rozvaděč R41 CYKY-J 5x6 diesel","m",70,null,0,null,0]
[30,null,"Rezerva pro patrový rozvaděč R41 CYKY-J 5x6 UPS","m",70,null,0,null,0]
[31,null,"Přívod pro patrový rozvaděč R51 CYKY-J 5x16","m",65,null,0,null,0]
[32,null,"Rezerva pro patrový rozvaděč R51 CYKY-J 5x6 diesel","m",65,null,0,null,0]
[33,null,"Rezerva pro patrový rozvaděč R51 CYKY-J 5x6 UPS","m",65,null,0,null,0]
[34,null,"Přívod pro rozvaděč O2 přeložení (výměna)","m",70,null,0,null,0]
[35,null,"Provizorní napojení stávající RV1 v 6np CYKY-J 5x4","m",30,null,0,null,0]
[36,null,"Provizorní napojení stávající RM1 CYKY-J 5x6","m",10,null,0,null,0]
[37,null,"Provizorní napojení stávající R21 CYKY-J 5x10","m",10,null,0,null,0]
[38,null,"Provizorní napojení stávající R31 CYKY-J 5x10","m",25,null,0,null,0]
[39,null,"Provizorní napojení stávající R41 CYKY-J 5x10","m",10,null,0,null,0]
[40,null,"Provizorní napojení stávající R42 CYKY-J 5x10","m",20,null,0,null,0]
[41,null,"Provizorní napojení stávající R51CYKY-J 5x10","m",10,null,0,null,0]
[42,null,"Přívod pro technologii machineroom diesel CYKY-J 5x6","m",70,null,0,null,0]
[43,null,"Přívod pro technologii machineroom UPS CYKY-J 5x6","m",70,null,0,null,0]
[44,null,"Přívod pro technologii machineroom trafo CYKY-J 5x6","m",70,null,0,null,0]
[45,null,"Přívod pro technologii studio UPS CYKY-J 5x6","m",150,null,{"$f":"E90*F90","v":0},null,{"$f":"E90*H90","v":0}]
[{"$f":"A90+1","v":46},null,"Příprava pro termostat z VS do 5NP JYTY-O 3x1","m",150,null,0,null,0]
[47,null,"JE-Y(ST)Y 4x2x0.8 signalizace výpadku jističe do NO","m",250,null,0,null,0]
[48,null,"Rozvody pro NO kabel s funkční schopností P60R -O 3x1,5","m",600,null,0,null,0]
[]
[null,"C.","Pospojování, uzemnění",null,null,{"$f":"SUBTOTAL(9,G96:G98)","v":0},null,{"$f":"SUBTOTAL(9,I95:I98)","v":0}]
[null,null,"(komplet, včetně příslušenství, svorek, pomocného materiálu, osazení, zapojení, vyzkoušení apod.) "]
[{"$f":"A93+1","v":49},null,"Vodič CYA25 žlutozelený včetně svorek - hlavní pospojení","m",100,null,{"$f":"E97*F97","v":0},null,{"$f":"E97*H97","v":0}]
[{"$f":"A97+1","v":50},null,"Vodič CYA16 žlutozelený včetně svorek - hlavní pospojení","m",10,null,0,null,0]
[]
[null,"D.","Rozvaděče",null,null,{"$f":"SUBTOTAL(9,G101:G113)","v":0},null,{"$f":"SUBTOTAL(9,I100:I113)","v":0}]
[null,null,"(komplet, včetně příslušenství, svorek, pomocného materiálu, osazení, zapojení, vyzkoušení apod.) "]
[{"$f":"A98+1","v":51},null,"Úpravy v rozvaděči RE","ks",1,null,{"$f":"E102*F102","v":0},null,{"$f":"E102*H102","v":0}]
[{"$f":"A102+1","v":52},null,"Úpravy hlavní rozvaděč RH","ks",1,null,0,null,0]
[53,null,"Úpravy hlavní rozvaděče UPS","ks",1,null,0,null,0]
[54,null,"Patrový rozvaděč RM1","ks",1,null,0,null,0]
[55,null,"Patrový rozvaděč RM1.1","ks",1,null,0,null,0]
[56,null,"Patrový rozvaděč RM1.2","ks",1,null,0,null,0]
[57,null,"Patrový rozvaděč R21","ks",1,null,0,null,0]
[58,null,"Patrový rozvaděč R31","ks",1,null,0,null,0]
[59,null,"Patrový rozvaděč R41","ks",1,null,0,null,0]
[60,null,"Patrový rozvaděč R51","ks",1,null,0,null,0]
[61,null,"Přepojení stávající rozvaděč server RS2","ks",1,null,0,null,0]
[62,null,"Úpravy stávající CBS Inotec","ks",1,null,0,null,0]
[]
[null,"E.","Ostatní",null,null,{"$f":"SUBTOTAL(9,G116:G121)","v":0},null,{"$f":"SUBTOTAL(9,I115:I121)","v":0}]
[{"$f":"A113+1","v":63},null,"Výchozí revize","hod",30,null,{"$f":"E116*F116","v":0},null,{"$f":"E116*H116","v":0}]
[{"$f":"A116+1","v":64},null,"Demontáže včetně likvidace odpadu","hod",50,null,0,null,0]
[65,null,"Stavební přípomoce ","kpl",1," ---"," ---",null,0]
[{"$f":"A118+1","v":66},null,"Pomocný a podružný materiál upevňovací","kpl",1,null,0,null,0]
[67,null,"Zednické výpomoci (PPV)","kpl",1," ---"," ---",null,0]
[68,null,"Doprava materiálu","kpl",1," ---"," ---",null,0]

{"sheet":"12_SO 12 - ÚT","index":16,"n_rows":107,"n_cols":9,"rows_kept":107,"cut":false,"hidden":false,"merged":[[26,1,26,2],[26,3,26,4],[26,5,26,6],[26,7,26,8],[4,0,4,8],[24,1,24,2],[24,3,24,4],[24,5,24,6],[24,7,24,8],[27,1,27,2],[27,3,27,4],[27,5,27,6],[27,7,27,8],[29,1,29,2],[29,3,29,4],[29,5,29,6],[29,7,29,8],[28,3,28,4],[28,5,28,6],[28,7,28,8],[106,0,106,8],[96,5,96,6],[96,7,96,8],[31,7,31,8],[34,0,34,8],[37,5,37,6],[37,7,37,8],[39,5,39,6],[39,7,39,8],[56,5,56,6],[56,7,56,8],[70,5,70,6],[70,7,70,8]]}
[{"$f":"CONCATENATE('Rekapitulace stavby'!C65,\"_\",'Rekapitulace stavby'!I65)","v":"12_SO 12 - Ústřední vytápění"}]
[]
["SPECIFIKACE DODÁVEK A PRACÍ "]
["Název akce:"]
[{"$f":"'Identifikační údaje'!B1","v":"ČRo Brno – II. etapa rekonstrukce budovy Beethovenova 25/4"}]
[]
["Zadavatel:",null,{"$f":"'Identifikační údaje'!E7","v":"Český rozhlas, Vinohradská 12, 120 99 Praha 2"}]
[null,"IČ:",{"$f":"'Identifikační údaje'!B9","v":45245053}]
[null,"DIČ:",{"$f":"'Identifikační údaje'!B10","v":"CZ45245053"}]
[]
["Projektant:",null,{"$f":"'Identifikační údaje'!E12","v":"Ing. arch. Klement Miloš, Nejedlého 381/19, 638 00 Brno - Lesná"}]
[null,"IČ:",{"$f":"'Identifikační údaje'!B14","v":15188736}]
[null,"DIČ:",{"$f":"'Identifikační údaje'!B15","v":"CZ6101021344"}]
[]
["Uchazeč:",null,{"$f":"'Identifikační údaje'!E19","v":", ,  "}]
[null,"IČ:",{"$f":"'Identifikační údaje'!B23","v":0}]
[null,"DIČ:",{"$f":"'Identifikační údaje'!B24","v":0}]
[]
["Místo stavby:",null,{"$f":"'Identifikační údaje'!B3","v":"Budova Českého rozhlasu Brno na adrese Beethovenova 25/4, 657 42 Brno"}]
[]
["Datum:",null,{"$f":"'Identifikační údaje'!B5","v":"00:00:00"}]
[]
[{"$f":"CONCATENATE(\"REKAPITULACE DODÁVEK A PRACÍ OBJEKTU \",'Rekapitulace stavby'!I65)","v":"REKAPITULACE DODÁVEK A PRACÍ OBJEKTU SO 12 - Ústřední vytápění"}]
[]
["P.č.","Ozn.",null,"Materiál celkem",null,"Montáž celkem",null,"M+M celkem"]
[]
[{"$f":"B40","v":"A."},{"$f":"C40","v":"ZAŘÍZENÍ A ARMATURY"},null,{"$f":"F40","v":0},null,{"$f":"H40","v":0},null,{"$f":"D27+F27","v":0}]
[{"$f":"B57","v":"B."},{"$f":"C57","v":"POTRUBÍ"},null,{"$f":"F57","v":0},null,{"$f":"H57","v":0},null,{"$f":"D28+F28","v":0}]
[{"$f":"B71","v":"C."},{"$f":"C71","v":"TĚLESA"},null,{"$f":"F71","v":0},null,{"$f":"H71","v":0},null,{"$f":"D29+F29","v":0}]
[{"$f":"B97","v":"D."},{"$f":"C97","v":"OSTATNÍ"},null,{"$f":"F97","v":0},null,{"$f":"H97","v":0},null,0]
[]
[{"$f":"CONCATENATE(\"CELKEM ZA OBJEKT \",'Rekapitulace stavby'!I65, \" v Kč bez DPH\")","v":"CELKEM ZA OBJEKT SO 12 - Ústřední vytápění v Kč bez DPH"},null,null,null,null,null,null,{"$f":"SUBTOTAL(9,H27:I30)","v":0}]
[]
[]
["Textová, výkresová i tabulková část projektové dokumentace tvoří jeden vzájemně se doplňující a provázaný celek. Jednotliví účastníci výběrového řízení se musí seznámit s projektojektovou dokumentací v návaznosti na soupis prací a na základě těchto informací části díla nacenit. Dále je potřeba při stanovení ceny dle vykázané výměry započítat všechny předpokládané doplňkové prvky a činnosti s touto položkou související tak, aby cena byla kompletní a prvek funkční."]
[]
[{"$f":"A1","v":"12_SO 12 - Ústřední vytápění"}]
[null,null,null,null,null,"Materiál",null,"Montáž"]
["poř.č.","položka","popis položky","MJ","množství","jedn.cena","celkem [Kč]","jedn.cena","celkem [Kč]"]
[null,"A.","ZAŘÍZENÍ A ARMATURY",null,null,{"$f":"SUBTOTAL(9,G41:G56)","v":0},null,{"$f":"SUBTOTAL(9,I41:I56)","v":0}]
[1,null,"Oběhové teplovodní čerpadlo montované do potrubí typ KSB Calio S 15/40 ( 230V/23W )","kpl",4,null,{"$f":"E41*F41","v":0},null,{"$f":"E41*H41","v":0}]
[{"$f":"A41+1","v":2},null,"Trojcestná směšovací armatura komplet včetně regulátoru,  servopohonu, čidel a kabeláže  Dn 15, kv = 0,6 m3/h ","kpl",3,null,{"$f":"E42*F42","v":0},null,{"$f":"E42*H42","v":0}]
[3,null,"Trojcestná směšovací armatura komplet včetně regulátoru,  servopohonu, čidel a kabeláže  Dn 15, kv = 1,0 m3/h ","kpl",1,null,0,null,{"$f":"E43*H43","v":0}]
[4,null,"Automatický vyvažovací ventil kazetový K 38 x typ K 380.15.F 360101","kpl",3,null,0,null,{"$f":"E44*H44","v":0}]
[5,null,"Automatický vyvažovací ventil kazetový K 38 x typ K 380.20.F 360108","kpl",1,null,0,null,{"$f":"E45*H45","v":0}]
[6,null,"Kohout uzavírací závitový kulový Dn 15","kpl",8,null,{"$f":"E46*F46","v":0},null,{"$f":"E46*H46","v":0}]
[7,null,"Ruční regulační ventil Dn 10","kpl",4,null,0,null,0]
[8,null,"Zpětná klapka závitová do potrubí EURA Dn 10","kpl",4,null,0,null,0]
[9,null,"Kohout vypouštěcí a napouštěcí kulový Dn 10","kpl",12,null,0,null,0]
[10,null,"Automatický odvzdušňovač MINIVAL Dn 10","kpl",10,null,0,null,0]
[11,null,"Šroubení závitové přímé, uzavírací Dn 10","kpl",52,null,0,null,0]
[12,null,"Šroubení závitové přímé neuzavírací Dn 15","kpl",98,null,0,null,0]
[13,null,"Termoregulační ventil HEIMEIER s hlavicí  termoregulace Dn 10","kpl",52,null,0,null,0]
[14,null,"Termoregulační ventil HEIMEIER s hlavicí  termoregulace Dn 15","kpl",98,null,0,null,0]
[15,null,"Hlavice termoregulačního ovládání HEIMEIER","kpl",7,null,0,null,0]
[]
[null,"B.","POTRUBÍ",null,null,{"$f":"SUBTOTAL(9,G58:G69)","v":0},null,{"$f":"SUBTOTAL(9,I57:I69)","v":0}]
[{"$f":"A55+1","v":16},null,"Potrubí z trubek ocelových bezešvých nízkotlakých závitových Dn 10 ( 3/8\" )","m",295,null,{"$f":"E58*F58","v":0},null,{"$f":"E58*H58","v":0}]
[{"$f":"A58+1","v":17},null,"Potrubí z trubek ocelových bezešvých nízkotlakých závitových Dn 15 ( 1/2\" )","m",590,null,{"$f":"E59*F59","v":0},null,{"$f":"E59*H59","v":0}]
[{"$f":"A59+1","v":18},null,"Potrubí z trubek ocelových bezešvých nízkotlakých závitových Dn 20 ( 3/4“ )","m",245,null,0,null,0]
[19,null,"Potrubí z trubek ocelových bezešvých nízkotlakých závitových Dn 25  ( 1“ )","m",255,null,0,null,0]
[20,null,"Potrubí z trubek ocelových bezešvých nízkotlakých závitových Dn 32  ( 5/4“ )","m",105,null,0,null,0]
[21,null,"Potrubí z trubek měděných přesných, včetně příslušných tvarovek a přechodových kusů rozm. 15 x 1","m",65,null,0,null,0]
[22,null,"Potrubí z trubek měděných přesných, včetně příslušných tvarovek a přechodových kusů rozm. 18 x 1","m",45,null,0,null,0]
[23,null,"Potrubí z trubek měděných přesných, včetně příslušných tvarovek a přechodových kusů rozm. 22 x 1","m",14,null,0,null,0]
[24,null,"Potrubí z trubek měděných přesných, včetně příslušných tvarovek a přechodových kusů rozm. 28 x 1,5","m",6,null,0,null,0]
[25,null,"Přechodový kus měď ocel  15x1/dn10","ks",36,null,{"$f":"E67*F67","v":0},null,{"$f":"E67*H67","v":0}]
[26,null,"Přechodový kus měď ocel  28 x 1,5/dn 25","ks",2,null,0,null,0]
[27,null,"Svorkové šroubení na měděné trubky 15 x 1","ks",16,null,0,null,0]
[]
[null,"C.","TĚLESA",null,null,{"$f":"SUBTOTAL(9,G72:G96)","v":0},null,{"$f":"SUBTOTAL(9,I71:I96)","v":0}]
[{"$f":"A69+1","v":28},null,"Otopná tělesa litinová článková   -  stávající. Tělesa budou demontována včetně podpůrných konzol, vyčištěna, nově natřena a znovu namontována v souladu s projektovou dokumentací na nově osazené konzoly.","kpl",81,null,{"$f":"E72*F72","v":0},null,{"$f":"E72*H72","v":0}]
[{"$f":"A72+1","v":29},null,"Otopná tělesa litinová KALOR K3 - nová ","kpl",11,null,{"$f":"E73*F73","v":0},null,0]
[30,null,"Litinová tělesa KALOR  - stávající s úpravou  (předpokládaný počet článků  rozm. 350/160 - 101 článků )","kpl",12,null,0,null,0]
[31,null,"Litinová tělesa KALOR  - stávající s úpravou  (předpokládaný počet článků  rozm. 500/160 - 5 článků )","kpl",1,null,0,null,0]
[32,null,"Koupelnové trubkové těleso KORALUX LINEAR MAX  rozm. KLM 1820/600","kpl",2,null,0,null,0]
[33,null,"Otopná tělesa ocelová desková RADIK VK komplet, včetně připojovací armatury VEKOLUX rozm. 21/600/600 VK","kpl",2,null,0,null,0]
[34,null,"Otopná tělesa ocelová desková RADIK VK komplet, včetně připojovací armatury VEKOLUX rozm. 22/600/1200 VK","kpl",1,null,{"$f":"E78*F78","v":0},null,0]
[35,null,"Otopná tělesa ocelová desková RADIK VK komplet, včetně připojovací armatury VEKOLUX rozm. 22/600/1400 VK","kpl",3,null,0,null,0]
[36,null,"Otopná tělesa ocelová desková RADIK VK komplet, včetně připojovací armatury VEKOLUX rozm. 21/900/600 VK","kpl",1,null,0,null,0]
[37,null,"Otopná tělesa ocelová desková RADIK VK komplet, včetně připojovací armatury VEKOLUX rozm. 22/900/1100 VK","kpl",1,null,0,null,0]
[{"$f":"A81+1","v":38},null,"Otopná tělesa ocelová desková RADIK klasik komplet včetně upevňovacích prvků rozm. 10/600/600","kpl",11,null,0,null,0]
[39,null,"Otopná tělesa ocelová desková RADIK klasik komplet včetně upevňovacích prvků rozm. 10/600/700","kpl",2,null,0,null,0]
[40,null,"Otopná tělesa ocelová desková RADIK klasik komplet včetně upevňovacích prvků rozm. 10/600/900","kpl",1,null,0,null,0]
[41,null,"Otopná tělesa ocelová desková RADIK klasik komplet včetně upevňovacích prvků rozm. 10/900/700","kpl",1,null,0,null,0]
[42,null,"Otopná tělesa ocelová desková RADIK klasik komplet včetně upevňovacích prvků rozm. 21/600/500","kpl",1,null,0,null,0]
[43,null,"Otopná tělesa ocelová desková RADIK klasik komplet včetně upevňovacích prvků rozm. 21/600/600","kpl",4,null,0,null,0]
[44,null,"Otopná tělesa ocelová desková RADIK klasik komplet včetně upevňovacích prvků rozm. 21/600/700","kpl",2,null,0,null,0]
[45,null,"podlahový konvektor FOX Silent N-110 PV218 - dl. 3.500 mm komplet včetně krycí mřížky","kpl",16,null,0,null,0]
[46,null,"Montážní, kotevní, těsnící a jiný materiál","kpl",1,null,{"$f":"E90*F90","v":0},null,0]
[47,null,"Tepelná izolace měděného potrubí návleková ( veškeré potrubí kromě přípojek je tepelně izolováno )","kpl",1,null,0,null,0]
[48,null,"Tepelná izolace ocelového potrubí minerální plstí tl. dle dimenze potrubí, s povrchovou úpravou FLEXIPAN nebo jinou vhodnou","kpl",1,null,0,null,0]
[49,null,"Ocelové prvky  -  L profil 50 x 50 x 5","m",10,null,0,null,0]
[50,null,"Ocelové prvky  -  tyč průměru 10 mm","m",10,null,0,null,0]
[51,null,"Nátěry ocelového potrubí a konstrukcí 1x základní a 2x vrchní nátěr","kpl",1,null,0,null,0]
[]
[null,"D.","OSTATNÍ",null,null,{"$f":"SUBTOTAL(9,G98:G131)","v":0},null,{"$f":"SUBTOTAL(9,I97:I131)","v":0}]
[{"$f":"A95+1","v":52},null,"HZS  vypuštění systému","hod",48," ---"," ---",null,{"$f":"E98*H98","v":0}]
[53,null,"HZS  demontáž stávajícího nepotřebného potrubí včetně zajištění jeho likvidace v souladu s platnou legislativou na území ČR. Součástí položky je i související doprava.","hod",85," ---"," ---",null,0]
[54,null,"HZS propláchnutí systému, napuštění systému upravenou vodou","hod",48," ---"," ---",null,0]
[55,null,"HZS topná zkoužka","hod",72," ---"," ---",null,0]
[56,null,"HZS seřízení a přezkoušení systému","hod",60," ---"," ---",null,0]
[57,null,"Protipožární ucpávky","kpl",1,null,{"$f":"E103*F103","v":0},null,0]
[58,null,"Stavební výpomoci, drážky, prostupy","hod",55," ---"," ---",null,0]
[]
[]
["V souladu se zákonem o veřejných zakázkách č. 137/2006 Sb. bylo ve vyjímečných a nezbytných případech pro dostatečně přesný a srozumitelný popis použito odkazu na typový výrobek. Ten je možné dle tohoto zákona nahradit kvalitativně a technicky obdobným řešením. Uvedené odkazy na typový výrobek v této dokumentaci slouží pouze pro specifikaci technických parametrů a jejich kvalitativního standardu."]

{"sheet":"13_SO 12 - EPS","index":17,"n_rows":97,"n_cols":9,"rows_kept":97,"cut":false,"hidden":false,"merged":[[26,1,26,2],[26,3,26,4],[26,5,26,6],[26,7,26,8],[4,0,4,8],[24,1,24,2],[24,3,24,4],[24,5,24,6],[24,7,24,8],[34,0,34,8],[27,1,27,2],[27,3,27,4],[27,5,27,6],[27,7,27,8],[28,1,28,2],[28,3,28,4],[28,5,28,6],[28,7,28,8],[29,1,29,2],[29,3,29,4],[29,5,29,6],[29,7,29,8],[31,7,31,8],[79,5,79,6],[79,7,79,8],[90,5,90,6],[90,7,90,8],[37,5,37,6],[37,7,37,8],[39,5,39,6],[39,7,39,8],[63,5,63,6],[63,7,63,8]]}
[{"$f":"CONCATENATE('Rekapitulace stavby'!C66,\"_\",'Rekapitulace stavby'!I66)","v":"13_SO 12 - EPS"}]
[]
["SPECIFIKACE DODÁVEK A PRACÍ "]
["Název akce:"]
[{"$f":"'Identifikační údaje'!B1","v":"ČRo Brno – II. etapa rekonstrukce budovy Beethovenova 25/4"}]
[]
["Zadavatel:",null,{"$f":"'Identifikační údaje'!B7","v":"Český rozhlas"}]
[null,"IČ:",{"$f":"'Identifikační údaje'!B9","v":45245053}]
[null,"DIČ:",{"$f":"'Identifikační údaje'!B10","v":"CZ45245053"}]
[]
["Projektant:",null,{"$f":"'Identifikační údaje'!B12","v":"Ing. arch. Klement Miloš"}]
[null,"IČ:",{"$f":"'Identifikační údaje'!B9","v":45245053}]
[null,"DIČ:",{"$f":"'Identifikační údaje'!B15","v":"CZ6101021344"}]
[]
["Uchazeč:",null,{"$f":"'Identifikační údaje'!B19","v":0}]
[null,"IČ:",{"$f":"'Identifikační údaje'!B23","v":0}]
[null,"DIČ:",{"$f":"'Identifikační údaje'!B24","v":0}]
[]
["Místo stavby:",null,{"$f":"'Identifikační údaje'!B3","v":"Budova Českého rozhlasu Brno na adrese Beethovenova 25/4, 657 42 Brno"}]
[]
["Datum:",null,{"$f":"'Identifikační údaje'!B5","v":"00:00:00"}]
[]
[{"$f":"CONCATENATE(\"REKAPITULACE DODÁVEK A PRACÍ OBJEKTU \",'Rekapitulace stavby'!I66)","v":"REKAPITULACE DODÁVEK A PRACÍ OBJEKTU SO 12 - EPS"}]
[]
["P.č.","Ozn.",null,"Materiál celkem",null,"Montáž celkem",null,"M+M celkem"]
[]
[{"$f":"B40","v":"A."},{"$f":"C40","v":"Dodávka zařízení"},null,{"$f":"F40","v":0},null,{"$f":"H40","v":0},null,{"$f":"D27+F27","v":0}]
[{"$f":"B64","v":"B."},{"$f":"C64","v":"Nosný materiál"},null,{"$f":"F64","v":0},null,{"$f":"H64","v":0},null,0]
[{"$f":"B80","v":"C."},{"$f":"C80","v":"C 22 M - zařízení"},null," ---",null,{"$f":"H80","v":0},null,{"$f":"F29","v":0}]
[{"$f":"B91","v":"D."},{"$f":"C91","v":"C 22 M - rozvody"},null," ---",null,{"$f":"H91","v":0},null,{"$f":"F30","v":0}]
[]
[{"$f":"CONCATENATE(\"CELKEM ZA OBJEKT \",'Rekapitulace stavby'!I66, \" v Kč bez DPH\")","v":"CELKEM ZA OBJEKT SO 12 - EPS v Kč bez DPH"},null,null,null,null,null,null,{"$f":"SUBTOTAL(9,H27:I30)","v":0}]
[]
[]
["Textová, výkresová i tabulková část projektové dokumentace tvoří jeden vzájemně se doplňující a provázaný celek. Jednotliví účastníci výběrového řízení se musí seznámit s projektojektovou dokumentací v návaznosti na soupis prací a na základě těchto informací části díla nacenit. Dále je potřeba při stanovení ceny dle vykázané výměry započítat všechny předpokládané doplňkové prvky a činnosti s touto položkou související tak, aby cena byla kompletní a prvek funkční."]
[]
[{"$f":"A1","v":"13_SO 12 - EPS"}]
[null,null,null,null,null,"Materiál",null,"Montáž"]
["poř.č.","položka","popis položky","MJ","množství","jedn.cena","celkem [Kč]","jedn.cena","celkem [Kč]"]
[null,"A.","Dodávka zařízení",null,null,{"$f":"SUBTOTAL(9,G41:G62)","v":0},null,{"$f":"SUBTOTAL(9,I40:I62)","v":0}]
[null,"Automatické hlásiče a příslušenství"]
[1,"MTD 533X","multisenzorový hlásič MTD 533X","ks",42,null,{"$f":"E42*F42","v":0},null,{"$f":"E42*H42","v":0}]
[{"$f":"A42+1","v":2},"USB 501-6","sokl USB 501-6, bez loop kontaktu","ks",42,null,0,null,0]
[{"$f":"A43+1","v":3},"S USB 501","popisný štítek pro USB501","ks",42,null,0,null,0]
[null,"Manuální tlačítkový hlásič"]
[{"$f":"A44+1","v":4},"MCP545X-1R","tlačítkový hlásič MCP545X-1R - červený, IP24","ks",16,null,0,null,0]
[{"$f":"A46+1","v":5},"MCP535 AK","štítek se symbolem pro MCP535","ks",16,null,0,null,0]
[null,"Moduly na kruhovou linku"]
[{"$f":"A47+1","v":6},"BX-OI3","v/v modul BX-OI3, vč. zkrat. izolátoru","ks",4,null,0,null,0]
[{"$f":"A49+1","v":7},"BX-IM4","vstupní modul BX-IM4, vč. zkrat. izolátoru","ks",4,null,0,null,0]
[{"$f":"A50+1","v":8},"GEH MOD IP66","krabice pro moduly IP66, 94x94x57 mm","ks",8,null,0,null,0]
[9,"MM ANB M16","šroubovací průchodka M16","ks",16,null,0,null,0]
[10,"MM GM M16","kontramatka  PG16","ks",16,null,0,null,0]
[null,"Optické a akustické signalizační zařízení"]
[{"$f":"A53+1","v":11},"VTB-32E-DB-RB/AL","kombinované siréna/maják, červená, IP65","ks",1,null,0,null,0]
[{"$f":"A55+1","v":12},"BL V4 RT","maják V4 červeny","ks",1,null,0,null,0]
[{"$f":"A56+1","v":13},"CS200-SV/R","siréna CS 200 červená, 32 tónů, IP 21c","ks",3,null,0,null,0]
[null,"Ostatní"]
[{"$f":"A57+1","v":14},"PRUEFGAS","láhev zkušebního plynu 918/5 ","ks",1,null,0,null,0]
[15,null,"obslužné pole požární ochrany ","ks",1,null,0,null,0]
[16,null,"klíčový trezor MOT provedení (vč. motýlkového zámku - č. HZS)","ks",1,null,0,null,0]
[17,null,"Obslužné pole požární ochrany - OPPO","ks",1,null,0,null,0]
[]
[null,"B.","Nosný materiál",null,null,{"$f":"SUBTOTAL(9,G65:G78)","v":0},null,{"$f":"SUBTOTAL(9,I64:I78)","v":0}]
[{"$f":"A62+1","v":18},null,"Elektroinstal. PVC trubka ohebná 16mm","m",60,null,{"$f":"E65*F65","v":0},null,{"$f":"E65*H65","v":0}]
[{"$f":"A65+1","v":19},null,"Elektroinstal. PVC trubka ohebná 29mm","m",40,null,0,null,0]
[20,null,"Kabel 1x2x0,8  třída reakce na oheň B2(ca)s1d0, funkční odolnost při požáru, P90-R - pevně uložen","m",425,null,0,null,0]
[21,null,"Kabel 2x2x0,8  třída reakce na oheň B2(ca)s1d0, funkční odolnost při požáru, P90-R - pevně uložen, pod omítkou","m",13,null,0,null,0]
[22,null,"Kabel 5x2x0,8  třída reakce na oheň B2(ca)s1d0, funkční odolnost při požáru, P90-R - pevně uložen","m",13,null,0,null,0]
[23,null,"Kabel 2x1,5  třída reakce na oheň B2(ca)s1d0, funkční odolnost při požáru P60-R - pevně uložen, pod omítkou","m",80,null,0,null,0]
[24,null,"Kabel 2x1,5  třída reakce na oheň B2(ca)s1d0, funkční odolnost při požáru P90-R - pevně uložen, pod omítkou","m",12,null,0,null,0]
[25,null,"Krabice univers. KU68/2 vč. víčka","ks",24,null,0,null,0]
[26,null,"Elektroinstlační rozvodná krabice s funkční odolností při požáru se zachováním integrity kabelové trasy P90-R","ks",6,null,0,null,0]
[27,null,"Požární příchytka kabelů jednotranná (kabel Ø8mm)","ks",1529.8771676300578,null,0,null,0]
[28,null,"Požární příchytka kabelů jednotranná (kabel Ø10mm)","ks",93,null,0,null,0]
[29,null,"Požární příchytka kabelů jednotranná (kabel Ø14mm)","ks",296.1904761904762,null,0,null,0]
[30,null,"Šroub do betonu","ks",1919,null,0,null,0]
[31,null,"Podružný materiál","kpl",1,null,0,null,0]
[]
[null,"C.","C 22 M - zařízení",null,null,null,null,{"$f":"SUBTOTAL(9,I80:I89)","v":0}]
[{"$f":"A78+1","v":32},220111436,"Kontrolní zavěrečné měření na kabelu","vod",116," ---"," ---",null,{"$f":"E81*H81","v":0}]
[{"$f":"A81+1","v":33},220260106,"Vyhledání vývodu nebo krabice","ks",24," ---"," ---",null,0]
[34,220260111,"Odv. a zavičk. krab. s víčkem na závit","ks",24," ---"," ---",null,0]
[35,220300001,"Forma kabelova do 5x2","ks",116," ---"," ---",null,0]
[36,220330741,"Revize EPS","ks",1," ---"," ---",null,0]
[37,"odb.odhad","Přeprogramování stávající ústředny","hod",6," ---"," ---",null,0]
[38,"odb.odhad","Vytvoření grafických obrazovek, napojení na stávající  SW vč. oživení SW s technologií, předání funkčního SW uživateli","dat.body",58," ---"," ---",null,0]
[39,"odb.odhad","Zaškolení obsluhy","hod",5," ---"," ---",null,0]
[40,"odb. odhad","Demontáž a ekologická likvidace stávajících požárních hlásičů","hod",10," ---"," ---",null,0]
[]
[null,"D.","C 22 M - rozvody",null,null,null,null,{"$f":"SUBTOTAL(9,I91:I97)","v":0}]
[{"$f":"A89+1","v":41},220261622,"Osazení hmoždinky 8mm v cihl. zdivu","ks",1919," ---"," ---",null,{"$f":"E92*H92","v":0}]
[{"$f":"A92+1","v":42},220261661,"Značení trasy vedení","m",543," ---"," ---",null,0]
[43,22011346,"Štítek kabelový","ks",58," ---"," ---",null,0]
[44,"odb. odhah.","Demontáž stávající kabeláže a hlásičů vč. ekol. likvidace","hod",10," ---"," ---",null,0]
[45,null,"Montáž požární kabelové ucpávky vč. materiálu, do 30mm","ks",10," ---"," ---",null,0]
[46,null,"Montáž požární kabelové ucpávky vč. materiálu, do 100mm","ks",4," ---"," ---",null,0]

{"sheet":"14 - VRN","index":18,"n_rows":51,"n_cols":51,"rows_kept":51,"cut":false,"hidden":false,"merged":[[31,0,31,4],[46,2,46,6],[50,5,50,8],[50,0,50,4],[38,2,38,6],[39,5,39,6],[41,2,41,6],[43,2,43,6],[44,5,44,6],[31,5,31,8],[29,7,29,8],[28,5,28,6],[29,5,29,6],[29,2,29,4],[28,2,28,4],[5,0,5,6],[26,2,26,6],[26,7,26,8],[27,4,27,8],[28,7,28,8]]}
[]
[{"$f":"CONCATENATE('Rekapitulace stavby'!C68,\" - \",'Rekapitulace stavby'!I68)","v":"14 - Vedlejší a ostatní náklady stavby"}]
[]
["SOUPIS VEDLEJŠÍCH A OSTATNÍCH NÁKLADŮ STAVBY"]
["Název akce:"]
[{"$f":"'Identifikační údaje'!B1","v":"ČRo Brno – II. etapa rekonstrukce budovy Beethovenova 25/4"}]
[]
["Zadavatel:",null,{"$f":"'Identifikační údaje'!E7","v":"Český rozhlas, Vinohradská 12, 120 99 Praha 2"}]
[null,"IČ:",{"$f":"'Identifikační údaje'!B9","v":45245053}]
[null,"DIČ:",{"$f":"'Identifikační údaje'!B10","v":"CZ45245053"}]
[]
["Projektant:",null,{"$f":"'Identifikační údaje'!E12","v":"Ing. arch. Klement Miloš, Nejedlého 381/19, 638 00 Brno - Lesná"}]
[null,"IČ:",{"$f":"'Identifikační údaje'!B14","v":15188736}]
[null,"DIČ:",{"$f":"'Identifikační údaje'!B15","v":"CZ6101021344"}]
[]
["Uchazeč:",null,{"$f":"'Identifikační údaje'!E19","v":", ,  "}]
[null,"IČ:",{"$f":"'Identifikační údaje'!B23","v":0}]
[null,"DIČ:",{"$f":"'Identifikační údaje'!B24","v":0}]
[]
["Místo stavby:",null,{"$f":"'Identifikační údaje'!B3","v":"Budova Českého rozhlasu Brno na adrese Beethovenova 25/4, 657 42 Brno"}]
[]
["Datum:",null,{"$f":"'Identifikační údaje'!B5","v":"00:00:00"}]
[]
[]
[{"$f":"CONCATENATE(\"REKAPITULACE OBJEKTU \",'Rekapitulace stavby'!C68,\" - \",'Rekapitulace stavby'!I68)","v":"REKAPITULACE OBJEKTU 14 - Vedlejší a ostatní náklady stavby"}]
[]
["P.č.","Ozn.","Název položky",null,null,null,null,"Kč bez DPH"]
[]
["Díl:",{"$f":"B40","v":"VN"},{"$f":"C40","v":"Vedlejší náklady"},null,null,{"$f":"F40","v":0},null,{"$f":"H136","v":0}]
["Díl:",{"$f":"B45","v":"ON"},{"$f":"C45","v":"Ostatní náklady"},null,null,{"$f":"F45","v":0},null,{"$f":"H145","v":0}]
[]
[{"$f":"CONCATENATE(\"CELKEM ZA OBJEKT \",A2, \" v Kč bez DPH\")","v":"CELKEM ZA OBJEKT 14 - Vedlejší a ostatní náklady stavby v Kč bez DPH"},null,null,null,null,{"$f":"SUM(F29:G30)","v":0}]
[]
[]
[]
[]
[]
["P.č.","Číslo položky","Název položky","MJ","množství","cena / MJ","celkem"]
[null,"Ceník, kapitola"]
["Díl:","VN","Vedlejší náklady",null,null,{"$f":"SUM(G41:G44)","v":0}]
[1,"005121 R","Zařízení staveniště","Soubor",1,null,{"$f":"ROUND(E41*F41,2)","v":0},null,null,null,null,null,null,null,null,null,null,null,null,null,null,null,null,null,null,null,null,null,null,null,null,null,null,null,null,null,21]
[null,null,"Veškeré náklady spojené s vybudováním, provozem a odstraněním zařízení staveniště. Poplatky za zábor chodníku a komunikace. Případná montáž, provozování i demontáž stavebních výtahů, plošin i lešení.",null,null,null,null,null,null,null,null,null,null,null,null,null,null,null,null,null,null,null,null,null,null,null,null,null,null,null,null,null,null,null,null,null,null,null,null,null,null,null,null,null,null,null,null,null,null,null,{"$f":"C42","v":"Veškeré náklady spojené s vybudováním, provozem a odstraněním zařízení staveniště. Poplatky za zábor chodníku a komunikace. Případná montáž, provozování i demontáž stavebních výtahů, plošin i lešení."}]
[2,"005122 R","Provozní vlivy","Soubor",1,null,{"$f":"ROUND(E43*F43,2)","v":0},null,null,null,null,null,null,null,null,null,null,null,null,null,null,null,null,null,null,null,null,null,null,null,null,null,null,null,null,null,21]
[null,null,"Náklady na ztížené podmínky provádění tam, kde jsou stavební práce zcela nebo zčásti omezovány provozem jiných osob. Jde zejména o zvýšené náklady související s omezením provozem v areálu objednatele nebo o náklady v důsledku nezbytného respektování stávající dopravy ovlivňující stavební práce. Vyvázání větví stromů. Zakrývání nábytku, dveří, akustických obkladů, koberců, ostatního vybavení a rozhlasové techniky proti poškození a prachu. Odsávání prachu při bourání, průběžný uklid pracoviště. Protiprašné předěly. Kontrola funkčnosti zabezpečení stavby proti zatečení vody ",null,null,null,null,null,null,null,null,null,null,null,null,null,null,null,null,null,null,null,null,null,null,null,null,null,null,null,null,null,null,null,null,null,null,null,null,null,null,null,null,null,null,null,null,null,null,null,{"$f":"C44","v":"Náklady na ztížené podmínky provádění tam, kde jsou stavební práce zcela nebo zčásti omezovány provozem jiných osob. Jde zejména o zvýšené náklady související s omezením provozem v areálu objednatele nebo o náklady v důsledku nezbytného respektování stávající dopravy ovlivňující stavební práce. Vyvázání větví stromů. Zakrývání nábytku, dveří, akustických obkladů, koberců, ostatního vybavení a rozhlasové techniky proti poškození a prachu. Odsávání prachu při bourání, průběžný uklid pracoviště. Protiprašné předěly. Kontrola funkčnosti zabezpečení stavby proti zatečení vody "}]
["Díl:","ON","Ostatní náklady",null,null,{"$f":"SUM(G46:G47)","v":0}]
[3,"006T","Ostatní náklady dle zadávací dokumentace","Soubor",1,null,{"$f":"ROUND(E46*F46,2)","v":0},null,null,null,null,null,null,null,null,null,null,null,null,null,null,null,null,null,null,null,null,null,null,null,null,null,null,null,null,null,21]
[null,null,"Ostatními náklady dodavatele spojené se splněním povinností dodavatele vyplývajících z obchodních či jiných podmínek zadávací dokumentace. Patří do nich zejména náklady na vyhotovení dokumentace skutečného provedení stavby, náklady spojené s podmínkami pro publicitu projektu, náklady na dílenskou či výrobní dokumentaci, náklady na vyhotovení provozních řádů, návodů na údržbu, zaškolení pracovníků obsluhy. ",null,null,null,null,null,null,null,null,null,null,null,null,null,null,null,null,null,null,null,null,null,null,null,null,null,null,null,null,null,null,null,null,null,null,null,null,null,null,null,null,null,null,null,null,null,null,null,{"$f":"C47","v":"Ostatními náklady dodavatele spojené se splněním povinností dodavatele vyplývajících z obchodních či jiných podmínek zadávací dokumentace. Patří do nich zejména náklady na vyhotovení dokumentace skutečného provedení stavby, náklady spojené s podmínkami pro publicitu projektu, náklady na dílenskou či výrobní dokumentaci, náklady na vyhotovení provozních řádů, návodů na údržbu, zaškolení pracovníků obsluhy. "}]
[null,null,null,null,null,null,null,null,null,null,null,null,null,null,null,null,null,null,null,null,null,null,null,null,null,null,null,null,null,null,null,null,null,null,{"$f":"SUM(AI1:AI47)","v":0},{"$f":"SUM(AJ1:AJ47)","v":0},null,15,21]
[null,"Celkem za objekt",null,null,null,null,{"$f":"F40+F45","v":0},null,null,null,null,null,null,null,null,null,null,null,null,null,null,null,null,null,null,null,null,null,null,null,null,null,null,null,null,null,null,{"$f":"SUMIF(AK40:AK48,AL48,G40:G48)","v":0},{"$f":"SUMIF(AK40:AK48,AM48,G40:G48)","v":0}]
[]
[{"$f":"CONCATENATE(\"CELKEM ZA OBJEKT \",A2, \" v Kč bez DPH\")","v":"CELKEM ZA OBJEKT 14 - Vedlejší a ostatní náklady stavby v Kč bez DPH"},null,null,null,null,{"$f":"F45+F40","v":0}]